Workbook

Sheet MENU
C1: PROGRAMAS PARA EL DISEÑO DE ELEMENTOS DE CONCRETO REFORZADOS CON FIBRA SINTÉTICA FIBRAPLAS CONCRETE®
M5: Not Activated | N5: Not Activated
A9: ESTE PROGRAMA ASI COMO LA MARCA FIBRAPLAS CONCRETE® SON DE USO EXCLUSIVO DE LA EMPRESA COLOMBIANA DEL PLASTICO S.A.S.
C10: VERSIÓN 1.9
A14: EQUIVALENCIAS A FIBRA
A20: DISEÑO PISOS INDUSTRIALES
A26: PAVIMENTOS RIGIDOS
A32: OTRAS APLICACIONES

Sheet Mallas Electrosoldadas
A2: Dosificación de Fibra en Reemplazo de Malla Electrosoldada en Losas Apoyadas sobre el suelo Según Documento Técnico TR34, Concrete Society, UK
A34: Descripción del Proyecto
A35: Tipo de Malla Electrosoldada capa 1 | C35: DIACO XX-295 (Q-7)
A36: Tipo de Malla Electrosoldada capa 2 | C36: DIACO XX-221 (Q-6)
A37: Tipo de Agregado | C37: Agregado de Rio
A38: Número de capas de malla a considerar | C38: 2
A40: Diámetro de barra (capa 1), f | D40: =VLOOKUP(C35,OFFSET(Mallas_U_SI,,,,5),5,0) -> 7.5 | E40: mm
A41: Diámetro de barra (capa 2), f | D41: =VLOOKUP(C36,OFFSET(Mallas_U_SI,,,,5),5,0) -> 6.5 | E41: mm | G41: Medida de ancho unitario , b | K41: 1000 | L41: mm
A42: Espaciamento mínimo entre barras (capa 1), s | D42: =VLOOKUP(C35,OFFSET(Mallas_U_SI,,,,2),2,0) -> 150 | E42: mm | G42: Area de acero suministrado, As | K42: =IF(D44<150,PI()*(D40^2/4)/D42*K41,IF(C38=1,PI()*(D40^2/4)/D42*K41,PI()*(D40^2/4)/D42*K41+PI()*(D41^2/4)/D43*K41)) -> 515.744794 | L42: mm2/m
A43: Espaciamento mínimo entre barras (capa 2), s | D43: =VLOOKUP(C36,OFFSET(Mallas_U_SI,,,,2),2,0) -> 150 | E43: mm
A44: Espesor de losa, h | D44: 150 | E44: mm | G44: Cuantía de Acero, r | K44: =IF(D44>0,K42/D44/K41*100,"") -> 0.3438298626 | L44: %
A45: Resistencia a compresión concreto, f'c | D45: 28 | E45: MPa
A46: Resistencia típica del acero, fy | D46: 420 | E46: MPa | G46: Validación de la Cuantía (r > 0.1%) | K46: =IF(AND(K44>0.1,K44<>""),"O.K.",IF(K44<>"","CAMBIAR TIPO DE MALLA","")) -> O.K.
A49: Factor de resistencia a Flexión del Concreto | D49: =VLOOKUP(C37,OFFSET(Agregados,,,,2),2,0) -> 0.7057969255
A50: Resistencia a Flexión del concreto | D50: =D49*SQRT(D45) -> 3.734726282 | E50: MPa
A51: Resistencia Distribuida a la tensión del acero , fwwm | D51: =IF(AND(D44<>"",D46<>""),K42*D46/(1.15*K41*D44),"") -> 1.255726455 | E51: Mpa/m
A52: Re3 valor requerido para alcanzar la Resistencia Distribuida a Tensión | D52: =IF(OR(D51="",D51=0,D50=0),"",IF((D51/(1/1.5*D50))*100<=70,(D51/(1/1.5*D50))*100,"NO APLICA")) -> 50.43447739 | E52: % | I52: ** - Conversión de dosificación de fibra a partir del desempeño requerido según ensayo ASTM C1609
A54: Volumen requerido de FIBRAPLAS CONCRETE: | F54: 7.9999298 | G54: kg/m3 | H54: **
A55: =IF(AND(D52<30,D52<>""),"(Re,3 < 30%) por lo tanto se especifica dosificación mínima para Re,3 = 30%",IF(D52<>"","(Re,3 > 30%) por lo tanto se especifica dosificación según Re,3 obtenido","")) -> (Re,3 > 30%) por lo tanto se especifica dosificación según Re,3 obtenido
P64: Referencia | Q64: Separación (mm) | R64: Area Long (mm2) | S64: Area Transv. (mm2) | T64: Diametro Long (mm) | U64: Diametro Transv. (mm) | W64: Tipo de Agregado | X64: Factor | Y64: Fuente
P65: 50x50 MW25.8/25.8 (2x2 W4.0/4.0) | Q65: 50 | R65: 25.8 | S65: 25.8 | T65: =SQRT(4*R65/PI()) -> 5.731455335 | U65: =SQRT(4*S65/PI()) -> 5.731455335 | W65: Agregado de Rio | X65: =8.5/SQRT(1/0.0068948) -> 0.7057969255 | Y65: Ringo
P66: 50x50 MW18.7/18.7 (2x2 W2.9/2.9) | Q66: 50 | R66: 18.7 | S66: 18.7 | T66: 4.87950607 | U66: 4.87950607 | W66: Triturado | X66: 0.763 | Y66: Sanchez de guzman
P67: 50x50 MW13.3/13.3 (2x2 W2.1/2.1) | Q67: 50 | R67: 13.3 | S67: 13.3 | T67: 4.115104609 | U67: 4.115104609
P68: 50x50 MW9.1/9.1 (2x2 W1.4/1.4) | Q68: 50 | R68: 9.1 | S68: 9.1 | T68: 3.403891869 | U68: 3.403891869
P69: 50x50 MW5.6/5.6 (2x2 W0.9/0.9) | Q69: 50 | R69: 5.6 | S69: 5.6 | T69: 2.670232471 | U69: 2.670232471
P70: 50x50 MW3.2/3.2 (2x2 W0.5/0.5) | Q70: 50 | R70: 3.2 | S70: 3.2 | T70: 2.018506018 | U70: 2.018506018
P71: 50x50 MW2.0/2.0 (2x2 W0.3/0.3) | Q71: 50 | R71: 2 | S71: 2 | T71: 1.595769122 | U71: 1.595769122
P72: 76x76 MW13.3/13.3 (3x3 W2.1/2.1) | Q72: 76 | R72: 13.3 | S72: 13.3 | T72: 4.115104609 | U72: 4.115104609
P73: 76x76 MW9.1/9.1 (3x3 W1.4/1.4) | Q73: 76 | R73: 9.1 | S73: 9.1 | T73: 3.403891869 | U73: 3.403891869
P74: 76x76 MW5.6/5.6 (3x3 W0.9/0.9) | Q74: 76 | R74: 5.6 | S74: 5.6 | T74: 2.670232471 | U74: 2.670232471
P75: 76x76 MW3.2/3.2 (3x3 W0.5/0.5) | Q75: 76 | R75: 3.2 | S75: 3.2 | T75: 2.018506018 | U75: 2.018506018
P76: 102x102 MW25.8/25.8 (4x4 W4.0/4.0) | Q76: 102 | R76: 25.8 | S76: 25.8 | T76: 5.731455335 | U76: 5.731455335
P77: 102x102 MW18.7/18.7 (4x4 W2.9/2.9) | Q77: 102 | R77: 18.7 | S77: 18.7 | T77: 4.87950607 | U77: 4.87950607
P78: 102x102 MW13.3/13.3 (4x4 W2.1/2.1) | Q78: 102 | R78: 13.3 | S78: 13.3 | T78: 4.115104609 | U78: 4.115104609
P79: 102x102 MW11.1/11.1 (4x4 W1.7/1.7) | Q79: 102 | R79: 11.1 | S79: 11.1 | T79: 3.759382788 | U79: 3.759382788
P80: 102x102 MW9.1/9.1 (4x4 W1.4/1.4) | Q80: 102 | R80: 9.1 | S80: 9.1 | T80: 3.403891869 | U80: 3.403891869
P81: 102x102 MW5.6/5.6 (4x4 W0.9/0.9) | Q81: 102 | R81: 5.6 | S81: 5.6 | T81: 2.670232471 | U81: 2.670232471
P82: 102x102 MW4.2/4.2 (4x4 W0.7/0.7) | Q82: 102 | R82: 4.2 | S82: 4.2 | T82: 2.312489154 | U82: 2.312489154
P83: 102x102 MW3.2/3.2 (4x4 W0.5/0.5) | Q83: 102 | R83: 3.2 | S83: 3.2 | T83: 2.018506018 | U83: 2.018506018
P84: 152x152 MW47.6/47.6 (6x6 W7.4/7.4) | Q84: 152 | R84: 47.6 | S84: 47.6 | T84: 7.784998544 | U84: 7.784998544
P85: 152x152 MW40.6/40.6 (6x6 W6.3/6.3) | Q85: 152 | R85: 40.6 | S85: 40.6 | T85: 7.189820966 | U85: 7.189820966
P86: 152x152 MW34.9/34.9 (6x6 W5.4/5.4) | Q86: 152 | R86: 34.9 | S86: 34.9 | T86: 6.666037812 | U86: 6.666037812
P87: 152x152 MW30.1/30.1 (6x6 W4.7/4.7) | Q87: 152 | R87: 30.1 | S87: 30.1 | T87: 6.190679308 | U87: 6.190679308
P88: 152x152 MW25.8/25.8 (6x6 W4.0/4.0) | Q88: 152 | R88: 25.8 | S88: 25.8 | T88: 5.731455335 | U88: 5.731455335
P89: 152x152 MW25.8/18.7 (6x6 W4.0/2.9) | Q89: 152 | R89: 25.8 | S89: 18.7 | T89: 5.731455335 | U89: 4.87950607
P90: 152x152 MW21.7/21.7 (6x6 W3.4/3.4) | Q90: 152 | R90: 21.7 | S90: 21.7 | T90: 5.256357876 | U90: 5.256357876
P91: 152x152 MW18.7/18.7 (6x6 W2.9/2.9) | Q91: 152 | R91: 18.7 | S91: 18.7 | T91: 4.87950607 | U91: 4.87950607
P92: 152x152 MW15.9/15.9 (6x6 W2.5/2.5) | Q92: 152 | R92: 15.9 | S92: 15.9 | T92: 4.499389821 | U92: 4.499389821
P93: 152x152 MW13.3/13.3 (6x6 W2.1/2.1) | Q93: 152 | R93: 13.3 | S93: 13.3 | T93: 4.115104609 | U93: 4.115104609
P94: 152x152 MW11.1/11.1 (6x6 W1.7/1.7) | Q94: 152 | R94: 11.1 | S94: 11.1 | T94: 3.759382788 | U94: 3.759382788
P95: 152x152 MW9.1/9.1 (6x6 W1.4/1.4) | Q95: 152 | R95: 9.1 | S95: 9.1 | T95: 3.403891869 | U95: 3.403891869
P96: 305x305 MW34.9/34.9 (12x12 W5.4/5.4) | Q96: 305 | R96: 34.9 | S96: 34.9 | T96: 6.666037812 | U96: 6.666037812
P97: DIACO XY-084 (R-2.1) | Q97: 150 | R97: =PI()*T97^2/4 -> 12.56637061 | S97: =PI()*U97^2/4 -> 12.56637061 | T97: 4 | U97: 4
P98: DIACO XY-106 (R-3.3) | Q98: 150 | R98: 15.90431281 | S98: 12.56637061 | T98: 4.5 | U98: 4
P99: DIACO XY-131 (R-3.1) | Q99: 150 | R99: 19.63495408 | S99: 12.56637061 | T99: 5 | U99: 4
P100: DIACO XY-158 (R-3.2) | Q100: 150 | R100: 23.75829444 | S100: 12.56637061 | T100: 5.5 | U100: 4
P101: DIACO XY-221 (R-8.1) | Q101: 150 | R101: 33.1830724 | S101: 12.56637061 | T101: 6.5 | U101: 4
P102: DIACO XY-257 (R-6.1) | Q102: 150 | R102: 38.48451001 | S102: 19.63495408 | T102: 7 | U102: 5
P103: DIACO XY-335 (R-5.3) | Q103: 150 | R103: 50.26548246 | S103: 19.63495408 | T103: 8 | U103: 5
P104: DIACO XY-378 (R-5.1) | Q104: 150 | R104: 56.74501731 | S104: 19.63495408 | T104: 8.5 | U104: 5
P105: DIACO XX-050 (Q-2.1) | Q105: 250 | R105: 12.56637061 | S105: 12.56637061 | T105: 4 | U105: 4
P106: DIACO XX-063 (Q-2.2) | Q106: 200 | R106: 12.56637061 | S106: 12.56637061 | T106: 4 | U106: 4
P107: DIACO XX-084 (Q-2) | Q107: 150 | R107: 12.56637061 | S107: 12.56637061 | T107: 4 | U107: 4
P108: DIACO XX-106 (Q-3) | Q108: 150 | R108: 15.90431281 | S108: 15.90431281 | T108: 4.5 | U108: 4.5
P109: DIACO XX-131 (Q-3.1) | Q109: 150 | R109: 19.63495408 | S109: 19.63495408 | T109: 5 | U109: 5
P110: DIACO XX-158 (Q-4) | Q110: 150 | R110: 23.75829444 | S110: 23.75829444 | T110: 5.5 | U110: 5.5
P111: DIACO XX-188 (Q-5) | Q111: 150 | R111: 28.27433388 | S111: 28.27433388 | T111: 6 | U111: 6
P112: DIACO XX-221 (Q-6) | Q112: 150 | R112: 33.1830724 | S112: 33.1830724 | T112: 6.5 | U112: 6.5
P113: DIACO XX-257 (Q-6.1) | Q113: 150 | R113: 38.48451001 | S113: 38.48451001 | T113: 7 | U113: 7
P114: DIACO XX-295 (Q-7) | Q114: 150 | R114: 44.17864669 | S114: 44.17864669 | T114: 7.5 | U114: 7.5
P115: DIACO XX-335 (Q-7.1) | Q115: 150 | R115: 50.26548246 | S115: 50.26548246 | T115: 8 | U115: 8
P116: DIACO XX-378 (Q-8) | Q116: 150 | R116: 56.74501731 | S116: 56.74501731 | T116: 8.5 | U116: 8.5
P118: Recubrimiento superior mínimo (mm) | Q118: 40
P119: Recubrimiento inferior mínimo (mm) | Q119: 75
P120: Obtenido de tabla 20.6.1.3.1 ACI 318-M14

Sheet Barras de Refuerzo
A2: Dosificación de Fibra en Reemplazo de Barras de Acero en Losas Apoyadas sobre el suelo Según Documento Técnico TR34, Concrete Society, UK
J5: Datos de entrada requeridos
J6: Constantes - reemplace solamente si es necesario
J7: Datos calculados
J8: Requerimientos finales de dosificación
A43: Descripción del Proyecto | C43: Proyecto Numero 51
A44: Refuerzo Corrugado (Capa 1 dir.X) | C44: #2 (1/4") (M6)
A45: Refuerzo Corrugado (Capa 1 dir.Y) | C45: #2 (1/4") (M6)
A46: Refuerzo Corrugado (Capa 2 dir.X) | C46: #4 (1/2") (M13)
A47: Refuerzo Corrugado (Capa 2 dir.Y) | C47: #4 (1/2") (M13)
A48: Tipo de Agregado | C48: Agregado de Rio
A50: Número de capas de malla a considerar | C50: 2
A52: Diámetro de barra (1-X), f1 | D52: =VLOOKUP(C44,OFFSET(Barras,,,,4),4,0) -> 6.35 | E52: mm | G52: Medida de ancho unitario , b | K52: 1000 | L52: mm
A53: Diámetro de barra (1-Y), f2 | D53: =VLOOKUP(C45,OFFSET(Barras,,,,4),4,0) -> 6.35 | E53: mm
A54: Diámetro de barra (2-X), f3 | D54: =VLOOKUP(C46,OFFSET(Barras,,,,4),4,0) -> 12.7 | E54: mm
A55: Diámetro de barra (2-Y), f4 | D55: =VLOOKUP(C47,OFFSET(Barras,,,,4),4,0) -> 12.7 | E55: mm
A56: Espaciamento entre barras, 1-X | D56: 100 | E56: mm | G56: Area de acero suministrado, As | K56: =IF(OR(D56="",D57="",D58="",D59=""),"",IF(D60<150,MAX(PI()*(D52^2/4)/D56*K52,PI()*(D53^2/4)/D57*K52),IF(C50=1,MAX(PI()*(D52^2/4)/D56*K52,PI()*(D53^2/4)/D57*K52),MAX(PI()*(D52^2/4)/D56*K52+PI()*(D54^2/4)/D58*K52,PI()*(D53^2/4)/D57*K52+PI()*(D55^2/4)/D59*K52)))) -> 1583.460872 | L56: mm2/m
A57: Espaciamento entre barras, 1-Y | D57: 100 | E57: mm
A58: Espaciamento entre barras, 2-X | D58: 100 | E58: mm
A59: Espaciamento entre barras, 2-Y | D59: 100 | E59: mm
A60: Espesor de losa, h | D60: 150 | E60: mm | G60: Cuantía de Acero, r | K60: =IF(AND(K56<>"",D60<>""),K56/D60/K52*100,"") -> 1.055640581 | L60: %
A61: Resistencia a compresión concreto, f'c | D61: 25 | E61: MPa
A62: Resistencia típica del acero, fy | D62: 420 | E62: MPa | G62: Validación de la Cuantía (r > 0.1%) | K62: =IF(AND(K60>0.1,K60<>""),"O.K.",IF(K60<>"","CAMBIAR TIPO DE REFUERZO","")) -> O.K.
A65: Factor de resistencia a Flexión del Concreto | D65: =VLOOKUP(C48,OFFSET(Agregados,,,,2),2,0) -> 0.7057969255
A66: Resistencia a Flexión del concreto | D66: =D65*SQRT(D61) -> 3.528984627 | E66: MPa
A67: Resistencia Distribuida a la tensión del acero , fwwm | D67: =IF(AND(K56<>"",D60<>"",D62<>""),K56*D62/(1.15*K52*D60),"") -> 3.855382993 | E67: Mpa/m
A68: Re3 valor requerido para alcanzar la Resistencia Distribuida a Tensión | D68: =IF(D67="","",IF((D67/(1/1.5*D66))*100<=70,(D67/(1/1.5*D66))*100,"NO APLICA")) -> NO APLICA | E68: % | I68: ** - Conversión de dosificación de fibra a partir del desempeño requerido según ensayo ASTM C1609.
A70: Volumen requerido de FIBRAPLAS CONCRETE: | G70: kg/m3 | H70: **
A71: =IF(AND(D68<30,D68<>""),"(Re,3 < 30%) por lo tanto se especifica dosificación mínima para Re,3 = 30%",IF(D68<>"","(Re,3 > 30%) por lo tanto se especifica dosificación según Re,3 obtenido","")) -> (Re,3 > 30%) por lo tanto se especifica dosificación según Re,3 obtenido
N78: Tamaño | O78: Referencia | P78: Diámetro | Q78: Diámetro | S78: Tipo de Agregado | T78: Factor
P79: (in) | Q79: (mm) | S79: Agregado de Rio | T79: =8.5/SQRT(1/0.0068948) -> 0.7057969255
N80: #2 (1/4") (M6) | O80: 2 | P80: =+O80/8 -> 0.25 | Q80: =P80*25.4 -> 6.35 | S80: Triturado | T80: 0.763
N81: #3 (3/8") (M9) | O81: 3 | P81: 0.375 | Q81: 9.525
N82: #4 (1/2") (M13) | O82: 4 | P82: 0.5 | Q82: 12.7
N83: #5 (5/8") (M16) | O83: 5 | P83: 0.625 | Q83: 15.875
N84: #6 (3/4") (M19) | O84: 6 | P84: 0.75 | Q84: 19.05
N85: #7 (7/8") (M22) | O85: 7 | P85: 0.875 | Q85: 22.225
N86: #8 (1") (M25) | O86: 8 | P86: 1 | Q86: 25.4
N87: #9 (1 1/8") (M29) | O87: 9 | P87: 1.125 | Q87: 28.575
N88: #10 (1 1/4") (M32) | O88: 10 | P88: 1.25 | Q88: 31.75
N89: #11 (1 3/8") (M35) | O89: 11 | P89: 1.375 | Q89: 34.925

Sheet Muros
A2: Dosificación de Fibra en Reemplazo de Malla Electrosoldada en Elementos de Pared Delgada considerando la Resistencia Residual Promedio (ASTM C1399) del Concreto Reforzado con Fibras
J5: Datos de entrada requeridos
J6: Constantes - reemplace solamente si es necesario
J7: Datos calculados
J8: Requerimientos finales de dosificación
A37: NOTA: Esta herramienta NO fue desarrollada para reemplazar el refuerzo principal de muros en concreto reforzado. Esta herramienta contempla elementos prefabricados de pared delgada principalmente. Para casos especiales (reemplazar acero de refuerzo mínimo usado para control de retracción por FIBRAPLAS CONCRETE en muros en concreto reforzado o Box Culverts) comuníquese con el área técnica de ECOPLAS S.AS.
A43: Descripción del Proyecto
A44: Refuerzo corrugado | C44: #2 (1/4") (M6)
A47: Diámetro de barra, f | D47: =VLOOKUP(C44,OFFSET(Barras,,,,4),4,0) -> 6.35 | E47: mm | G47: Medida de ancho unitario , b | K47: 1000 | L47: mm
A48: Espaciamento entre barras, s | D48: 50 | E48: mm | G48: Area de acero suministrado, As | K48: =PI()*(D47^2/4)/D48*K47 -> 633.3843489 | L48: mm2/m
A49: Espesor de la pared, h | D49: 250 | E49: mm | G49: Cuantía de Acero, r | K49: =IF(D49<>"",K48/D49/K47*100,"") -> 0.2533537395 | L49: %
A50: Resistencia a compresión concreto, f'c | D50: 28 | E50: MPa
A51: Resistencia típica del acero, fy | D51: 420 | E51: MPa
A52: Posición del acero, d | D52: =D49/2 -> 125 | E52: mm
A54: Profundidad Bloque de esfuerzo equivalente, a | D54: =IF(AND(D50<>"",D51<>""),K48*D51/(0.85*D50*K47),"") -> 11.17737086 | E54: mm
A55: Momento resistente, Mr | D55: =IF(D54<>"",0.9*K48*D51*(D52-D54/2)/(1000000),"") -> 28.58937142 | E55: kN.m
A56: Capacidad de Esfuerzos de la sección reforzada con fibra, s | D56: =IF(AND(D49<>"",D54<>""),D55*1000000*(D49/2)/(K47*D49^3/12),"") -> 2.744579656 | E56: MPa
I57: ** - Conversión de dosificación de fibra a partir del desempeño requerido según ensayo ASTM C1399.
A59: Volumen requerido de FIBRAPLAS CONCRETE: | F59: 3.23132847 | G59: kg/m3 | H59: **
N65: Referencia | O65: Separación (mm) | P65: Area Long (mm2) | Q65: Area Transv. (mm2) | R65: Diametro Long (mm) | S65: Diametro Transv. (mm) | V65: Tipo de Agregado | W65: Factor
N66: 50x50 MW25.8/25.8 (2x2 W4.0/4.0) | O66: 50 | P66: 25.8 | Q66: 25.8 | R66: =SQRT(4*P66/PI()) -> 5.731455335 | S66: =SQRT(4*Q66/PI()) -> 5.731455335 | V66: Agregado de Rio | W66: =8.5/SQRT(1/0.0068948) -> 0.7057969255
N67: 50x50 MW18.7/18.7 (2x2 W2.9/2.9) | O67: 50 | P67: 18.7 | Q67: 18.7 | R67: 4.87950607 | S67: 4.87950607 | V67: Triturado | W67: =10/SQRT(1/0.0068948) -> 0.8303493241
N68: 50x50 MW13.3/13.3 (2x2 W2.1/2.1) | O68: 50 | P68: 13.3 | Q68: 13.3 | R68: 4.115104609 | S68: 4.115104609
N69: 50x50 MW9.1/9.1 (2x2 W1.4/1.4) | O69: 50 | P69: 9.1 | Q69: 9.1 | R69: 3.403891869 | S69: 3.403891869
N70: 50x50 MW5.6/5.6 (2x2 W0.9/0.9) | O70: 50 | P70: 5.6 | Q70: 5.6 | R70: 2.670232471 | S70: 2.670232471
N71: 50x50 MW3.2/3.2 (2x2 W0.5/0.5) | O71: 50 | P71: 3.2 | Q71: 3.2 | R71: 2.018506018 | S71: 2.018506018
N72: 50x50 MW2.0/2.0 (2x2 W0.3/0.3) | O72: 50 | P72: 2 | Q72: 2 | R72: 1.595769122 | S72: 1.595769122
N73: 76x76 MW13.3/13.3 (3x3 W2.1/2.1) | O73: 76 | P73: 13.3 | Q73: 13.3 | R73: 4.115104609 | S73: 4.115104609
N74: 76x76 MW9.1/9.1 (3x3 W1.4/1.4) | O74: 76 | P74: 9.1 | Q74: 9.1 | R74: 3.403891869 | S74: 3.403891869
N75: 76x76 MW5.6/5.6 (3x3 W0.9/0.9) | O75: 76 | P75: 5.6 | Q75: 5.6 | R75: 2.670232471 | S75: 2.670232471
N76: 76x76 MW3.2/3.2 (3x3 W0.5/0.5) | O76: 76 | P76: 3.2 | Q76: 3.2 | R76: 2.018506018 | S76: 2.018506018
N77: 102x102 MW25.8/25.8 (4x4 W4.0/4.0) | O77: 102 | P77: 25.8 | Q77: 25.8 | R77: 5.731455335 | S77: 5.731455335
N78: 102x102 MW18.7/18.7 (4x4 W2.9/2.9) | O78: 102 | P78: 18.7 | Q78: 18.7 | R78: 4.87950607 | S78: 4.87950607
N79: 102x102 MW13.3/13.3 (4x4 W2.1/2.1) | O79: 102 | P79: 13.3 | Q79: 13.3 | R79: 4.115104609 | S79: 4.115104609
N80: 102x102 MW11.1/11.1 (4x4 W1.7/1.7) | O80: 102 | P80: 11.1 | Q80: 11.1 | R80: 3.759382788 | S80: 3.759382788
N81: 102x102 MW9.1/9.1 (4x4 W1.4/1.4) | O81: 102 | P81: 9.1 | Q81: 9.1 | R81: 3.403891869 | S81: 3.403891869
N82: 102x102 MW5.6/5.6 (4x4 W0.9/0.9) | O82: 102 | P82: 5.6 | Q82: 5.6 | R82: 2.670232471 | S82: 2.670232471
N83: 102x102 MW4.2/4.2 (4x4 W0.7/0.7) | O83: 102 | P83: 4.2 | Q83: 4.2 | R83: 2.312489154 | S83: 2.312489154
N84: 102x102 MW3.2/3.2 (4x4 W0.5/0.5) | O84: 102 | P84: 3.2 | Q84: 3.2 | R84: 2.018506018 | S84: 2.018506018
N85: 152x152 MW47.6/47.6 (6x6 W7.4/7.4) | O85: 152 | P85: 47.6 | Q85: 47.6 | R85: 7.784998544 | S85: 7.784998544
N86: 152x152 MW40.6/40.6 (6x6 W6.3/6.3) | O86: 152 | P86: 40.6 | Q86: 40.6 | R86: 7.189820966 | S86: 7.189820966
N87: 152x152 MW34.9/34.9 (6x6 W5.4/5.4) | O87: 152 | P87: 34.9 | Q87: 34.9 | R87: 6.666037812 | S87: 6.666037812
N88: 152x152 MW30.1/30.1 (6x6 W4.7/4.7) | O88: 152 | P88: 30.1 | Q88: 30.1 | R88: 6.190679308 | S88: 6.190679308
N89: 152x152 MW25.8/25.8 (6x6 W4.0/4.0) | O89: 152 | P89: 25.8 | Q89: 25.8 | R89: 5.731455335 | S89: 5.731455335
N90: 152x152 MW25.8/18.7 (6x6 W4.0/2.9) | O90: 152 | P90: 25.8 | Q90: 18.7 | R90: 5.731455335 | S90: 4.87950607
N91: 152x152 MW21.7/21.7 (6x6 W3.4/3.4) | O91: 152 | P91: 21.7 | Q91: 21.7 | R91: 5.256357876 | S91: 5.256357876
N92: 152x152 MW18.7/18.7 (6x6 W2.9/2.9) | O92: 152 | P92: 18.7 | Q92: 18.7 | R92: 4.87950607 | S92: 4.87950607
N93: 152x152 MW15.9/15.9 (6x6 W2.5/2.5) | O93: 152 | P93: 15.9 | Q93: 15.9 | R93: 4.499389821 | S93: 4.499389821
N94: 152x152 MW13.3/13.3 (6x6 W2.1/2.1) | O94: 152 | P94: 13.3 | Q94: 13.3 | R94: 4.115104609 | S94: 4.115104609
N95: 152x152 MW11.1/11.1 (6x6 W1.7/1.7) | O95: 152 | P95: 11.1 | Q95: 11.1 | R95: 3.759382788 | S95: 3.759382788
N96: 152x152 MW9.1/9.1 (6x6 W1.4/1.4) | O96: 152 | P96: 9.1 | Q96: 9.1 | R96: 3.403891869 | S96: 3.403891869
N97: 305x305 MW34.9/34.9 (12x12 W5.4/5.4) | O97: 305 | P97: 34.9 | Q97: 34.9 | R97: 6.666037812 | S97: 6.666037812
N98: DIACO XY-084 | O98: 150 | P98: =PI()*R98^2/4 -> 12.56637061 | Q98: =PI()*S98^2/4 -> 12.56637061 | R98: 4 | S98: 4
N99: DIACO XY-106 | O99: 150 | P99: 15.90431281 | Q99: 12.56637061 | R99: 4.5 | S99: 4
N100: DIACO XY-131 | O100: 150 | P100: 19.63495408 | Q100: 12.56637061 | R100: 5 | S100: 4
N101: DIACO XY-158 | O101: 150 | P101: 23.75829444 | Q101: 12.56637061 | R101: 5.5 | S101: 4
N102: DIACO XY-221 | O102: 150 | P102: 33.1830724 | Q102: 12.56637061 | R102: 6.5 | S102: 4
N103: DIACO XY-257 | O103: 150 | P103: 38.48451001 | Q103: 19.63495408 | R103: 7 | S103: 5
N104: DIACO XY-335 | O104: 150 | P104: 50.26548246 | Q104: 19.63495408 | R104: 8 | S104: 5
N105: DIACO XY-378 | O105: 150 | P105: 56.74501731 | Q105: 19.63495408 | R105: 8.5 | S105: 5
N106: DIACO XX-050 | O106: 250 | P106: 12.56637061 | Q106: 12.56637061 | R106: 4 | S106: 4
N107: DIACO XX-063 | O107: 200 | P107: 12.56637061 | Q107: 12.56637061 | R107: 4 | S107: 4
N108: DIACO XX-084 | O108: 150 | P108: 12.56637061 | Q108: 12.56637061 | R108: 4 | S108: 4
N109: DIACO XX-106 | O109: 150 | P109: 15.90431281 | Q109: 15.90431281 | R109: 4.5 | S109: 4.5
N110: DIACO XX-131 | O110: 150 | P110: 19.63495408 | Q110: 19.63495408 | R110: 5 | S110: 5
N111: DIACO XX-158 | O111: 150 | P111: 23.75829444 | Q111: 23.75829444 | R111: 5.5 | S111: 5.5
N112: DIACO XX-188 | O112: 150 | P112: 28.27433388 | Q112: 28.27433388 | R112: 6 | S112: 6
N113: DIACO XX-221 | O113: 150 | P113: 33.1830724 | Q113: 33.1830724 | R113: 6.5 | S113: 6.5
N114: DIACO XX-257 | O114: 150 | P114: 38.48451001 | Q114: 38.48451001 | R114: 7 | S114: 7
N115: DIACO XX-295 | O115: 150 | P115: 44.17864669 | Q115: 44.17864669 | R115: 7.5 | S115: 7.5
N116: DIACO XX-335 | O116: 150 | P116: 50.26548246 | Q116: 50.26548246 | R116: 8 | S116: 8
N117: DIACO XX-378 | O117: 150 | P117: 56.74501731 | Q117: 56.74501731 | R117: 8.5 | S117: 8.5
N120: Tamaño | O120: Referencia | P120: Diámetro | Q120: Diámetro
P121: (in) | Q121: (mm)
N122: #2 (1/4") (M6) | O122: 2 | P122: =+O122/8 -> 0.25 | Q122: =P122*25.4 -> 6.35
N123: #3 (3/8") (M9) | O123: 3 | P123: 0.375 | Q123: 9.525
N124: #4 (1/2") (M13) | O124: 4 | P124: 0.5 | Q124: 12.7
N125: #5 (5/8") (M16) | O125: 5 | P125: 0.625 | Q125: 15.875
N126: #6 (3/4") (M19) | O126: 6 | P126: 0.75 | Q126: 19.05
N127: #7 (7/8") (M22) | O127: 7 | P127: 0.875 | Q127: 22.225
N128: #8 (1") (M25) | O128: 8 | P128: 1 | Q128: 25.4
N129: #9 (1 1/8") (M29) | O129: 9 | P129: 1.125 | Q129: 28.575
N130: #10 (1 1/4") (M32) | O130: 10 | P130: 1.25 | Q130: 31.75
N131: #11 (1 3/8") (M35) | O131: 11 | P131: 1.375 | Q131: 34.925

Sheet Steel Deck
A2: Dosificación de Fibra en Entrepisos de concreto compuestos con lámina metálica según documento SDI-ANSI-C-2011
A16: Descripción del Proyecto
A28: DEFINICIÓN PROPIEDADES BÁSICAS DEL ENTREPISO COMPUESTO
A30: Referencia lámina metálica(deck depth) | D30: 50.8 | E30: mm
A32: Altura total de la losa (total slab depth) | D32: 100.8 | E32: mm | F32: =IF(AND(D30-50.8=0,D32>=100.8),"O.K.",IF(D32>=126.2,"O.K.","El recubrimiento es menor a 50 mm, considerar un recubrimiento igual o superior a 50 mm")) -> O.K.
A34: Altura por encima de la lámina metálica (t) | D34: =IF(AND(D30<>"",D32<>""),IF(D32>=D30+50,D32-D30,50),"") -> 50 | E34: mm
A36: Area de Acero por temperatura mínima Requerida | D36: =IF(D34<>"",IF(0.00075*D34*1000>59.868,0.00075*D34*1000,59.868),"") -> 59.868 | E36: mm2/m
A39: PASO 2: SELECCIÓN DEL TIPO DE MALLA ELECTROSOLDADA MÍNIMA REQUERIDA
A42: Tipo de Malla Electrosoldada | C42: 152x152 MW13.3/13.3 (6x6 W2.1/2.1)
A45: Diámetro de barra, f | D45: =VLOOKUP(Tipo_malla,OFFSET(Mallas_U_SI,,,,5),5,0) -> 4.115104609 | E45: mm
A46: Espaciamento entre barras, s | D46: =VLOOKUP(Tipo_malla,OFFSET(Mallas_U_SI,,,,2),2,0) -> 152 | E46: mm
A47: Medida de ancho unitario , b | D47: 1000 | E47: mm
A48: Area de acero suministrado, As | D48: =PI()*(D45^2/4)/D46*D47 -> 87.5 | E48: mm2/m
A50: VALIDACIÓN DE LA MALLA ELECTROSOLDADA | D50: =IF(D36<>"",IF(D48/D36>=1,"CUMPLE","NO CUMPLE"),"") -> CUMPLE | E50: =IF(D50="NO CUMPLE","SELECCIONAR OTRA MALLA","") -> 
A53: PROPIEDADES DEL CONCRETO
A55: Resistencia a compresión concreto, f'c | D55: 15 | E55: MPa
A56: Resistencia típica del acero, fy | D56: 485 | E56: MPa
A59: Factor de resistencia a Flexión del Concreto | D59: 0.71
A60: Resistencia a Flexión del concreto (MR) | D60: =D59*SQRT(D55) -> 2.749818176 | E60: MPa
A61: Resistencia Distribuida a la tensión del acero , fwwm | D61: =IF(AND(D56<>"",D36<>""),D36*D56/(1.15*D47*D34),"") -> 0.5049735652 | E61: MPa
A62: Re3 valor requerido para alcanzar la Resistencia Distribuida a Tensión | D62: =IF(OR(D60="",D60=0,D61=""),"",(D61/(1/1.5*D60))*100) -> 27.54583392 | E62: % | I62: ** - Conversión de dosificación de fibra a partir del desempeño requerido según ensayo ASTM C1609.
A64: Volumen requerido de FIBRAPLAS CONCRETE: | F64: 2.735541802 | G64: kg/m3 | H64: **
O76: Referencia | P76: Separación (mm) | Q76: Area Long (mm2) | R76: Area Transv. (mm2) | S76: Diametro Long (mm) | T76: Diametro Transv. (mm)
O77: 50x50 MW25.8/25.8 (2x2 W4.0/4.0) | P77: 50 | Q77: 25.8 | R77: 25.8 | S77: =SQRT(4*Q77/PI()) -> 5.731455335 | T77: =SQRT(4*R77/PI()) -> 5.731455335 | W77: Metaldeck 2" | X77: =25.4*2 -> 50.8
O78: 50x50 MW18.7/18.7 (2x2 W2.9/2.9) | P78: 50 | Q78: 18.7 | R78: 18.7 | S78: 4.87950607 | T78: 4.87950607 | W78: Metaldeck 3" | X78: =25.4*3 -> 76.2
O79: 50x50 MW13.3/13.3 (2x2 W2.1/2.1) | P79: 50 | Q79: 13.3 | R79: 13.3 | S79: 4.115104609 | T79: 4.115104609
O80: 50x50 MW9.1/9.1 (2x2 W1.4/1.4) | P80: 50 | Q80: 9.1 | R80: 9.1 | S80: 3.403891869 | T80: 3.403891869
O81: 50x50 MW5.6/5.6 (2x2 W0.9/0.9) | P81: 50 | Q81: 5.6 | R81: 5.6 | S81: 2.670232471 | T81: 2.670232471
O82: 50x50 MW3.2/3.2 (2x2 W0.5/0.5) | P82: 50 | Q82: 3.2 | R82: 3.2 | S82: 2.018506018 | T82: 2.018506018
O83: 50x50 MW2.0/2.0 (2x2 W0.3/0.3) | P83: 50 | Q83: 2 | R83: 2 | S83: 1.595769122 | T83: 1.595769122
O84: 76x76 MW13.3/13.3 (3x3 W2.1/2.1) | P84: 76 | Q84: 13.3 | R84: 13.3 | S84: 4.115104609 | T84: 4.115104609
O85: 76x76 MW9.1/9.1 (3x3 W1.4/1.4) | P85: 76 | Q85: 9.1 | R85: 9.1 | S85: 3.403891869 | T85: 3.403891869
O86: 76x76 MW5.6/5.6 (3x3 W0.9/0.9) | P86: 76 | Q86: 5.6 | R86: 5.6 | S86: 2.670232471 | T86: 2.670232471
O87: 76x76 MW3.2/3.2 (3x3 W0.5/0.5) | P87: 76 | Q87: 3.2 | R87: 3.2 | S87: 2.018506018 | T87: 2.018506018
O88: 102x102 MW25.8/25.8 (4x4 W4.0/4.0) | P88: 102 | Q88: 25.8 | R88: 25.8 | S88: 5.731455335 | T88: 5.731455335
O89: 102x102 MW18.7/18.7 (4x4 W2.9/2.9) | P89: 102 | Q89: 18.7 | R89: 18.7 | S89: 4.87950607 | T89: 4.87950607
O90: 102x102 MW13.3/13.3 (4x4 W2.1/2.1) | P90: 102 | Q90: 13.3 | R90: 13.3 | S90: 4.115104609 | T90: 4.115104609
O91: 102x102 MW11.1/11.1 (4x4 W1.7/1.7) | P91: 102 | Q91: 11.1 | R91: 11.1 | S91: 3.759382788 | T91: 3.759382788
O92: 102x102 MW9.1/9.1 (4x4 W1.4/1.4) | P92: 102 | Q92: 9.1 | R92: 9.1 | S92: 3.403891869 | T92: 3.403891869
O93: 102x102 MW5.6/5.6 (4x4 W0.9/0.9) | P93: 102 | Q93: 5.6 | R93: 5.6 | S93: 2.670232471 | T93: 2.670232471
O94: 102x102 MW4.2/4.2 (4x4 W0.7/0.7) | P94: 102 | Q94: 4.2 | R94: 4.2 | S94: 2.312489154 | T94: 2.312489154
O95: 102x102 MW3.2/3.2 (4x4 W0.5/0.5) | P95: 102 | Q95: 3.2 | R95: 3.2 | S95: 2.018506018 | T95: 2.018506018
O96: 152x152 MW47.6/47.6 (6x6 W7.4/7.4) | P96: 152 | Q96: 47.6 | R96: 47.6 | S96: 7.784998544 | T96: 7.784998544
O97: 152x152 MW40.6/40.6 (6x6 W6.3/6.3) | P97: 152 | Q97: 40.6 | R97: 40.6 | S97: 7.189820966 | T97: 7.189820966
O98: 152x152 MW34.9/34.9 (6x6 W5.4/5.4) | P98: 152 | Q98: 34.9 | R98: 34.9 | S98: 6.666037812 | T98: 6.666037812
O99: 152x152 MW30.1/30.1 (6x6 W4.7/4.7) | P99: 152 | Q99: 30.1 | R99: 30.1 | S99: 6.190679308 | T99: 6.190679308
O100: 152x152 MW25.8/25.8 (6x6 W4.0/4.0) | P100: 152 | Q100: 25.8 | R100: 25.8 | S100: 5.731455335 | T100: 5.731455335
O101: 152x152 MW25.8/18.7 (6x6 W4.0/2.9) | P101: 152 | Q101: 25.8 | R101: 18.7 | S101: 5.731455335 | T101: 4.87950607
O102: 152x152 MW21.7/21.7 (6x6 W3.4/3.4) | P102: 152 | Q102: 21.7 | R102: 21.7 | S102: 5.256357876 | T102: 5.256357876
O103: 152x152 MW18.7/18.7 (6x6 W2.9/2.9) | P103: 152 | Q103: 18.7 | R103: 18.7 | S103: 4.87950607 | T103: 4.87950607
O104: 152x152 MW15.9/15.9 (6x6 W2.5/2.5) | P104: 152 | Q104: 15.9 | R104: 15.9 | S104: 4.499389821 | T104: 4.499389821
O105: 152x152 MW13.3/13.3 (6x6 W2.1/2.1) | P105: 152 | Q105: 13.3 | R105: 13.3 | S105: 4.115104609 | T105: 4.115104609
O106: 152x152 MW11.1/11.1 (6x6 W1.7/1.7) | P106: 152 | Q106: 11.1 | R106: 11.1 | S106: 3.759382788 | T106: 3.759382788
O107: 152x152 MW9.1/9.1 (6x6 W1.4/1.4) | P107: 152 | Q107: 9.1 | R107: 9.1 | S107: 3.403891869 | T107: 3.403891869
O108: 305x305 MW34.9/34.9 (12x12 W5.4/5.4) | P108: 305 | Q108: 34.9 | R108: 34.9 | S108: 6.666037812 | T108: 6.666037812
O109: DIACO XY-084 | P109: 150 | Q109: =PI()*S109^2/4 -> 12.56637061 | R109: =PI()*T109^2/4 -> 12.56637061 | S109: 4 | T109: 4
O110: DIACO XY-106 | P110: 150 | Q110: 15.90431281 | R110: 12.56637061 | S110: 4.5 | T110: 4
O111: DIACO XY-131 | P111: 150 | Q111: 19.63495408 | R111: 12.56637061 | S111: 5 | T111: 4
O112: DIACO XY-158 | P112: 150 | Q112: 23.75829444 | R112: 12.56637061 | S112: 5.5 | T112: 4
O113: DIACO XY-221 | P113: 150 | Q113: 33.1830724 | R113: 12.56637061 | S113: 6.5 | T113: 4
O114: DIACO XY-257 | P114: 150 | Q114: 38.48451001 | R114: 19.63495408 | S114: 7 | T114: 5
O115: DIACO XY-335 | P115: 150 | Q115: 50.26548246 | R115: 19.63495408 | S115: 8 | T115: 5
O116: DIACO XY-378 | P116: 150 | Q116: 56.74501731 | R116: 19.63495408 | S116: 8.5 | T116: 5
O117: DIACO XX-050 | P117: 250 | Q117: 12.56637061 | R117: 12.56637061 | S117: 4 | T117: 4
O118: DIACO XX-063 | P118: 200 | Q118: 12.56637061 | R118: 12.56637061 | S118: 4 | T118: 4
O119: DIACO XX-084 | P119: 150 | Q119: 12.56637061 | R119: 12.56637061 | S119: 4 | T119: 4
O120: DIACO XX-106 | P120: 150 | Q120: 15.90431281 | R120: 15.90431281 | S120: 4.5 | T120: 4.5
O121: DIACO XX-131 | P121: 150 | Q121: 19.63495408 | R121: 19.63495408 | S121: 5 | T121: 5
O122: DIACO XX-158 | P122: 150 | Q122: 23.75829444 | R122: 23.75829444 | S122: 5.5 | T122: 5.5
O123: DIACO XX-188 | P123: 150 | Q123: 28.27433388 | R123: 28.27433388 | S123: 6 | T123: 6
O124: DIACO XX-221 | P124: 150 | Q124: 33.1830724 | R124: 33.1830724 | S124: 6.5 | T124: 6.5
O125: DIACO XX-257 | P125: 150 | Q125: 38.48451001 | R125: 38.48451001 | S125: 7 | T125: 7
O126: DIACO XX-295 | P126: 150 | Q126: 44.17864669 | R126: 44.17864669 | S126: 7.5 | T126: 7.5
O127: DIACO XX-335 | P127: 150 | Q127: 50.26548246 | R127: 50.26548246 | S127: 8 | T127: 8
O128: DIACO XX-378 | P128: 150 | Q128: 56.74501731 | R128: 56.74501731 | S128: 8.5 | T128: 8.5

Sheet Estanteria Individual
A1: Diseño de Pisos Industriales (Carga Estantería Individual) Según Reporte Técnico TR34 - Concrete Industrial Ground Floors: A guide to Design and Construction, 3ra Edición, Concrete Society, UK
A7: Descripción del Proyecto:
A9: 1. Parámetro del Suelo:
B11: Módulo de Subrasante | C11: k | D11: 0.053 | E11: N/mm3
A13: 2. Parámetros del Concreto:
B15: Determinación del módulo de Rotura
B17: Resistencia a Compresión a los 28 días | C17: fck | D17: 29 | E17: MPa
B19: Módulo de Rotura | C19: fctm | D19: 4.108880748 | E19: MPa
B21: Dosificacion fibra FIBRAPLAS Concrete | C21: Dfb | D21: 3.2 | E21: kg/m3
A24: 3. Parámetros Geométricos y Carga Máxima:
B35: Dimensión A en platina de base | C35: A = | D35: 100 | E35: mm
B37: Dimensión B en platina de base | C37: B = | D37: 100 | E37: mm
B39: Carga Estática Máxima | C39: Q1 | D39: 40 | E39: kN
B41: Factor Parcial de Seguridad para las cargas de diseño | D41: 1.3
B43: Factor Global de Seguridad para las cargas de diseño | D43: =FS_parcial*gc -> 1.95
B45: Espesor de piso | C45: h | D45: 130.2001299 | E45: mm
B53: Espesor mínimo del piso (carga interna) | C53: h | D53: 88.89082287 | E53: mm
B54: Espesor mínimo del piso (carga de borde) | C54: h | D54: 90.73876153 | E54: mm
B55: Espesor mínimo del piso (carga de esquina) | C55: h | D55: 130.2001299 | E55: mm
A58: 4. Condición interna:
B66: Carga Estática Última Requerida | C66: Q1,ult | D66: =gf1_*Q1_ -> 52 | E66: kN
B67: Capacidad Última bajo Carga Concentrada a/l = 0 | C67: Pu,1 | D67: =2*PI()*(Mp+Mn) -> 88.46973661 | E67: kN
B68: Capacidad Última bajo Carga Concentrada a/l > 0.2 | C68: Pu,2 | D68: =4*PI()*(Mp+Mn)/((1-a/(3*l))) -> 182.8083161 | E68: kN
B69: Capacidad Última bajo Carga Concentrada a/l | C69: Pu,3 | D69: =IF(a_l<=0.2,Pu_1+(Pu_2-Pu_1)*(a_l/0.2),Pu_2) -> 133.8991496 | E69: kN
B70: Índice de Capacidad para cargas internas | C70: Pu,3/Q1,ult | D70: =Pu_3/Q1_ult -> 2.574983646 | E70: =IF(D70>=1,"O.K","NO CUMPLE") -> O.K
B71: Factor de Seguridad Global | C71: FS | D71: =(Pu_3*gc)/(Q1_ult/FS_parcial) -> 5.021218109
A74: Perforación por Corte
B77: Esfuerzo cortante máximo | C77: vmax | D77: =0.5*k2_*fcd -> 5.1272 | E77: N/mm2
B78: Longitud del perímetro en la cara del área cargada (caso interior) | C78: u0,1 | D78: =2*(AA_1+BB_1) -> 400 | E78: mm
B79: Esfuerzo cortante actuante máximo (caso interior) | C79: vp,1 | D79: =Q1_ult*1000/(u0_1*d) -> 1.331283874 | E79: N/mm2
B80: Índice de Capacidad a Perforación por cargas internas | C80: Pp,max1/Q1,ult | D80: =Pp_max1/Q1_ult -> 3.851319842 | E80: =IF(vmax>vp_1,"O.K","No Cumple") -> O.K
B81: Factor de Seguridad Global | C81: FS | D81: =(Pp_max1*gc)/(Q1_ult/FS_parcial) -> 7.510073692
B83: Longitud del perímetro critico (caso interior) | C83: u1,1 | D83: =2*(AA_1+BB_1+PI()*2*d) -> 1627.107315 | E83: mm
B84: Máxima capacidad en perímetro crítico (caso interior) | C84: Pp,max5 | D84: =+Pp_max5 -> 101.1288735 | E84: kN
B85: Índice de Capacidad a Perforación por cargas internas en perímetro crítico | C85: Pp,max5/Q1,ult | D85: =Pp_max5/Q1_ult -> 1.94478603 | E85: =IF(D85>=1,"O.K","NO CUMPLE") -> O.K
B86: Factor de Seguridad Global | C86: FS | D86: =(Pp_max5*gc)/(Q1_ult/FS_parcial) -> 3.792332758
A89: 5. Condición de borde:
B102: Carga Estática Última Requerida para bordes entre paneles | C102: Q1,ult,jb | D102: =gf1_*Q1_*0.6 -> 31.2 | E102: kN
B103: Capacidad Última bajo Carga Concentrada a/l = 0 | C103: Pu,4 | D103: =(PI()*(Mp+Mn)/2)+2*Mn -> 43.78758297 | E103: kN
B104: Capacidad Última bajo Carga Concentrada a/l > 0.2 | C104: Pu,5 | D104: =(PI()*(Mp+Mn)+4*Mn)/((1-(2*a)/(3*l))) -> 93.58396928 | E104: kN
B105: Capacidad Última bajo Carga Concentrada a/l | C105: Pu,6 | D105: =IF(a_l<=0.2,Pu_4+(Pu_5-Pu_4)*(a_l/0.2),Pu_5) -> 67.76738647 | E105: kN
B106: Índice de Capacidad para bordes entre paneles | C106: Pu,6/Q1,ult,jb | D106: =Pu_6/Q1_ult_jb -> 2.172031618 | E106: =IF(D106>=1,"O.K","NO CUMPLE") -> O.K
B107: Factor de Seguridad Global | C107: FS | D107: =(Pu_6*gc)/(Q1_ult_jb/FS_parcial) -> 4.235461654
A110: Perforación por Corte
B114: Esfuerzo cortante máximo | C114: vmax | D114: =0.5*k2_*fcd -> 5.1272 | E114: N/mm2
B115: Longitud del perímetro en la cara del área cargada (caso borde 1) | C115: u0,2 | D115: =2*(AA_1)+BB_1 -> 300 | E115: mm
B116: Longitud del perímetro en la cara del área cargada (caso borde 2) | C116: u0,3 | D116: =AA_1+2*BB_1 -> 300 | E116: mm
B117: Esfuerzo cortante actuante máximo (caso borde 1) | C117: vp,2 | D117: =Q1_ult_jb*1000/(u0_2*d) -> 1.065027099 | E117: N/mm2
B118: Esfuerzo cortante actuante máximo (caso borde 2) | C118: vp,3 | D118: =Q1_ult_jb*1000/(u0_3*d) -> 1.065027099 | E118: N/mm2
B119: Índice de Capacidad a Perforación por cargas de borde | C119: Pp,max2,3/Q1,ult,jb | D119: =MIN(Pp_max2,Pp_max3)/Q1_ult_jb -> 4.814149803 | E119: =IF(vmax>vp_1,"O.K","No Cumple") -> O.K
B120: Factor de Seguridad Global | C120: FS | D120: =(MIN(Pp_max2,Pp_max3)*gc)/(Q1_ult_jb/FS_parcial) -> 9.387592115
B122: Longitud del perímetro critico (caso borde 1) | C122: u1,2 | D122: =2*(AA_1)+BB_1+PI()*2*d -> 913.5536573 | E122: mm
B123: Longitud del perímetro crítico (caso borde 2) | C123: u1,3 | D123: =AA_1+2*BB_1+PI()*2*d -> 913.5536573 | E123: mm
B124: Máxima capacidad en perímetro crítico (caso borde 1) | C124: Pp,max6 | D124: =+Pp_max6 -> 56.77969207 | E124: kN
B125: Máxima capacidad en perímetro crítico (caso borde 2) | C125: Pp,max7 | D125: =+Pp_max7 -> 56.77969207 | E125: kN
B126: Índice de Capacidad a Perforación por cargas de borde en perímetro crítico | C126: Pp,max6/Q1,ult,jb | D126: =MIN(Pp_max6,Pp_max7)/Q1_ult_jb -> 1.819861925 | E126: =IF(D126>=1,"O.K","NO CUMPLE") -> O.K
B127: Factor de Seguridad Global | C127: FS | D127: =(MIN(Pp_max6,Pp_max7)*gc)/(Q1_ult_jb/FS_parcial) -> 3.548730754
A130: 6. Condición de esquina:
B143: Carga Estática Última Requerida para esquinas entre paneles | C143: Q1,ult,ep | D143: =gf1_*Q1_*0.6 -> 31.2 | E143: kN
B144: Capacidad Última bajo Carga Concentrada a/l = 0 | C144: Pu,7 | D144: =2*Mn -> 21.67014882 | E144: kN
B145: Capacidad Última bajo Carga Concentrada a/l > 0.2 | C145: Pu,8 | D145: =4*Mn/((1-a_l)) -> 47.95932871 | E145: kN
B146: Capacidad Última bajo Carga Concentrada a/l | C146: Pu,9 | D146: =IF(a_l<=0.2,Pu_7+(Pu_8-Pu_7)*(a_l/0.2),Pu_8) -> 34.32989011 | E146: kN
B147: Índice de Capacidad para esquinas entre paneles | C147: Pu,9/Q1,ult,ep | D147: =Pu_9/Q1_ult_ep -> 1.100316991 | E147: =IF(D147>=1,"O.K","NO CUMPLE") -> O.K
B148: Factor de Seguridad Global | C148: FS | D148: =(Pu_9*gc)/(Q1_ult_ep/FS_parcial) -> 2.145618132
A151: Perforación por Corte
B155: Esfuerzo cortante máximo | C155: vmax | D155: =0.5*k2_*fcd -> 5.1272 | E155: N/mm2
B156: Longitud del perímetro en la cara del área cargada (caso esquina ) | C156: u0,4 | D156: =(AA_1)+BB_1 -> 200 | E156: mm
B157: Esfuerzo cortante actuante máximo (caso esquina) | C157: vp,4 | D157: =Q1_ult_ep*1000/(u0_4*d) -> 1.597540649 | E157: N/mm2
B158: Índice de Capacidad a Perforación por cargas esquina | C158: Pp,max4/Q1,ep | D158: =Pp_max4/Q1_ult_ep -> 3.209433202 | E158: =IF(vmax>vp_1,"O.K","No Cumple") -> O.K
B159: Factor de Seguridad Global | C159: FS | D159: =(Pp_max4*gc)/(Q1_ult_ep/FS_parcial) -> 6.258394744
B161: Longitud del perímetro crítico (caso esquina ) | C161: u1,4 | D161: =(AA_1)+BB_1+PI()/2*2*d -> 506.7768287 | E161: mm
B162: Máxima capacidad en perímetro crítico (caso esquina) | C162: Pp,max8 | D162: =+Pp_max8 -> 31.49747368 | E162: kN
B163: Índice de Capacidad a Perforación por cargas de esquina en perímetro crítico | C163: Pp,max8/Q1,ult,ep | D163: =Pp_max8/Q1_ult_ep -> 1.009534413 | E163: =IF(D163>=1,"O.K","NO CUMPLE") -> O.K
B164: Factor de Seguridad Global | C164: FS | D164: =(Pp_max8*gc)/(Q1_ult_ep/FS_parcial) -> 1.968592105
F170: FS_Interno | G170: =MIN(Pu_3/Q1_ult,Pp_max1/Q1_ult,Pp_max5/Q1_ult) -> 1.94478603 | M170: Calculado
F171: FS_Borde | G171: =MIN(Pu_6/Q1_ult_jb,Pp_max2/Q1_ult_jb,Pp_max6/Q1_ult_jb) -> 1.819861925 | M171: Definido por el usuario
F172: FS_Esquina | G172: =MIN(Pu_9/Q1_ult_ep,Pp_max4/Q1_ult_ep,Pp_max8/Q1_ult_ep) -> 1.009534413 | M172: 1
G174: Resistencia característica a la compresión (cubo) | H174: fcu | I174: =1.47*fck-6.6 -> 36.03 | J174: N/mm2
G175: Resistencia a la compresión promedio (cilíndro) | H175: fcm | I175: =+fck+8 -> 37 | J175: N/mm2
G176: Resistencia a la tensión axial promedio | H176: fctm | I176: =fr -> 4.108880748 | J176: N/mm2
G177: Resistencia característica a la tensión axial (5% fractura) | H177: fctk(0.05) | I177: =0.7*fctm -> 2.876216523 | J177: N/mm2
G178: Módulo de rigidez secante | H178: Ecm | I178: =22*(fcm/10)^0.3*1000 -> 32574.90802 | J178: N/mm2
G179: Resistencia caracterísitica a la flexión del concreto plano | H179: fctk,fl | I179: =MIN(2,(1+(200/h)^0.5))*fctk_0.05 -> 5.752433047 | J179: N/mm2
G180: Espesor efectivo de la losa | H180: d | I180: =0.75*h -> 97.65009742 | J180: mm
G181: Factor No. 1 para cálculos de resistencia al corte | H181: k1 | I181: =IF(1+(200/d)^0.5<2,1+(200/d)^0.5,2) -> 2
G182: Resistencia mínima del concreto al corte | H182: vRd,ct | I182: =0.035*k1_^(3/2)*fck^(1/2) -> 0.5331041174 | J182: N/mm2
G183: Rigidez de la losa | H183: k3 | I183: =Ecm*h^3/(12*(1-n^2))/1000000 -> 6241.155043 | J183: MN.mm
G184: Índice de rigidez relativa | H184: l | I184: =(Ecm*h^3/(12*(1-n^2)*k))^0.25 -> 585.7971784 | J184: mm
G185: Índice de resistencia a flexión equivalente | H185: Re,3 | I185: 29.952 | J185: %
G186: Momento resistente último negativo de la losa | H186: Mn | I186: =fctk_fl/gc*(h^2/6)/1000 -> 10.83507441 | J186: kN
G187: Momento resistente último positivo de la losa | H187: Mp | I187: =fctk_fl/gc*(Re_3/100)*(h^2/6)/1000 -> 3.245321487 | J187: kN
G189: Índice a/l | H189: a/l | I189: =+a/l -> 0.09631142047
G191: CARGAS INTERNAS
G209: CONSTANTES
G210: Relación de Poisson | H210: n | I210: 0.2
G211: Factor parcial de seguridad para barras de acero y mallas electrosoldadas con resistencia característica menor o igual a 460 Mpa | H211: gs1 | I211: 1.05
G212: Factor parcial de seguridad para barras de acero y mallas electrosoldadas con resistencia característica mayor a 460 Mpa | H212: gs2 | I212: 1.15
G213: Factor parcial de seguridad para concreto plano y concreto reforzado con fibras | H213: gc | I213: 1.5
G214: Factor parcial de seguridad frente a acciones permanentes (estantes) | H214: gf1 | I214: =FS_parcial -> 1.3
G215: Factor parcial de seguridad frente a acciones variables (cargas aleatorias) | H215: gf2 | I215: 1.5
G216: Factor parcial de seguridad frente a acciones dinámicas (montacargas y maquinaria sometida a vibración) | H216: gf3 | I216: 1.6
G217: Radio del área de contacto equivalente | H217: a | I217: =SQRT((AA_1*BB_1)/PI()) -> 56.41895835 | J217: mm
G222: Punzonamiento
G240: Resistencia de diseño a compresión del concreto | H240: fcd | I240: =fck/gc -> 19.33333333 | J240: N/mm2
H241: k2 | I241: =0.6*(1-fck/250) -> 0.5304
G242: Esfuerzo cortante máximo | H242: vmax | I242: =0.5*k2_*fcd -> 5.1272 | J242: N/mm2
G243: Longitud del perímetro en la cara del área cargada (caso interior) | H243: u0,1 | I243: =2*(AA_1+BB_1) -> 400 | J243: mm
G244: Longitud del perímetro en la cara del área cargada (caso borde 1) | H244: u0,2 | I244: =2*(AA_1)+BB_1 -> 300 | J244: mm
G245: Longitud del perímetro en la cara del área cargada (caso borde 2) | H245: u0,3 | I245: =AA_1+2*BB_1 -> 300 | J245: mm
G246: Longitud del perímetro en la cara del área cargada (caso esquina ) | H246: u0,4 | I246: =(AA_1)+BB_1 -> 200 | J246: mm
G247: Esfuerzo cortante actuante máximo (caso interior) | H247: vp,1 | I247: =Q1_ult*1000/(u0_1*d) -> 1.331283874 | J247: N/mm2 | K247: =IF(vmax>vp_1,"O.K","No Cumple") -> O.K
G248: Esfuerzo cortante actuante máximo (caso borde 1) | H248: vp,2 | I248: =Q1_ult_jb*1000/(u0_2*d) -> 1.065027099 | J248: N/mm2 | K248: =IF(vmax>vp_2,"O.K","No Cumple") -> O.K
G249: Esfuerzo cortante actuante máximo (caso borde 2) | H249: vp,3 | I249: =Q1_ult_jb*1000/(u0_3*d) -> 1.065027099 | J249: N/mm2 | K249: =IF(vmax>vp_3,"O.K","No Cumple") -> O.K
G250: Esfuerzo cortante actuante máximo (caso esquina) | H250: vp,4 | I250: =Q1_ult_ep*1000/(u0_4*d) -> 1.597540649 | J250: N/mm2 | K250: =IF(vmax>vp_4,"O.K","No Cumple") -> O.K
G253: Máxima capacidad de carga frente a perforación por corte (caso interior) | H253: Pp,max1 | I253: =vmax*u0_1*d/1000 -> 200.2686318 | J253: kN
G254: Máxima capacidad de carga frente a perforación por corte (caso borde 1) | H254: Pp,max2 | I254: =vmax*u0_2*d/1000 -> 150.2014738 | J254: kN
G255: Máxima capacidad de carga frente a perforación por corte (caso borde 1) | H255: Pp,max3 | I255: =vmax*u0_3*d/1000 -> 150.2014738 | J255: kN
G256: Máxima capacidad de carga frente a perforación por corte (caso esquina) | H256: Pp,max4 | I256: =vmax*u0_4*d/1000 -> 100.1343159 | J256: kN
G257: Longitud del perímetro critico (caso interior) | H257: u1,1 | I257: =2*(AA_1+BB_1+PI()*2*d) -> 1627.107315 | J257: mm
G258: Longitud del perímetro critico (caso borde 1) | H258: u1,2 | I258: =2*(AA_1)+BB_1+PI()*2*d -> 913.5536573 | J258: mm
G259: Longitud del perímetro crítico (caso borde 2) | H259: u1,3 | I259: =AA_1+2*BB_1+PI()*2*d -> 913.5536573 | J259: mm
G260: Longitud del perímetro crítico (caso esquina ) | H260: u1,4 | I260: =(AA_1)+BB_1+PI()/2*2*d -> 506.7768287 | J260: mm
G261: Máxima capacidad en perímetro crítico (caso interior) | H261: Pp,max5 | I261: =(0.035*k1_^(3/2)*fck^(1/2)+0.06*Re_3/100*fctk_fl)*u1_1*d/1000 -> 101.1288735 | J261: kN
G262: Máxima capacidad en perímetro crítico (caso borde 1) | H262: Pp,max6 | I262: =(0.035*k1_^(3/2)*fck^(1/2)+0.06*Re_3/100*fctk_fl)*u1_2*d/1000 -> 56.77969207 | J262: kN
G263: Máxima capacidad en perímetro crítico (caso borde 2) | H263: Pp,max7 | I263: =(0.035*k1_^(3/2)*fck^(1/2)+0.06*Re_3/100*fctk_fl)*u1_3*d/1000 -> 56.77969207 | J263: kN
G264: Máxima capacidad en perímetro crítico (caso esquina) | H264: Pp,max8 | I264: =(0.035*k1_^(3/2)*fck^(1/2)+0.06*Re_3/100*fctk_fl)*u1_4*d/1000 -> 31.49747368 | J264: kN

Sheet Montacargas Dual
A1: Diseño de Pisos Industriales (Carga Montacargas) Según Reporte Técnico TR34 - Concrete Industrial Ground Floors: A guide to Design and Construction, 3ra Edición, Concrete Society, UK
A7: Descripción del Proyecto:
A9: 1. Parámetro del Suelo:
B11: Módulo de Subrasante | C11: k | D11: 0.0539 | E11: N/mm3
A13: 2. Parámetros del Concreto:
B15: Determinación del módulo de Rotura
B17: Resistencia a Compresión a los 28 días | C17: fck | D17: 29 | E17: MPa
B19: Módulo de Rotura | C19: fctm | D19: 4.108880748 | E19: MPa
B21: Dosificacion fibra FIBRAPLAS Concrete | C21: Dfb | D21: 3.2 | E21: kg/m3
A24: 3. Parámetros Geométricos y Carga Máxima:
B36: Presión de Inflado | C36: q1 = | D36: 180 | E36: psi
D37: =qq_1*6.895 -> 1241.1 | E37: kPa
D38: =+AA_1/100 -> 12.411 | E38: bar
B40: Carga Estática Máxima del Eje Crítico | C40: Q1 = | D40: 80 | E40: kN
B42: Dist. Centro Geométrico de Cargas | C42: S = | D42: 850 | E42: mm
B44: Dist. Centro Geométrico de Cargas (dual) | C44: Sd = | D44: 0 | E44: mm
B47: Factor Parcial de Seguridad para las cargas de diseño | D47: 1.6
B49: Factor Global de Seguridad para las cargas de diseño | D49: =FS_parcial*gc -> 2.4
B51: Espesor de piso | C51: h | D51: 130.0062208 | E51: mm
B58: Espesor mínimo del piso (carga interna) | C58: h | D58: 90.77153264 | E58: mm
B59: Espesor mínimo del piso (carga de borde) | C59: h | D59: 101.8553975 | E59: mm
B60: Espesor mínimo del piso (carga de esquina) | C60: h | D60: 130.0062208 | E60: mm
A63: 4. Condición interna:
B71: Carga Estática Última Requerida | C71: Q1,ult | D71: =IF(Z>0,IF(Z<=2*h,gf3_*2*Q1_/F_Carga,gf3_*Q1_/F_Carga),IF(BB_1<=2*h,gf3_*2*Q1_/F_Carga,gf3_*Q1_/F_Carga)) -> 64 | E71: kN
B72: Capacidad Última bajo Carga Concentrada a/l = 0 | C72: Pu,1 | D72: =VLOOKUP(Caso_dual,OFFSET(cod_pu,,,,3),2,0) -> 88.20641408 | E72: kN
B73: Capacidad Última bajo Carga Concentrada a/l > 0.2 | C73: Pu,2 | D73: =VLOOKUP(Caso_dual,OFFSET(cod_pu,,,,3),3,0) -> 187.2633232 | E73: kN
B74: Capacidad Última bajo Carga Concentrada a/l | C74: Pu,3 | D74: =IF(a_l<=0.2,Pu_1+(Pu_2-Pu_1)*(a_l/0.2),Pu_2) -> 174.3004089 | E74: kN
B75: Índice de Capacidad para cargas internas | C75: Pu,3/Q1,ult | D75: =Pu_3/Q1_ult -> 2.723443889 | E75: =IF(D75>=1,"O.K","NO CUMPLE") -> O.K
B76: Factor de Seguridad Global | C76: FS | D76: =(Pu_3*gc)/(Q1_ult/FS_parcial) -> 6.536265334
A79: Perforación por Corte
B82: Esfuerzo cortante máximo | C82: vmax | D82: =0.5*k2_*fcd -> 5.1272 | E82: N/mm2
B83: Longitud del perímetro en la cara del área cargada (caso interior) | C83: u0,1 | D83: =IF(Z<=2*h,2*(Z+PI()*a),2*(PI()*a)) -> 636.4020059 | E83: mm
B84: Esfuerzo cortante actuante máximo (caso interior) | C84: vp,1 | D84: =Q1_ult*1000/(u0_1*d) -> 1.031390287 | E84: N/mm2
B85: Índice de Capacidad a Perforación por cargas internas | C85: Pp,max1/Q1,ult | D85: =Pp_max1/Q1_ult -> 4.97115405 | E85: =IF(vmax>vp_1,"O.K","No Cumple") -> O.K
B86: Factor de Seguridad Global | C86: FS | D86: =(Pp_max1*gc)/(Q1_ult/FS_parcial) -> 11.93076972
B89: Longitud del perímetro critico (caso interior) | C89: u1,1 | D89: =IF(Z<=2*h,2*(Z+PI()*a+PI()*2*d),2*(PI()*a+PI()*2*d)) -> 1861.68177 | E89: mm
B90: Máxima capacidad en perímetro crítico (caso interior) | C90: Pp,max5 | D90: =+Pp_max5 -> 115.5359486 | E90: kN
B91: Índice de Capacidad a Perforación por cargas internas en perímetro crítico | C91: Pp,max5/Q1,ult | D91: =Pp_max5/Q1_ult -> 1.805249198 | E91: =IF(D91>=1,"O.K","NO CUMPLE") -> O.K
B92: Factor de Seguridad Global | C92: FS | D92: =(Pp_max5*gc)/(Q1_ult/FS_parcial) -> 4.332598074
A95: 5. Condición de borde:
B108: Carga Estática Última Requerida para bordes entre paneles | C108: Q1,ult,jb | D108: =IF(Z>0,IF(Z<=2*h,gf3_*2*Q1_/F_Carga*0.6,gf3_*Q1_/F_Carga*0.6),IF(BB_1<=2*h,gf3_*2*Q1_/F_Carga*0.6,gf3_*Q1_/F_Carga*0.6)) -> 38.4 | E108: kN
B109: Capacidad Última bajo Carga Concentrada a/l = 0 | C109: Pu,4 | D109: =0.5*Pu_1 -> 44.10320704 | E109: kN
B110: Capacidad Última bajo Carga Concentrada a/l > 0.2 | C110: Pu,5 | D110: =0.5*Pu_2 -> 93.63166162 | E110: kN
B111: Capacidad Última bajo Carga Concentrada a/l | C111: Pu,6 | D111: =IF(a_l<=0.2,Pu_4+(Pu_5-Pu_4)*(a_l/0.2),Pu_5) -> 87.15020445 | E111: kN
B112: Índice de Capacidad para bordes entre paneles | C112: Pu,6/Q1,ult,jb | D112: =Pu_6/Q1_ult_jb -> 2.269536574 | E112: =IF(D112>=1,"O.K","NO CUMPLE") -> O.K
B113: Factor de Seguridad Global | C113: FS | D113: =(Pu_6*gc)/(Q1_ult_jb/FS_parcial) -> 5.446887778
A117: Perforación por Corte
B121: Esfuerzo cortante máximo | C121: vmax | D121: =0.5*k2_*fcd -> 5.1272 | E121: N/mm2
B122: Longitud del perímetro en la cara del área cargada (caso borde 1) | C122: u0,2 | D122: =IF(Z<=2*h,Z+u0_2,u0_2) -> 477.3015044 | E122: mm
B123: Longitud del perímetro en la cara del área cargada (caso borde 2) | C123: u0,3 | D123: =IF(Z<=2*'Montacargas Dual'!h,Z+'Montacargas Dual'!BB_1+2*'Montacargas Dual'!AA_1,2*(AA_1)+BB_1) -> 3332.2 | E123: mm
B124: Esfuerzo cortante actuante máximo (caso borde 1) | C124: vp,2 | D124: =Q1_ult*1000/(u0_2*d) -> 1.375187049 | E124: N/mm2
B125: Esfuerzo cortante actuante máximo (caso borde 2) | C125: vp,3 | D125: =Q1_ult*1000/(u0_3*d) -> 1.375187049 | E125: N/mm2
B126: Índice de Capacidad a Perforación por cargas de borde | C126: Pp,max2,3/Q1,ult,jb | D126: =MIN(Pp_max2,Pp_max3)/Q1_ult_jb -> 6.213942562 | E126: =IF(vmax>vp_1,"O.K","No Cumple") -> O.K
B127: Factor de Seguridad Global | C127: FS | D127: =(MIN(Pp_max2,Pp_max3)*gc)/(Q1_ult_jb/FS_parcial) -> 14.91346215
B129: Longitud del perímetro critico (caso borde 1) | C129: u1,2 | D129: =IF(Z<=2*h,Z+PI()*(a+2*d),PI()*(a+2*d)) -> 930.8408851 | E129: mm
B130: Longitud del perímetro crítico (caso borde 2) | C130: u1,3 | D130: =IF(Z<=2*h,Z+BB_1+2*AA_1+PI()*2*d,2*(BB_1)+AA_1+PI()*2*d) -> 3944.839882 | E130: mm
B131: Máxima capacidad en perímetro crítico (caso borde 1) | C131: Pp,max6 | D131: =+Pp_max6 -> 57.76797432 | E131: kN
B132: Máxima capacidad en perímetro crítico (caso borde 2) | C132: Pp,max7 | D132: =+Pp_max7 -> 57.76797432 | E132: kN
B133: Índice de Capacidad a Perforación por cargas de borde en perímetro crítico | C133: Pp,max6/Q1,ult,jb | D133: =MIN(Pp_max6,Pp_max7)/Q1_ult_jb -> 1.504374331 | E133: =IF(D133>=1,"O.K","NO CUMPLE") -> O.K
B134: Factor de Seguridad Global | C134: FS | D134: =(MIN(Pp_max6,Pp_max7)*gc)/(Q1_ult_jb/FS_parcial) -> 3.610498395
A137: 6. Condición de esquina:
B150: Carga Estática Última Requerida para esquinas entre paneles | C150: Q1,ult,ep | D150: =IF(Z>0,IF(Z<=2*h,gf3_*2*Q1_/F_Carga*0.6,gf3_*Q1_/F_Carga*0.6),IF(BB_1<=2*h,gf3_*2*Q1_/F_Carga*0.6,gf3_*Q1_/F_Carga*0.6)) -> 38.4 | E150: kN
B151: Capacidad Última bajo Carga Concentrada a/l = 0 | C151: Pu,7 | D151: =0.5*Pu_1 -> 44.10320704 | E151: kN
B152: Capacidad Última bajo Carga Concentrada a/l > 0.2 | C152: Pu,8 | D152: =0.5*Pu_2 -> 93.63166162 | E152: kN
B153: Capacidad Última bajo Carga Concentrada a/l | C153: Pu,9 | D153: =IF(a_l<=0.2,Pu_7+(Pu_8-Pu_7)*(a_l/0.2),Pu_8) -> 87.15020445 | E153: kN
B154: Índice de Capacidad para esquinas entre paneles | C154: Pu,9/Q1,ult,ep | D154: =IF(Pu_9/Q1_ult_ep>0,Pu_9/Q1_ult_ep,"revisar") -> 2.269536574 | E154: =IF(D154>=1,"O.K","NO CUMPLE") -> O.K
B155: Factor de Seguridad Global | C155: FS | D155: =IF((Pu_9*gc)/(Q1_ult_ep/FS_parcial)>0,(Pu_9*gc)/(Q1_ult_ep/FS_parcial),"revisar") -> 5.446887778
A158: Perforación por Corte
B162: Esfuerzo cortante máximo | C162: vmax | D162: =0.5*k2_*fcd -> 5.1272 | E162: N/mm2
B163: Longitud del perímetro en la cara del área cargada (caso esquina ) | C163: u0,4 | D163: =IF(Z<=2*h,Z+u0_4,u0_4) -> 318.201003 | E163: mm
B164: Esfuerzo cortante actuante máximo (caso esquina) | C164: vp,4 | D164: =Q1_ult_ep*1000/(u0_4*d) -> 1.237668344 | E164: N/mm2
B165: Índice de Capacidad a Perforación por cargas esquina | C165: Pp,max4/Q1,ult,ep | D165: =Pp_max4/Q1_ult_ep -> 4.142628375 | E165: =IF(vmax>vp_1,"O.K","No Cumple") -> O.K
B166: Factor de Seguridad Global | C166: FS | D166: =(Pp_max4*gc)/(Q1_ult_ep/FS_parcial) -> 9.942308099
B168: Longitud del perímetro crítico (caso esquina ) | C168: u1,4 | D168: =IF(Z<=2*h,Z+PI()/2*(2*a+2*d),PI()/2*(2*a+2*d)) -> 624.520944 | E168: mm
B169: Máxima capacidad en perímetro crítico (caso esquina) | C169: Pp,max8 | D169: =+Pp_max8 -> 38.7577624 | E169: kN
B170: Índice de Capacidad a Perforación por cargas de esquina en perímetro crítico | C170: Pp,max8/Q1,ult,ep | D170: =Pp_max8/Q1_ult_ep -> 1.009316729 | E170: =IF(D170>=1,"O.K","NO CUMPLE") -> O.K
B171: Factor de Seguridad Global | C171: FS | D171: =(Pp_max8*gc)/(Q1_ult_ep/FS_parcial) -> 2.42236015
H178: FS_Interno | I178: =MIN(Pu_3/Q1_ult,Pp_max1/Q1_ult,Pp_max5/Q1_ult) -> 1.805249198 | K178: Calculado
H179: FS_Borde | I179: =MIN(Pu_6/Q1_ult_jb,Pp_max2/Q1_ult_jb,Pp_max6/Q1_ult_jb) -> 1.504374331 | K179: Definido por el usuario
H180: FS_Esquina | I180: =MIN(Pu_9/Q1_ult_ep,Pp_max4/Q1_ult_ep,Pp_max8/Q1_ult_ep) -> 1.009316729 | K180: 1
I184: Resistencia característica a la compresión (cubo) | J184: fcu | K184: =1.47*fck-6.6 -> 36.03 | L184: N/mm2
I185: Resistencia a la compresión promedio (cilíndro) | J185: fcm | K185: =+fck+8 -> 37 | L185: N/mm2
I186: Resistencia a la tensión axial promedio | J186: fctm | K186: =fr -> 4.108880748 | L186: N/mm2
I187: Resistencia característica a la tensión axial (5% fractura) | J187: fctk(0.05) | K187: =0.7*fctm -> 2.876216523 | L187: N/mm2
I188: Módulo de rigidez secante | J188: Ecm | K188: =22*(fcm/10)^0.3*1000 -> 32574.90802 | L188: N/mm2
I189: Resistencia caracterísitica a la flexión del concreto plano | J189: fctk,fl | K189: =MIN(2,(1+(200/h)^0.5))*fctk_0.05 -> 5.752433047 | L189: N/mm2
I190: Espesor efectivo de la losa | J190: d | K190: =0.75*h -> 97.50466558 | L190: mm
I191: Factor No. 1 para cálculos de resistencia al corte | J191: k1 | K191: =IF(1+(200/d)^0.5<2,1+(200/d)^0.5,2) -> 2
I192: Resistencia mínima del concreto al corte | J192: vRd,ct | K192: =0.035*k1_^(3/2)*fck^(1/2) -> 0.5331041174 | L192: N/mm2
I193: Rigidez de la losa | J193: k3 | K193: =Ecm*h^3/(12*(1-n^2))/1000000 -> 6213.311398 | L193: MN.mm
I194: Índice de rigidez relativa | J194: l | K194: =(Ecm*h^3/(12*(1-n^2)*k))^0.25 -> 582.6846652 | L194: mm
I195: Índice de resistencia a flexión equivalente | J195: Re,3 | K195: 29.952 | L195: %
I196: Momento resistente último negativo de la losa | J196: Mn | K196: =fctk_fl/gc*(h^2/6)/1000 -> 10.80282475 | L196: kN
I197: Momento resistente último positivo de la losa | J197: Mp | K197: =fctk_fl/gc*(Re_3/100)*(h^2/6)/1000 -> 3.235662068 | L197: kN
I199: Índice a/l | J199: a/l | K199: =+a/l -> 0.1738273393
I201: CARGAS INTERNAS
I221: CONSTANTES
I222: Relación de Poisson | J222: n | K222: 0.2
I223: Factor parcial de seguridad para barras de acero y mallas electrosoldadas con resistencia característica menor o igual a 460 Mpa | J223: gs1 | K223: 1.05
I224: Factor parcial de seguridad para barras de acero y mallas electrosoldadas con resistencia característica mayor a 460 Mpa | J224: gs2 | K224: 1.15
I225: Factor parcial de seguridad para concreto plano y concreto reforzado con fibras | J225: gc | K225: 1.5
I226: Factor parcial de seguridad frente a acciones permanentes (estantes) | J226: gf1 | K226: 1.2
I227: Factor parcial de seguridad frente a acciones variables (cargas aleatorias) | J227: gf2 | K227: 1.5
I228: Factor parcial de seguridad frente a acciones dinámicas (montacargas y maquinaria sometida a vibración) | J228: gf3 | K228: =FS_parcial -> 1.6
I229: Radio del área de contacto equivalente | J229: a | K229: =SQRT(((Q1_/AA_1)/F_Carga)/PI())*1000 -> 101.286525 | L229: mm
I230: Área de contacto equivalente combinada | J230: Acomb | K230: =IF(OR(Z<=2*h,BB_1<=2*h),(2*a*Z)+PI()*a^2,PI()*a^2) -> 32229.47385 | L230: mm
I231: Radio del área de contacto equivalente para el área combinada | J231: aequiv | K231: =SQRT((Acomb)/PI()) -> 101.286525 | L231: mm
I233: Factor de Carga | J233: F_Carga | K233: =IF(Z>0,4,2) -> 2
I250: Resistencia de diseño a compresión del concreto | J250: fcd | K250: =fck/gc -> 19.33333333 | L250: N/mm2
J251: k2 | K251: =0.6*(1-fck/250) -> 0.5304
I252: Esfuerzo cortante máximo | J252: vmax | K252: =0.5*k2_*fcd -> 5.1272 | L252: N/mm2
I253: Longitud del perímetro en la cara del área cargada (caso interior) | J253: u0,1 | K253: =2*(PI()*a) -> 636.4020059 | L253: mm
I254: Longitud del perímetro en la cara del área cargada (caso borde) | J254: u0,2 | K254: =3/2*(PI()*a) -> 477.3015044 | L254: mm
I255: Longitud del perímetro en la cara del área cargada (caso borde 2) | J255: u0,3 | K255: =3/2*(PI()*a) -> 477.3015044 | L255: mm
I256: Longitud del perímetro en la cara del área cargada (caso esquina ) | J256: u0,4 | K256: =(PI()*a) -> 318.201003 | L256: mm
I257: Esfuerzo cortante actuante máximo (caso interior) | J257: vp,1 | K257: =Q1_ult*1000/(u0_1*d) -> 1.031390287 | L257: N/mm2 | M257: =IF(vmax>vp_1,"O.K","No Cumple") -> O.K
I258: Esfuerzo cortante actuante máximo (caso borde 1) | J258: vp,2 | K258: =Q1_ult_jb*1000/(u0_2*d) -> 0.8251122293 | L258: N/mm2 | M258: =IF(vmax>vp_2,"O.K","No Cumple") -> O.K
I259: Esfuerzo cortante actuante máximo (caso borde 2) | J259: vp,3 | K259: =Q1_ult_jb*1000/(u0_3*d) -> 0.8251122293 | L259: N/mm2 | M259: =IF(vmax>vp_3,"O.K","No Cumple") -> O.K
I260: Esfuerzo cortante actuante máximo (caso esquina) | J260: vp,4 | K260: =Q1_ult_ep*1000/(u0_4*d) -> 1.237668344 | L260: N/mm2 | M260: =IF(vmax>vp_4,"O.K","No Cumple") -> O.K
I263: Máxima capacidad de carga frente a perforación por corte (caso interior) | J263: Pp,max1 | K263: =vmax*u0_1*d/1000 -> 318.1538592 | L263: kN
I264: Máxima capacidad de carga frente a perforación por corte (caso borde 1) | J264: Pp,max2 | K264: =vmax*u0_2*d/1000 -> 238.6153944 | L264: kN
I265: Máxima capacidad de carga frente a perforación por corte (caso borde 1) | J265: Pp,max3 | K265: =vmax*u0_3*d/1000 -> 238.6153944 | L265: kN
I266: Máxima capacidad de carga frente a perforación por corte (caso esquina) | J266: Pp,max4 | K266: =vmax*u0_4*d/1000 -> 159.0769296 | L266: kN
I267: Longitud del perímetro critico (caso interior) | J267: u1,1 | K267: =2*PI()*(a+2*d) -> 1861.68177 | L267: mm
I268: Longitud del perímetro critico (caso borde 1) | J268: u1,2 | K268: =PI()*(a+2*d) -> 930.8408851 | L268: mm
I269: Longitud del perímetro crítico (caso borde 2) | J269: u1,3 | K269: =PI()*(a+2*d) -> 930.8408851 | L269: mm
I270: Longitud del perímetro crítico (caso esquina ) | J270: u1,4 | K270: =PI()/2*(2*a+2*d) -> 624.520944 | L270: mm
I271: Máxima capacidad en perímetro crítico (caso interior) | J271: Pp,max5 | K271: =(0.035*k1_^(3/2)*fck^(1/2)+0.06*Re_3/100*fctk_fl)*u1_1*d/1000 -> 115.5359486 | L271: kN
I272: Máxima capacidad en perímetro crítico (caso borde 1) | J272: Pp,max6 | K272: =(0.035*k1_^(3/2)*fck^(1/2)+0.06*Re_3/100*fctk_fl)*u1_2*d/1000 -> 57.76797432 | L272: kN
I273: Máxima capacidad en perímetro crítico (caso borde 2) | J273: Pp,max7 | K273: =(0.035*k1_^(3/2)*fck^(1/2)+0.06*Re_3/100*fctk_fl)*u1_3*d/1000 -> 57.76797432 | L273: kN
I274: Máxima capacidad en perímetro crítico (caso esquina) | J274: Pp,max8 | K274: =(0.035*k1_^(3/2)*fck^(1/2)+0.06*Re_3/100*fctk_fl)*u1_4*d/1000 -> 38.7577624 | L274: kN
I280: Caso_dual | J280: =IF(AND(0<Z,Z<=2*h),1,IF(AND(0<Z,Z>2*h,Z<=l),2,IF(AND(0<Z,Z>l),3,IF(AND(Z=0,BB_1<=2*h),4,IF(AND(Z=0,BB_1>2*h,BB_1<=l),5,6))))) -> 6
J284: 1 | K284: =2*PI()*(Mp+Mn) -> 88.20641408 | L284: =4*PI()*(Mp+Mn)/((1-aequiv/(3*l))) -> 187.2633232
J285: 2 | K285: =(2*PI()+(1.8*BB_1/l))*(Mp+Mn) -> 125.0683501 | L285: =(4*PI()/((1-a/(3*l)))+1.8*Z/(l-(a/2)))*(Mp+Mn) -> 187.2633232
J286: 3 | K286: =2*PI()*(Mp+Mn) -> 88.20641408 | L286: =4*PI()*(Mp+Mn)/((1-a/(3*l))) -> 187.2633232
J287: 4 | K287: =2*PI()*(Mp+Mn) -> 88.20641408 | L287: =4*PI()*(Mp+Mn)/((1-aequiv/(3*l))) -> 187.2633232
J288: 5 | K288: =(2*PI()+(1.8*BB_1/l))*(Mp+Mn) -> 125.0683501 | L288: =(4*PI()/((1-a/(3*l)))+1.8*BB_1/(l-(a/2)))*(Mp+Mn) -> 227.6340251
J289: 6 | K289: =2*PI()*(Mp+Mn) -> 88.20641408 | L289: =4*PI()*(Mp+Mn)/((1-a/(3*l))) -> 187.2633232

Sheet Estanterias Contiguas
A1: Diseño de Pisos Industriales (Carga Estanterías Contiguas) Según Reporte Técnico TR34 - Concrete Industrial Ground Floors: A guide to Design and Construction, 3ra Edición, Concrete Society, UK
A7: Descripción del Proyecto:
A9: 1. Parámetro del Suelo:
B11: Módulo de Subrasante | C11: k | D11: 0.0539 | E11: N/mm3
A13: 2. Parámetros del Concreto:
B15: Determinación del módulo de Rotura
B17: Resistencia a Compresión a los 28 días | C17: fck | D17: 29 | E17: MPa
B19: Módulo de Rotura | C19: fctm | D19: 4.108880748 | E19: MPa
B21: Dosificacion fibra FIBRAPLAS Concrete | C21: Dfb | D21: 3.2 | E21: kg/m3
A24: 3. Parámetros Geométricos y Carga Máxima:
B35: Dimensión A en platina de base | C35: A = | D35: 100 | E35: mm
B37: Dimensión B en platina de base | C37: B = | D37: 100 | E37: mm
B39: Separación centro a centro entre postes de estanterias contiguas | C39: Z = | D39: 300 | E39: mm
B41: Carga Estática Máxima | C41: Q1 | D41: 40 | E41: kN
B43: Factor Parcial de Seguridad para las cargas de diseño | D43: 1.3
B45: Factor Global de Seguridad para las cargas de diseño | D45: =FS_parcial*gc -> 1.95
B47: Espesor de piso | C47: h | D47: 130.2001344 | E47: mm
B54: Espesor mínimo del piso (carga interna) | C54: h | D54: 88.85403668 | E54: mm
B55: Espesor mínimo del piso (carga de borde) | C55: h | D55: 90.73919621 | E55: mm
B56: Espesor mínimo del piso (carga de esquina) | C56: h | D56: 130.2001344 | E56: mm
A59: 4. Condición interna:
B67: Carga Estática Última Requerida | C67: Q1,ult | D67: =IF(Z<=2*h,gf1_*2*Q1_,gf1_*Q1_) -> 52 | E67: kN
B68: Capacidad Última bajo Carga Concentrada a/l = 0 | C68: Pu,1 | D68: =2*PI()*(Mp+Mn) -> 88.46974278 | E68: kN
B69: Capacidad Última bajo Carga Concentrada a/l > 0.2 | C69: Pu,2 | D69: =4*PI()*(Mp+Mn)/((1-aequiv/(3*l))) -> 182.8339112 | E69: kN
B70: Capacidad Última bajo Carga Concentrada a/l | C70: Pu,3 | D70: =IF(a_l<=0.2,Pu_1+(Pu_2-Pu_1)*(a_l/0.2),Pu_2) -> 134.1031737 | E70: kN
B71: Índice de Capacidad para cargas internas | C71: Pu,3/Q1,ult | D71: =Pu_3/Q1_ult -> 2.578907187 | E71: =IF(D71>=1,"O.K","NO CUMPLE") -> O.K
B72: Factor de Seguridad Global | C72: FS | D72: =(Pu_3*gc)/(Q1_ult/FS_parcial) -> 5.028869014
A75: Perforación por Corte
B78: Esfuerzo cortante máximo | C78: vmax | D78: =0.5*k2_*fcd -> 5.1272 | E78: N/mm2
B79: Longitud del perímetro en la cara del área cargada (caso interior) | C79: u0,1 | D79: =IF(Z<=2*'Estanterias Contiguas'!h,2*(Z+AA_1+BB_1),2*(AA_1+BB_1)) -> 400 | E79: mm
B80: Esfuerzo cortante actuante máximo (caso interior) | C80: vp,1 | D80: =Q1_ult*1000/(u0_1*d) -> 1.331283828 | E80: N/mm2
B81: Índice de Capacidad a Perforación por cargas internas | C81: Pp,max1/Q1,ult | D81: =Pp_max1/Q1_ult -> 3.851319977 | E81: =IF(vmax>vp_1,"O.K","No Cumple") -> O.K
B82: Factor de Seguridad Global | C82: FS | D82: =(Pp_max1*gc)/(Q1_ult/FS_parcial) -> 7.510073954
B85: Longitud del perímetro critico (caso interior) | C85: u1,1 | D85: =IF(Z<=2*'Estanterias Contiguas'!h,2*(Z+'Estanterias Contiguas'!AA_1+BB_1+PI()*2*d),2*(AA_1+BB_1+PI()*2*d)) -> 1627.107357 | E85: mm
B86: Máxima capacidad en perímetro crítico (caso interior) | C86: Pp,max5 | D86: =+Pp_max5 -> 101.1288797 | E86: kN
B87: Índice de Capacidad a Perforación por cargas internas en perímetro crítico | C87: Pp,max5/Q1,ult | D87: =Pp_max5/Q1_ult -> 1.944786149 | E87: =IF(D87>=1,"O.K","NO CUMPLE") -> O.K
B88: Factor de Seguridad Global | C88: FS | D88: =(Pp_max5*gc)/(Q1_ult/FS_parcial) -> 3.79233299
A91: 5. Condición de borde:
B104: Carga Estática Última Requerida para bordes entre paneles | C104: Q1,ult,jb | D104: =IF(Z<=2*h,gf1_*2*Q1_*0.6,gf1_*Q1_*0.6) -> 31.2 | E104: kN
B105: Capacidad Última bajo Carga Concentrada a/l = 0 | C105: Pu,4 | D105: =(PI()*(Mp+Mn)/2)+2*Mn -> 43.78758603 | E105: kN
B106: Capacidad Última bajo Carga Concentrada a/l > 0.2 | C106: Pu,5 | D106: =(PI()*(Mp+Mn)+4*Mn)/((1-(2*aequiv)/(3*l))) -> 93.61107093 | E106: kN
B107: Capacidad Última bajo Carga Concentrada a/l | C107: Pu,6 | D107: =IF(a_l<=0.2,Pu_4+(Pu_5-Pu_4)*(a_l/0.2),Pu_5) -> 67.8816526 | E107: kN
B108: Índice de Capacidad para bordes entre paneles | C108: Pu,6/Q1,ult,jb | D108: =Pu_6/Q1_ult_jb -> 2.175693994 | E108: =IF(D108>=1,"O.K","NO CUMPLE") -> O.K
B109: Factor de Seguridad Global | C109: FS | D109: =(Pu_6*gc)/(Q1_ult_jb/FS_parcial) -> 4.242603288
A113: Perforación por Corte
B117: Esfuerzo cortante máximo | C117: vmax | D117: =0.5*k2_*fcd -> 5.1272 | E117: N/mm2
B118: Longitud del perímetro en la cara del área cargada (caso borde 1) | C118: u0,2 | D118: =IF(Z<=2*'Estanterias Contiguas'!h,Z+'Estanterias Contiguas'!AA_1+2*'Estanterias Contiguas'!BB_1,2*(AA_1)+BB_1) -> 300 | E118: mm
B119: Longitud del perímetro en la cara del área cargada (caso borde 2) | C119: u0,3 | D119: =IF(Z<=2*'Estanterias Contiguas'!h,Z+'Estanterias Contiguas'!BB_1+2*'Estanterias Contiguas'!AA_1,2*(AA_1)+BB_1) -> 300 | E119: mm
B120: Esfuerzo cortante actuante máximo (caso borde 1) | C120: vp,2 | D120: =Q1_ult*1000/(u0_2*d) -> 1.775045104 | E120: N/mm2
B121: Esfuerzo cortante actuante máximo (caso borde 2) | C121: vp,3 | D121: =Q1_ult*1000/(u0_3*d) -> 1.775045104 | E121: N/mm2
B122: Índice de Capacidad a Perforación por cargas de borde | C122: Pp,max2,3/Q1,ult,jb | D122: =MIN(Pp_max2,Pp_max3)/Q1_ult_jb -> 4.814149971 | E122: =IF(vmax>vp_1,"O.K","No Cumple") -> O.K
B123: Factor de Seguridad Global | C123: FS | D123: =(MIN(Pp_max2,Pp_max3)*gc)/(Q1_ult_jb/FS_parcial) -> 9.387592443
B125: Longitud del perímetro critico (caso borde 1) | C125: u1,2 | D125: =IF(Z<=2*h,Z+AA_1+2*BB_1+PI()*2*d,2*(AA_1)+BB_1+PI()*2*d) -> 913.5536787 | E125: mm
B126: Longitud del perímetro crítico (caso borde 2) | C126: u1,3 | D126: =IF(Z<=2*h,Z+BB_1+2*AA_1+PI()*2*d,2*(BB_1)+AA_1+PI()*2*d) -> 913.5536787 | E126: mm
B127: Máxima capacidad en perímetro crítico (caso borde 1) | C127: Pp,max6 | D127: =+Pp_max6 -> 56.77969538 | E127: kN
B128: Máxima capacidad en perímetro crítico (caso borde 2) | C128: Pp,max7 | D128: =+Pp_max7 -> 56.77969538 | E128: kN
B129: Índice de Capacidad a Perforación por cargas de borde en perímetro crítico | C129: Pp,max6/Q1,ult,jb | D129: =MIN(Pp_max6,Pp_max7)/Q1_ult_jb -> 1.819862031 | E129: =IF(D129>=1,"O.K","NO CUMPLE") -> O.K
B130: Factor de Seguridad Global | C130: FS | D130: =(MIN(Pp_max6,Pp_max7)*gc)/(Q1_ult_jb/FS_parcial) -> 3.548730961
A133: 6. Condición de esquina:
B146: Carga Estática Última Requerida para esquinas entre paneles | C146: Q1,ult,ep | D146: =IF(Z<=2*h,gf1_*2*Q1_*0.6,gf1_*Q1_*0.6) -> 31.2 | E146: kN
B147: Capacidad Última bajo Carga Concentrada a/l = 0 | C147: Pu,7 | D147: =2*Mn -> 21.67015033 | E147: kN
B148: Capacidad Última bajo Carga Concentrada a/l > 0.2 | C148: Pu,8 | D148: =IF(a_l<1,4*Mn/((1-a_l)),4*Mn/((a_l-1))) -> 47.98090375 | E148: kN
B149: Capacidad Última bajo Carga Concentrada a/l | C149: Pu,9 | D149: =IF(a_l<=0.2,Pu_7+(Pu_8-Pu_7)*(a_l/0.2),Pu_8) -> 34.39372929 | E149: kN
B150: Índice de Capacidad para esquinas entre paneles | C150: Pu,9/Q1,ult,ep | D150: =IF(Pu_9/Q1_ult_ep>0,Pu_9/Q1_ult_ep,"revisar") -> 1.102363118 | E150: =IF(D150>=1,"O.K","NO CUMPLE") -> O.K
B151: Factor de Seguridad Global | C151: FS | D151: =IF((Pu_9*gc)/(Q1_ult_ep/FS_parcial)>0,(Pu_9*gc)/(Q1_ult_ep/FS_parcial),"revisar") -> 2.149608081
A154: Perforación por Corte
B158: Esfuerzo cortante máximo | C158: vmax | D158: =0.5*k2_*fcd -> 5.1272 | E158: N/mm2
B159: Longitud del perímetro en la cara del área cargada (caso esquina ) | C159: u0,4 | D159: =IF(Z<=2*h,Z+(AA_1)+BB_1,(AA_1)+BB_1) -> 200 | E159: mm
B160: Esfuerzo cortante actuante máximo (caso esquina) | C160: vp,4 | D160: =Q1_ult_ep*1000/(u0_4*d) -> 1.597540593 | E160: N/mm2
B161: Índice de Capacidad a Perforación por cargas esquina | C161: Pp,max4/Q1,ult,ep | D161: =Pp_max4/Q1_ult_ep -> 3.209433314 | E161: =IF(vmax>vp_1,"O.K","No Cumple") -> O.K
B162: Factor de Seguridad Global | C162: FS | D162: =(Pp_max4*gc)/(Q1_ult_ep/FS_parcial) -> 6.258394962
B164: Longitud del perímetro crítico (caso esquina ) | C164: u1,4 | D164: =IF(Z<=2*h,Z+(AA_1)+BB_1+PI()/2*2*d,(AA_1)+BB_1+PI()/2*2*d) -> 506.7768394 | E164: mm
B165: Máxima capacidad en perímetro crítico (caso esquina) | C165: Pp,max8 | D165: =+Pp_max8 -> 31.49747544 | E165: kN
B166: Índice de Capacidad a Perforación por cargas de esquina en perímetro crítico | C166: Pp,max8/Q1,ult,ep | D166: =Pp_max8/Q1_ult_ep -> 1.009534469 | E166: =IF(D166>=1,"O.K","NO CUMPLE") -> O.K
B167: Factor de Seguridad Global | C167: FS | D167: =(Pp_max8*gc)/(Q1_ult_ep/FS_parcial) -> 1.968592215
H174: FS_Interno | I174: =MIN(Pu_3/Q1_ult,Pp_max1/Q1_ult,Pp_max5/Q1_ult) -> 1.944786149 | K174: Calculado
H175: FS_Borde | I175: =MIN(Pu_6/Q1_ult_jb,Pp_max2/Q1_ult_jb,Pp_max6/Q1_ult_jb) -> 1.819862031 | K175: Definido por el usuario
H176: FS_Esquina | I176: =MIN(Pu_9/Q1_ult_ep,Pp_max4/Q1_ult_ep,Pp_max8/Q1_ult_ep) -> 1.009534469 | K176: 1
I180: Resistencia característica a la compresión (cubo) | J180: fcu | K180: =1.47*fck-6.6 -> 36.03 | L180: N/mm2
I181: Resistencia a la compresión promedio (cilíndro) | J181: fcm | K181: =+fck+8 -> 37 | L181: N/mm2
I182: Resistencia a la tensión axial promedio | J182: fctm | K182: =fr -> 4.108880748 | L182: N/mm2
I183: Resistencia característica a la tensión axial (5% fractura) | J183: fctk(0.05) | K183: =0.7*fctm -> 2.876216523 | L183: N/mm2
I184: Módulo de rigidez secante | J184: Ecm | K184: =22*(fcm/10)^0.3*1000 -> 32574.90802 | L184: N/mm2
I185: Resistencia caracterísitica a la flexión del concreto plano | J185: fctk,fl | K185: =MIN(2,(1+(200/h)^0.5))*fctk_0.05 -> 5.752433047 | L185: N/mm2
I186: Espesor efectivo de la losa | J186: d | K186: =0.75*h -> 97.65010083 | L186: mm
I187: Factor No. 1 para cálculos de resistencia al corte | J187: k1 | K187: =IF(1+(200/d)^0.5<2,1+(200/d)^0.5,2) -> 2
I188: Resistencia mínima del concreto al corte | J188: vRd,ct | K188: =0.035*k1_^(3/2)*fck^(1/2) -> 0.5331041174 | L188: N/mm2
I189: Rigidez de la losa | J189: k3 | K189: =Ecm*h^3/(12*(1-n^2))/1000000 -> 6241.155696 | L189: MN.mm
I190: Índice de rigidez relativa | J190: l | K190: =(Ecm*h^3/(12*(1-n^2)*k))^0.25 -> 583.336381 | L190: mm
I191: Índice de resistencia a flexión equivalente | J191: Re,3 | K191: 29.952 | L191: %
I192: Momento resistente último negativo de la losa | J192: Mn | K192: =fctk_fl/gc*(h^2/6)/1000 -> 10.83507516 | L192: kN
I193: Momento resistente último positivo de la losa | J193: Mp | K193: =fctk_fl/gc*(Re_3/100)*(h^2/6)/1000 -> 3.245321713 | L193: kN
I195: Índice a/l | J195: a/l | K195: =+aequiv/l -> 0.09671770902
I197: CARGAS INTERNAS
I217: CONSTANTES
I218: Relación de Poisson | J218: n | K218: 0.2
I219: Factor parcial de seguridad para barras de acero y mallas electrosoldadas con resistencia característica menor o igual a 460 Mpa | J219: gs1 | K219: 1.05
I220: Factor parcial de seguridad para barras de acero y mallas electrosoldadas con resistencia característica mayor a 460 Mpa | J220: gs2 | K220: 1.15
I221: Factor parcial de seguridad para concreto plano y concreto reforzado con fibras | J221: gc | K221: 1.5
I222: Factor parcial de seguridad frente a acciones permanentes (estantes) | J222: gf1 | K222: =FS_parcial -> 1.3
I223: Factor parcial de seguridad frente a acciones variables (cargas aleatorias) | J223: gf2 | K223: 1.5
I224: Factor parcial de seguridad frente a acciones dinámicas (montacargas y maquinaria sometida a vibración) | J224: gf3 | K224: 1.6
I225: Radio del área de contacto equivalente | J225: a | K225: =SQRT((AA_1*BB_1)/PI()) -> 56.41895835 | L225: mm
I226: Área de contacto equivalente combinada | J226: Acomb | K226: =IF(Z<=2*h,(2*a*Z)+AA_1*BB_1,AA_1*BB_1) -> 10000 | L226: mm
I227: Radio del área de contacto equivalente para el área combinada | J227: aequiv | K227: =SQRT((Acomb)/PI()) -> 56.41895835 | L227: mm
I230: Punzonamiento
I248: Resistencia de diseño a compresión del concreto | J248: fcd | K248: =fck/gc -> 19.33333333 | L248: N/mm2
J249: k2 | K249: =0.6*(1-fck/250) -> 0.5304
I250: Esfuerzo cortante máximo | J250: vmax | K250: =0.5*k2_*fcd -> 5.1272 | L250: N/mm2
I251: Longitud del perímetro en la cara del área cargada (caso interior) | J251: u0,1 | K251: =IF(Z<=2*'Estanterias Contiguas'!h,2*(Z+AA_1+BB_1),2*(AA_1+BB_1)) -> 400 | L251: mm
I252: Longitud del perímetro en la cara del área cargada (caso borde 1) | J252: u0,2 | K252: =IF(Z<=2*'Estanterias Contiguas'!h,Z+'Estanterias Contiguas'!AA_1+2*'Estanterias Contiguas'!BB_1,2*(AA_1)+BB_1) -> 300 | L252: mm
I253: Longitud del perímetro en la cara del área cargada (caso borde 2) | J253: u0,3 | K253: =IF(Z<=2*'Estanterias Contiguas'!h,Z+'Estanterias Contiguas'!BB_1+2*'Estanterias Contiguas'!AA_1,2*(AA_1)+BB_1) -> 300 | L253: mm
I254: Longitud del perímetro en la cara del área cargada (caso esquina ) | J254: u0,4 | K254: =IF(Z<=2*h,Z+(AA_1)+BB_1+PI()/2*2*d,(AA_1)+BB_1) -> 200 | L254: mm
I255: Esfuerzo cortante actuante máximo (caso interior) | J255: vp,1 | K255: =Q1_ult*1000/(u0_1*d) -> 1.331283828 | L255: N/mm2 | M255: =IF(vmax>vp_1,"O.K","No Cumple") -> O.K
I256: Esfuerzo cortante actuante máximo (caso borde 1) | J256: vp,2 | K256: =Q1_ult_jb*1000/(u0_2*d) -> 1.065027062 | L256: N/mm2 | M256: =IF(vmax>vp_2,"O.K","No Cumple") -> O.K
I257: Esfuerzo cortante actuante máximo (caso borde 2) | J257: vp,3 | K257: =Q1_ult_jb*1000/(u0_3*d) -> 1.065027062 | L257: N/mm2 | M257: =IF(vmax>vp_3,"O.K","No Cumple") -> O.K
I258: Esfuerzo cortante actuante máximo (caso esquina) | J258: vp,4 | K258: =Q1_ult_ep*1000/(u0_4*d) -> 1.597540593 | L258: N/mm2 | M258: =IF(vmax>vp_4,"O.K","No Cumple") -> O.K
I261: Máxima capacidad de carga frente a perforación por corte (caso interior) | J261: Pp,max1 | K261: =vmax*u0_1*d/1000 -> 200.2686388 | L261: kN
I262: Máxima capacidad de carga frente a perforación por corte (caso borde 1) | J262: Pp,max2 | K262: =vmax*u0_2*d/1000 -> 150.2014791 | L262: kN
I263: Máxima capacidad de carga frente a perforación por corte (caso borde 1) | J263: Pp,max3 | K263: =vmax*u0_3*d/1000 -> 150.2014791 | L263: kN
I264: Máxima capacidad de carga frente a perforación por corte (caso esquina) | J264: Pp,max4 | K264: =vmax*u0_4*d/1000 -> 100.1343194 | L264: kN
I265: Longitud del perímetro critico (caso interior) | J265: u1,1 | K265: =IF(Z<=2*'Estanterias Contiguas'!h,2*(Z+'Estanterias Contiguas'!AA_1+BB_1+PI()*2*d),2*(AA_1+BB_1+PI()*2*d)) -> 1627.107357 | L265: mm
I266: Longitud del perímetro critico (caso borde 1) | J266: u1,2 | K266: =IF(Z<=2*h,Z+AA_1+2*BB_1+PI()*2*d,2*(AA_1)+BB_1+PI()*2*d) -> 913.5536787 | L266: mm
I267: Longitud del perímetro crítico (caso borde 2) | J267: u1,3 | K267: =IF(Z<=2*h,Z+BB_1+2*AA_1+PI()*2*d,2*(BB_1)+AA_1+PI()*2*d) -> 913.5536787 | L267: mm
I268: Longitud del perímetro crítico (caso esquina ) | J268: u1,4 | K268: =IF(Z<=2*h,Z+(AA_1)+BB_1+PI()/2*2*d,(AA_1)+BB_1+PI()/2*2*d) -> 506.7768394 | L268: mm
I269: Máxima capacidad en perímetro crítico (caso interior) | J269: Pp,max5 | K269: =(0.035*k1_^(3/2)*fck^(1/2)+0.06*Re_3/100*fctk_fl)*u1_1*d/1000 -> 101.1288797 | L269: kN
I270: Máxima capacidad en perímetro crítico (caso borde 1) | J270: Pp,max6 | K270: =(0.035*k1_^(3/2)*fck^(1/2)+0.06*Re_3/100*fctk_fl)*u1_2*d/1000 -> 56.77969538 | L270: kN
I271: Máxima capacidad en perímetro crítico (caso borde 2) | J271: Pp,max7 | K271: =(0.035*k1_^(3/2)*fck^(1/2)+0.06*Re_3/100*fctk_fl)*u1_3*d/1000 -> 56.77969538 | L271: kN
I272: Máxima capacidad en perímetro crítico (caso esquina) | J272: Pp,max8 | K272: =(0.035*k1_^(3/2)*fck^(1/2)+0.06*Re_3/100*fctk_fl)*u1_4*d/1000 -> 31.49747544 | L272: kN

Sheet Montacargas (hidden)
A1: Diseño de Pisos Industriales (Carga Montacargas) Según Reporte Técnico TR34 - Concrete Industrial Ground Floors: A guide to Design and Construction, 3ra Edición, Concrete Society, UK
A7: Descripción del Proyecto:
A9: 1. Parámetro del Suelo:
B11: Módulo de Subrasante | C11: k | D11: 0.05 | E11: N/mm3
A13: 2. Parámetros del Concreto:
B15: Determinación del Módulo de Rotura
B17: Resistencia a Compresión a los 28 días | C17: fck | D17: 28 | E17: MPa
B19: Módulo de Rotura | C19: fctm | D19: 4 | E19: MPa
B21: Dosificacion fibra FIBRAPLAS Concrete | C21: Dfb | D21: 4 | E21: kg/m3
A24: 3. Parámetros Geométricos y Carga Máxima:
B35: Carga Estática Máxima | C35: Q1 | D35: 100 | E35: kN
B37: Presión de Inflado | C37: q1 | D37: 750 | E37: kPa
B38: Presión de Infado | D38: =+BB_1/6.895 -> 108.7744743 | E38: psi
B39: Presión de Inflado | D39: =BB_1/100 -> 7.5 | E39: bar
B41: Factor Parcial de Seguridad para las cargas de diseño | D41: 1.6
B43: Factor Global de Seguridad para las cargas de diseño | D43: =FS_parcial*gc -> 2.4
B51: Espesor de piso | C51: h | D51: 150 | E51: mm
B53: Espesor mínimo de la losa (carga interna) | C53: h | D53: 173.3417068 | E53: mm
B54: Espesor mínimo de la losa (carga de borde) | C54: h | D54: 194.2784065 | E54: mm
B55: Espesor mínimo de la losa (carga de esquina) | C55: h | E55: mm
A60: 4. Condición interna:
B68: Carga Estática Última Requerida | C68: Q1,ult | D68: =gf3_*Q1_ -> 160 | E68: kN
B69: Capacidad Última bajo Carga Concentrada a/l = 0 | C69: Pu,1 | D69: =2*PI()*(Mp+Mn) -> 81.23675369 | E69: kN
B70: Capacidad Última bajo Carga Concentrada a/l > 0.2 | C70: Pu,2 | D70: =4*PI()*(Mp+Mn)/((1-a/(3*l))) -> 181.3537969 | E70: kN
B71: Capacidad Última bajo Carga Concentrada a/l | C71: Pu,3 | D71: =IF(a_l<=0.2,Pu_1+(Pu_2-Pu_1)*(a_l/0.2),Pu_2) -> 181.3537969 | E71: kN
B72: Índice de Capacidad para cargas internas | C72: Pu,3/Q1,ult | D72: =Pu_3/Q1_ult -> 1.13346123 | E72: =IF(D72>=1,"O.K","NO CUMPLE") -> O.K
A76: Perforación por Corte
B79: Esfuerzo cortante máximo | C79: vmax | D79: =0.5*k2_*fcd -> 4.9728 | E79: N/mm2
B80: Longitud del perímetro en la cara del área cargada (caso interior) | C80: u0,1 | D80: =u0_1 -> 1294.417275 | E80: mm
B81: Esfuerzo cortante actuante máximo (caso interior) | C81: vp,1 | D81: =Q1_ult*1000/(u0_1*d) -> 1.098735508 | E81: N/mm2
B82: Índice de Capacidad a Perforación por cargas internas | C82: Pp,max1/Q1,ult | D82: =Pp_max1/Q1_ult -> 4.525930002 | E82: =IF(vmax>vp_1,"O.K","No Cumple") -> O.K
B85: Longitud del perímetro critico (caso interior) | C85: u1,1 | D85: =u1_1 -> 2708.133969 | E85: mm
B86: Máxima capacidad en perímetro crítico (caso interior) | C86: Pp,max5 | D86: =+Pp_max5 -> 183.3375649 | E86: kN
B87: Índice de Capacidad a Perforación por cargas internas en perímetro crítico | C87: Pp,max5/Q1,ult | D87: =Pp_max5/Q1_ult -> 1.145859781 | E87: =IF(D87>=1,"O.K","NO CUMPLE") -> O.K
A90: 5. Condición de borde:
B103: Carga Estática Última Requerida para bordes entre paneles | C103: Q1,ult,jb | D103: =gf3_*Q1_*0.6 -> 96 | E103: kN
B104: Capacidad Última bajo Carga Concentrada a/l = 0 | C104: Pu,4 | D104: =(PI()*(Mp+Mn)/2)+2*Mn -> 39.67302085 | E104: kN
B105: Capacidad Última bajo Carga Concentrada a/l > 0.2 | C105: Pu,5 | D105: =(PI()*(Mp+Mn)+4*Mn)/((1-(2*a)/(3*l))) -> 100.2115987 | E105: kN
B106: Capacidad Última bajo Carga Concentrada a/l | C106: Pu,6 | D106: =IF(a_l<=0.2,Pu_4+(Pu_5-Pu_4)*(a_l/0.2),Pu_5) -> 100.2115987 | E106: kN
B107: Índice de Capacidad para bordes entre paneles | C107: Pu,6/Q1,ult,jb | D107: =Pu_6/Q1_ult_jb -> 1.04387082 | E107: =IF(D107>=1,"O.K","NO CUMPLE") -> O.K
A111: Perforación por Corte
B115: Esfuerzo cortante máximo | C115: vmax | D115: =0.5*k2_*fcd -> 4.9728 | E115: N/mm2
B116: Longitud del perímetro en la cara del área cargada (caso borde 1) | C116: u0,2 | D116: =u0_2 -> 970.8129563 | E116: mm
B117: Longitud del perímetro en la cara del área cargada (caso borde 2) | C117: u0,3 | D117: =u0_3 -> 970.8129563 | E117: mm
B118: Esfuerzo cortante actuante máximo (caso borde 1) | C118: vp,2 | D118: =Q1_ult_jb*1000/(u0_2*d) -> 0.8789884064 | E118: N/mm2
B119: Esfuerzo cortante actuante máximo (caso borde 2) | C119: vp,3 | D119: =Q1_ult_jb*1000/(u0_3*d) -> 0.8789884064 | E119: N/mm2
B120: Índice de Capacidad a Perforación por cargas de borde | C120: Pp,max2,3/Q1,ult,jb | D120: =Pp_max2/Q1_ult_jb -> 5.657412503 | E120: =IF(vmax>vp_1,"O.K","No Cumple") -> O.K
B122: Longitud del perímetro critico (caso borde 1) | C122: u1,2 | D122: =u1_2 -> 1354.066985 | E122: mm
B123: Longitud del perímetro crítico (caso borde 2) | C123: u1,3 | D123: =u1_3 -> 1354.066985 | E123: mm
B124: Máxima capacidad en perímetro crítico (caso borde 1) | C124: Pp,max6 | D124: =+Pp_max6 -> 91.66878245 | E124: kN
B125: Máxima capacidad en perímetro crítico (caso borde 2) | C125: Pp,max7 | D125: =+Pp_max7 -> 91.66878245 | E125: kN
B126: Índice de Capacidad a Perforación por cargas de borde en perímetro crítico | C126: Pp,max6/Q1,ult,jb | D126: =Pp_max6/Q1_ult_jb -> 0.9548831506 | E126: =IF(D126>=1,"O.K","NO CUMPLE") -> NO CUMPLE
A129: 6. Condición de esquina:
B142: Carga Estática Última Requerida para esquinas entre paneles | C142: Q1,ult,ep | D142: =gf3_*Q1_*0.6 -> 96 | E142: kN
B143: Capacidad Última bajo Carga Concentrada a/l = 0 | C143: Pu,7 | D143: =2*Mn -> 19.36383243 | E143: kN
B144: Capacidad Última bajo Carga Concentrada a/l > 0.2 | C144: Pu,8 | D144: =4*Mn/((1-a_l)) -> 56.31660768 | E144: kN
B145: Capacidad Última bajo Carga Concentrada a/l | C145: Pu,9 | D145: =IF(a_l<=0.2,Pu_7+(Pu_8-Pu_7)*(a_l/0.2),Pu_8) -> 56.31660768 | E145: kN
B146: Índice de Capacidad para esquinas entre paneles | C146: Pu,9/Q1,ult,ep | D146: =Pu_9/Q1_ult_ep -> 0.58663133 | E146: =IF(D146>=1,"O.K","NO CUMPLE") -> NO CUMPLE
A150: Perforación por Corte
B154: Esfuerzo cortante máximo | C154: vmax | D154: =0.5*k2_*fcd -> 4.9728 | E154: N/mm2
B155: Longitud del perímetro en la cara del área cargada (caso esquina ) | C155: u0,4 | D155: =u0_4 -> 647.2086375 | E155: mm
B156: Esfuerzo cortante actuante máximo (caso esquina) | C156: vp,4 | D156: =Q1_ult_ep*1000/(u0_4*d) -> 1.31848261 | E156: N/mm2
B157: Índice de Capacidad a Perforación por cargas esquina | C157: Pp,max4/Q1,ult,ep | D157: =Pp_max4/Q1_ult_ep -> 3.771608335 | E157: =IF(vmax>vp_1,"O.K","No Cumple") -> O.K
B159: Longitud del perímetro crítico (caso esquina ) | C159: u1,4 | D159: =u1_4 -> 1000.637811 | E159: mm
B160: Máxima capacidad en perímetro crítico (caso esquina) | C160: Pp,max8 | D160: =+Pp_max8 -> 67.7420326 | E160: kN
B161: Índice de Capacidad a Perforación por cargas de esquina en perímetro crítico | C161: Pp,max8/Q1,ult,ep | D161: =Pp_max8/Q1_ult_ep -> 0.7056461729 | E161: =IF(D161>=1,"O.K","NO CUMPLE") -> NO CUMPLE
H167: FS_Interno | I167: =MIN(Pu_3/Q1_ult,Pp_max1/Q1_ult,Pp_max5/Q1_ult) -> 1.13346123 | J167: Calculado
H168: FS_Borde | I168: =MIN(Pu_6/Q1_ult_jb,Pp_max2/Q1_ult_jb,Pp_max6/Q1_ult_jb) -> 0.9548831506 | J168: Definido por el Usuario
H169: FS_Esquina | I169: =MIN(Pu_9/Q1_ult_ep,Pp_max4/Q1_ult_ep,Pp_max8/Q1_ult_ep) -> 0.58663133 | J169: 1
I171: Resistencia característica a la compresión (cubo) | J171: fcu | K171: =1.47*fck-6.6 -> 34.56 | L171: N/mm2
I172: Resistencia a la compresión promedio (cilíndro) | J172: fcm | K172: =+fck+8 -> 36 | L172: N/mm2
I173: Resistencia a la tensión axial promedio | J173: fctm | K173: =0.3*fck^(2/3) -> 2.766261775 | L173: N/mm2
I174: Resistencia característica a la tensión axial (5% fractura) | J174: fctk(0.05) | K174: =0.7*fctm -> 1.936383243 | L174: N/mm2
I175: Módulo de rigidez secante | J175: Ecm | K175: =22*(fcm/10)^0.3*1000 -> 32308.24972 | L175: N/mm2
I176: Resistencia caracterísitica a la flexión del concreto plano | J176: fctk,fl | K176: =MIN(2,(1+(200/h)^0.5))*fctk_0.05 -> 3.872766485 | L176: N/mm2
I177: Espesor efectivo de la losa | J177: d | K177: =0.75*h -> 112.5 | L177: mm
I178: Factor No. 1 para cálculos de resistencia al corte | J178: k1 | K178: =IF(1+(200/d)^0.5<2,1+(200/d)^0.5,2) -> 2
I179: Resistencia mínima del concreto al corte | J179: vRd,ct | K179: =0.035*k1_^(3/2)*fck^(1/2) -> 0.5238320341 | L179: N/mm2
I180: Rigidez de la losa | J180: k3 | K180: =Ecm*h^3/(12*(1-n^2))/1000000 -> 9465.307536 | L180: MN.mm
I181: Índice de rigidez relativa | J181: l | K181: =(Ecm*h^3/(12*(1-n^2)*k))^0.25 -> 659.6159994 | L181: mm
I182: Índice de resistencia a flexión equivalente | J182: Re,3 | K182: =IF(Dfb>0,4.36*Dfb+16.1,0) -> 33.54 | L182: %
I183: Momento resistente último negativo de la losa | J183: Mn | K183: =fctk_fl/gc*(h^2/6)/1000 -> 9.681916213 | L183: kN
I184: Momento resistente último positivo de la losa | J184: Mp | K184: =fctk_fl/gc*(Re_3/100)*(h^2/6)/1000 -> 3.247314698 | L184: kN
I186: Índice a/l | J186: a/l | K186: =+a/l -> 0.3123224845
I188: CARGAS INTERNAS
I193: =150*150/1000000 -> 0.0225
I194: =10000/1000000 -> 0.01
I195: =60/0.01 -> 6000
I204: CONSTANTES
I205: Relación de Poisson | J205: n | K205: 0.2
I206: Factor parcial de seguridad para barras de acero y mallas electrosoldadas con resistencia característica menor o igual a 460 Mpa | J206: gs1 | K206: 1.05
I207: Factor parcial de seguridad para barras de acero y mallas electrosoldadas con resistencia característica mayor a 460 Mpa | J207: gs2 | K207: 1.15
I208: Factor parcial de seguridad para concreto plano y concreto reforzado con fibras | J208: gc | K208: 1.5
I209: Factor parcial de seguridad frente a acciones permanentes (estantes) | J209: gf1 | K209: 1.2
I210: Factor parcial de seguridad frente a acciones variables (cargas aleatorias) | J210: gf2 | K210: 1.5
I211: Factor parcial de seguridad frente a acciones dinámicas (montacargas y maquinaria sometida a vibración) | J211: gf3 | K211: 1.6
I212: Radio del área de contacto equivalente | J212: a | K212: =SQRT((Q1_/BB_1)/PI())*1000 -> 206.0129077 | L212: mm
I235: Resistencia de diseño a compresión del concreto | J235: fcd | K235: =fck/gc -> 18.66666667 | L235: N/mm2
J236: k2 | K236: =0.6*(1-fck/250) -> 0.5328
I237: Esfuerzo cortante máximo | J237: vmax | K237: =0.5*k2_*fcd -> 4.9728 | L237: N/mm2
I238: Longitud del perímetro en la cara del área cargada (caso interior) | J238: u0,1 | K238: =2*(PI()*a) -> 1294.417275 | L238: mm
I239: Longitud del perímetro en la cara del área cargada (caso borde) | J239: u0,2 | K239: =3/2*(PI()*a) -> 970.8129563 | L239: mm
I240: Longitud del perímetro en la cara del área cargada (caso borde 2) | J240: u0,3 | K240: =3/2*(PI()*a) -> 970.8129563 | L240: mm
I241: Longitud del perímetro en la cara del área cargada (caso esquina ) | J241: u0,4 | K241: =(PI()*a) -> 647.2086375 | L241: mm
I242: Esfuerzo cortante actuante máximo (caso interior) | J242: vp,1 | K242: =Q1_ult*1000/(u0_1*d) -> 1.098735508 | L242: N/mm2 | M242: =IF(vmax>vp_1,"O.K","No Cumple") -> O.K
I243: Esfuerzo cortante actuante máximo (caso borde 1) | J243: vp,2 | K243: =Q1_ult_jb*1000/(u0_2*d) -> 0.8789884064 | L243: N/mm2 | M243: =IF(vmax>vp_2,"O.K","No Cumple") -> O.K
I244: Esfuerzo cortante actuante máximo (caso borde 2) | J244: vp,3 | K244: =Q1_ult_jb*1000/(u0_3*d) -> 0.8789884064 | L244: N/mm2 | M244: =IF(vmax>vp_3,"O.K","No Cumple") -> O.K
I245: Esfuerzo cortante actuante máximo (caso esquina) | J245: vp,4 | K245: =Q1_ult_ep*1000/(u0_4*d) -> 1.31848261 | L245: N/mm2 | M245: =IF(vmax>vp_4,"O.K","No Cumple") -> O.K
I248: Máxima capacidad de carga frente a perforación por corte (caso interior) | J248: Pp,max1 | K248: =vmax*u0_1*d/1000 -> 724.1488003 | L248: kN
I249: Máxima capacidad de carga frente a perforación por corte (caso borde 1) | J249: Pp,max2 | K249: =vmax*u0_2*d/1000 -> 543.1116003 | L249: kN
I250: Máxima capacidad de carga frente a perforación por corte (caso borde 1) | J250: Pp,max3 | K250: =vmax*u0_3*d/1000 -> 543.1116003 | L250: kN
I251: Máxima capacidad de carga frente a perforación por corte (caso esquina) | J251: Pp,max4 | K251: =vmax*u0_4*d/1000 -> 362.0744002 | L251: kN
I252: Longitud del perímetro critico (caso interior) | J252: u1,1 | K252: =2*PI()*(a+2*d) -> 2708.133969 | L252: mm
I253: Longitud del perímetro critico (caso borde 1) | J253: u1,2 | K253: =PI()*(a+2*d) -> 1354.066985 | L253: mm
I254: Longitud del perímetro crítico (caso borde 2) | J254: u1,3 | K254: =PI()*(a+2*d) -> 1354.066985 | L254: mm
I255: Longitud del perímetro crítico (caso esquina ) | J255: u1,4 | K255: =PI()/2*(2*a+2*d) -> 1000.637811 | L255: mm
I256: Máxima capacidad en perímetro crítico (caso interior) | J256: Pp,max5 | K256: =(0.035*k1_^(3/2)*fck^(1/2)+0.06*Re_3/100*fctk_fl)*u1_1*d/1000 -> 183.3375649 | L256: kN
I257: Máxima capacidad en perímetro crítico (caso borde 1) | J257: Pp,max6 | K257: =(0.035*k1_^(3/2)*fck^(1/2)+0.06*Re_3/100*fctk_fl)*u1_2*d/1000 -> 91.66878245 | L257: kN
I258: Máxima capacidad en perímetro crítico (caso borde 2) | J258: Pp,max7 | K258: =(0.035*k1_^(3/2)*fck^(1/2)+0.06*Re_3/100*fctk_fl)*u1_3*d/1000 -> 91.66878245 | L258: kN
I259: Máxima capacidad en perímetro crítico (caso esquina) | J259: Pp,max8 | K259: =(0.035*k1_^(3/2)*fck^(1/2)+0.06*Re_3/100*fctk_fl)*u1_4*d/1000 -> 67.7420326 | L259: kN

Sheet PCA 1984
A1: Diseño de Pavimentos Rígidos Según Reporte Técnico "Thickness Design for Concrete Highway and Street Pavements" de la Portland Cement Association (PCA), 1984
A11: Descripción del Proyecto:
A14: 1. Defina el Tránsito Diario Promedio de Camiones (tdpc)
D15: 500
A19: 2. Seleccione la categoría de carga de eje
B20: Categoría 3 | G20: =VLOOKUP(B20,OFFSET(Categoría_eje_carga,,,,3),2,0) -> Vías arteria y vías primarias (medio), Autopistas, vías nacionales rurales y urbanas (bajo a medio)
B24: Tránsito de Camiones en 20 Años | G24: =VLOOKUP(B20,OFFSET(Categoría_eje_carga,,,,6),6,0) -> 2,190,000 - 36,500,000
B27: Tránsito Díario Promedio de Camiones (TDPC) | G27: =VLOOKUP(B20,OFFSET(Categoría_eje_carga,,,,6),5,0) -> 300 - 5000
A31: 3. Seleccione las Características de Soporte de La Estructura de Pavimento
B32: Alto | G32: =VLOOKUP(B32,OFFSET(Soporte,,,,3),2,0) -> Arenas y mezclas arena-grava relativamente libres de finos plásticos
B36: Valores Aproximados del Módulo de Reacción (k) en pci | G36: =VLOOKUP(B32,OFFSET(Soporte,,,,3),3,0) -> 180 - 220
B39: Valores Aproximados del Módulo de Reacción (k) en mpa/m | G39: =VLOOKUP(B32,OFFSET(Soporte,,,,4),4,0) -> 48.9 - 59.8
B42: Valores Aproximados del CBR (%) | G42: =VLOOKUP(B32,OFFSET(Soporte,,,,5),5,0) -> 10.6 - 13.7
B46: 4. Defina condiciones de Mejoramiento en la Subrasante | G46: Subbase no tratada
B51: Espesor de la subbase de mejoramiento (pulgadas) | G51: 12
B56: Característica Final Mejorada de Soporte: | G56: Muy Alto
B60: 5. Condición en las Juntas | G60: Con Dovelas
B65: 6. Condición de Borde | G65: Con Berma
B72: 7. Módulo de Rotura del Concreto (psi) | G72: 550
B77: 8. Defina condiciones de Refuerzo con FIBRAPLAS CONCRETE | G77: Refuerzo con fibraplas concrete
B82: Dosificación de Fibraplas concrete (kg/m3) | G82: 4
B87: Módulo Final Mejorado de Rotura del Concreto (psi): | G87: 650
A99: Tránsito Diario Promedio de Camiones Admisible (TDPCA) | G99: =INDEX(rango_de_diseño,MATCH(TRUE,rango_de_diseño>=TDPC,0)) -> 1900
A103: Espesor Estructura de Pavimento Rígido (pulgadas) | G103: =VLOOKUP(TDPCA,rango_espesor,2,FALSE) -> 7
M116: Categoría de Eje de Carga | N116: Descripción | O116: Tránsito | S116: Cargas Máximas de Eje, Kips | V116: Soporte | W116: Tipo de Suelo | X116: Valores de k (pci) | Y116: Valores de k (Mpa/m) | Z116: Valores de CBR (%) | AA116: Valor medio de k (pci) | AB116: Valor definicion de k (pci) | BQ116: =IF(var_categoria="Categoría 1",1,IF(var_categoria="Categoría 2",2,IF(var_categoria="Categoría 3",3,4))) -> 3 | BR116: =IF(var_juntas="Con Dovelas",1,2) -> 1 | BS116: =IF(var_borde="Sin Berma",1,2) -> 2 | BT116: =IF(car_f_soporte="Bajo",1,IF(car_f_soporte="Medio",2,IF(car_f_soporte="Alto",3,4))) -> 4 | BU116: =IF(mod_f_rotura=550,1,IF(mod_f_rotura=600,2,3)) -> 3 | BV116: =BQ116&BR116&BS116&BT116&BU116 -> 31243
O117: Tránsito Diario Promedio | P117: Tránsito Díario Promedio de Camiones | R117: Tránsito de Camiones en 20 Años | BM117: ="TB_"&VLOOKUP(var_codigo_verificacion,Codigo_verificacion,7,FALSE) -> TB_90
P118: % | Q118: Por día | S118: Ejes Sencillos | T118: Ejes Tandem | V118: Bajo | W118: Suelos de grano fino en los cuales las particulas predominantes son limos y arcillas | X118: Hasta 120 | Y118: Hasta 32.6 | Z118: Hasta 6.3 | AA118: 50 | AB118: 129 | AG118: TDPC ADMISIBLE | AH118: espesor losa | AK118: TDPC ADMISIBLE | AL118: espesor losa | AO118: TDPC ADMISIBLE | AP118: espesor losa | AS118: TDPC ADMISIBLE | AT118: espesor losa | AW118: TDPC ADMISIBLE | AX118: espesor losa | BA118: TDPC ADMISIBLE | BB118: espesor losa | BP118: Código verificación | BQ118: CATEGORÍA | BR118: CONDICIÓN DE JUNTA | BS118: CONDICIÓN DE BORDE | BT118: TIPO DE SOPORTE | BU118: MR (pci) | BV118: Número
M119: Categoría 1 | N119: Calles residenciales, vías rurales y secundarias (bajo a medio) | O119: 200 -800 | P119: 1 - 3 | Q119: hasta 25 | R119: =25*365*20 -> 182500 | S119: 22 | T119: 36 | V119: Medio | W119: Arenas y mezclas arena-grava con cantidades moderadas de limos y arcillas | X119: 130 - 170 | Y119: 35.3 - 46.2 | Z119: 7.0 - 9.8 | AA119: 130 | AB119: 179 | AF119: TB_1 | AG119: 0.1 | AH119: 5.5 | AJ119: TB_4 | AK119: 0.3 | AL119: 5.5 | AN119: TB_7 | AO119: 1 | AP119: 5.5 | AR119: TB_10 | AS119: 0.8 | AT119: 5 | AV119: TB_13 | AW119: 0.2 | AX119: 4.5 | AZ119: TB_16 | BA119: 0.6 | BB119: 4.5 | BP119: =BQ119&BR119&BS119&BT119&BU119 -> 12111 | BQ119: 1 | BR119: 2 | BS119: 1 | BT119: 1 | BU119: 1 | BV119: 1
M120: Categoría 2 | N120: Calles colectoras, vías rurales y secundarias (alto), vías arteria y vías primarias (bajo) | O120: 700 -5000 | P120: 5 - 18 | Q120: 40 - 1000 | R120: 292,000 - 7,300,000 | S120: 26 | T120: 44 | V120: Alto | W120: Arenas y mezclas arena-grava relativamente libres de finos plásticos | X120: 180 - 220 | Y120: 48.9 - 59.8 | Z120: 10.6 - 13.7 | AA120: 180 | AB120: 249 | AG120: 1 | AH120: 6 | AK120: 6 | AL120: 6 | AO120: 18 | AP120: 6 | AS120: 13 | AT120: 5.5 | AW120: 4 | AX120: 5 | BA120: 13 | BB120: 5 | BP120: 12112 | BQ120: 1 | BR120: 2 | BS120: 1 | BT120: 1 | BU120: 2 | BV120: 2
M121: Categoría 3 | N121: Vías arteria y vías primarias (medio), Autopistas, vías nacionales rurales y urbanas (bajo a medio) | O121: 3000 -12000 dos carriles 3000 - 50000+ 4 carriles o más | P121: 8 - 30 | Q121: 300 - 5000 | R121: 2,190,000 - 36,500,000 | S121: 30 | T121: 52 | V121: Muy Alto | W121: Bases tratadas con cemento | X121: 250 - 400 | Y121: 67.9 - 108.6 | Z121: 16.1 - 29.5 | AA121: 250 | AG121: 13 | AH121: 6.5 | AK121: 60 | AL121: 6.5 | AO121: 160 | AP121: 6.5 | AS121: 130 | AT121: 6 | AW121: 57 | AX121: 5.5 | BA121: 150 | BB121: 5.5 | BP121: 12113 | BQ121: 1 | BR121: 2 | BS121: 1 | BT121: 1 | BU121: 3 | BV121: 3
M122: Categoría 4 | N122: Vías arteria, vías primarias, Autopistas (alto), vías nacionales rurales y urbanas (medio a alto) | O122: 3000 -20000 dos carriles 3000 - 150000+ 4 carriles o más | P122: 8 - 30 | Q122: 1500 - 8000+ | R122: 10,950,000 - 58,400,000 | S122: 34 | T122: 60 | V122: =IF(Tipo_Soporte="muy alto",1,0) -> 0 | AA122: =VLOOKUP(Tipo_Soporte,OFFSET(Soporte,,,,6),6,0) -> 180 | AG122: 110 | AH122: 7 | AK122: 400 | AL122: 7 | AW122: 480 | AX122: 6 | BP122: 12121 | BQ122: 1 | BR122: 2 | BS122: 1 | BT122: 2 | BU122: 1 | BV122: 4
AA123: =LN(vm_sopi) -> 5.192956851 | AG123: 620 | AH123: 7.5 | BP123: 12122 | BQ123: 1 | BR123: 2 | BS123: 1 | BT123: 2 | BU123: 2 | BV123: 5
M124: * La descripción alto, medio, o bajo se refiere a los pesos relativos de cargas de eje para el tipo de calle o vía, es decir, "bajo" para una vía nacional rural representa cargas mayores a "bajo" para una vía secundaria | W124: Condiciones de soporte en subrasante | BP124: 12123 | BQ124: 1 | BR124: 2 | BS124: 1 | BT124: 2 | BU124: 3 | BV124: 6
W125: Sin Mejoramiento | X125: =IF(Sel_cond_soporte="Sin Mejoramiento",1,IF(Sel_cond_soporte="Subbase no Tratada",2,3)) -> 2 | AG125: TDPC ADMISIBLE | AH125: espesor losa | AK125: TDPC ADMISIBLE | AL125: espesor losa | AO125: TDPC ADMISIBLE | AP125: espesor losa | AS125: TDPC ADMISIBLE | AT125: espesor losa | AW125: TDPC ADMISIBLE | AX125: espesor losa | BA125: TDPC ADMISIBLE | BB125: espesor losa | BP125: 12131 | BQ125: 1 | BR125: 2 | BS125: 1 | BT125: 3 | BU125: 1 | BV125: 7
M126: ** Camiones - caminones de dos ejes y cuatro llantas están excluidos | W126: Subbase no tratada | AF126: TB_2 | AG126: 0.5 | AH126: 5.5 | AJ126: TB_5 | AK126: 0.1 | AL126: 5 | AN126: TB_8 | AO126: 0.4 | AP126: 5 | AR126: TB_11 | AS126: 0.2 | AT126: 4.5 | AV126: TB_14 | AW126: 1 | AX126: 4.5 | AZ126: TB_17 | BA126: 0.1 | BB126: 4 | BP126: 12132 | BQ126: 1 | BR126: 2 | BS126: 1 | BT126: 3 | BU126: 2 | BV126: 8
W127: Subbase tratada con cemento | AG127: 8 | AH127: 6 | AK127: 3 | AL127: 5.5 | AO127: 9 | AP127: 5.5 | AS127: 6 | AT127: 5 | AW127: 27 | AX127: 5 | BA127: 5 | BB127: 4.5 | BP127: 12133 | BQ127: 1 | BR127: 2 | BS127: 1 | BT127: 3 | BU127: 3 | BV127: 9
AG128: 76 | AH128: 6.5 | AK128: 36 | AL128: 6 | AO128: 98 | AP128: 6 | AS128: 73 | AT128: 5.5 | AW128: 290 | AX128: 5.5 | BA128: 75 | BB128: 5 | BP128: 12211 | BQ128: 1 | BR128: 2 | BS128: 2 | BT128: 1 | BU128: 1 | BV128: 10
M129: Condición de Junta | AG129: 520 | AH129: 7 | AK129: 300 | AL129: 6.5 | AO129: 760 | AP129: 6.5 | AS129: 610 | AT129: 6 | BA129: 730 | BB129: 5.5 | BP129: 12212 | BQ129: 1 | BR129: 2 | BS129: 2 | BT129: 1 | BU129: 2 | BV129: 11
BP130: 12213 | BQ130: 1 | BR130: 2 | BS130: 2 | BT130: 1 | BU130: 3 | BV130: 12
BP131: 12221 | BQ131: 1 | BR131: 2 | BS131: 2 | BT131: 2 | BU131: 1 | BV131: 13
M132: =IF(B20="Categoría 1","Sin Dovelas","Con Dovelas") -> Con Dovelas | AG132: TDPC ADMISIBLE | AH132: espesor losa | AK132: TDPC ADMISIBLE | AL132: espesor losa | AO132: TDPC ADMISIBLE | AP132: espesor losa | AS132: TDPC ADMISIBLE | AT132: espesor losa | AW132: TDPC ADMISIBLE | AX132: espesor losa | BA132: TDPC ADMISIBLE | BB132: espesor losa | BP132: 12222 | BQ132: 1 | BR132: 2 | BS132: 2 | BT132: 2 | BU132: 2 | BV132: 14
M133: Sin Dovelas | AF133: TB_3 | AG133: 0.1 | AH133: 5 | AJ133: TB_6 | AK133: 0.8 | AL133: 5 | AN133: TB_9 | AO133: 0.1 | AP133: 4.5 | AR133: TB_12 | AS133: 2 | AT133: 4.5 | AV133: TB_15 | AW133: 0.2 | AX133: 4 | AZ133: TB_18 | BA133: 0.9 | BB133: 4 | BP133: 12223 | BQ133: 1 | BR133: 2 | BS133: 2 | BT133: 2 | BU133: 3 | BV133: 15
AG134: 3 | AH134: 5.5 | AK134: 15 | AL134: 5.5 | AO134: 3 | AP134: 5 | AS134: 30 | AT134: 5 | AW134: 8 | AX134: 4.5 | BA134: 25 | BB134: 4.5 | BP134: 12231 | BQ134: 1 | BR134: 2 | BS134: 2 | BT134: 3 | BU134: 1 | BV134: 16
M135: Condición de Borde | AG135: 40 | AH135: 6 | AK135: 160 | AL135: 6 | AO135: 45 | AP135: 5.5 | AS135: 320 | AT135: 5.5 | AW135: 130 | AX135: 5 | BA135: 330 | BB135: 5 | BP135: 12232 | BQ135: 1 | BR135: 2 | BS135: 2 | BT135: 3 | BU135: 2 | BV135: 17
AG136: 330 | AH136: 6.5 | AO136: 430 | AP136: 6 | BP136: 12233 | BQ136: 1 | BR136: 2 | BS136: 2 | BT136: 3 | BU136: 3 | BV136: 18
BP137: 21111 | BQ137: 2 | BR137: 1 | BS137: 1 | BT137: 1 | BU137: 1 | BV137: 19
M138: Sin Berma | BP138: 21112 | BQ138: 2 | BR138: 1 | BS138: 1 | BT138: 1 | BU138: 2 | BV138: 20
M139: Con Berma | BP139: 21113 | BQ139: 2 | BR139: 1 | BS139: 1 | BT139: 1 | BU139: 3 | BV139: 21
BP140: 21121 | BQ140: 2 | BR140: 1 | BS140: 1 | BT140: 2 | BU140: 1 | BV140: 22
M141: Condición de Refuerzo | BP141: 21122 | BQ141: 2 | BR141: 1 | BS141: 1 | BT141: 2 | BU141: 2 | BV141: 23
AG142: TDPC ADMISIBLE | AH142: espesor losa | AK142: TDPC ADMISIBLE | AL142: espesor losa | AO142: TDPC ADMISIBLE | AP142: espesor losa | AS142: TDPC ADMISIBLE | AT142: espesor losa | AW142: TDPC ADMISIBLE | AX142: espesor losa | BA142: TDPC ADMISIBLE | BB142: espesor losa | BE142: TDPC ADMISIBLE | BF142: ESPESOR LOSA | BI142: TDPC ADMISIBLE | BJ142: espesor losa | BP142: 21123 | BQ142: 2 | BR142: 1 | BS142: 1 | BT142: 2 | BU142: 3 | BV142: 24
AF143: TB_19 | AG143: 19 | AH143: 7.5 | AJ143: TB_22 | AK143: 11 | AL143: 7 | AN143: TB_25 | AO143: 4 | AP143: 6.5 | AR143: TB_28 | AS143: 19 | AT143: 6.5 | AV143: TB_31 | AW143: 3 | AX143: 6 | AZ143: TB_34 | BA143: 14 | BB143: 6 | BD143: TB_37 | BE143: 3 | BF143: 5.5 | BH143: TB_40 | BI143: 17 | BJ143: 5.5 | BP143: 21131 | BQ143: 2 | BR143: 1 | BS143: 1 | BT143: 3 | BU143: 1 | BV143: 25
M144: Sin Refuerzo | AG144: 120 | AH144: 8 | AK144: 84 | AL144: 7.5 | AO144: 34 | AP144: 7 | AS144: 150 | AT144: 7 | AW144: 29 | AX144: 6.5 | BA144: 120 | BB144: 6.5 | BE144: 41 | BF144: 6 | BI144: 160 | BJ144: 6 | BP144: 21132 | BQ144: 2 | BR144: 1 | BS144: 1 | BT144: 3 | BU144: 2 | BV144: 26
M145: Refuerzo con fibraplas concrete | AG145: 560 | AH145: 8.5 | AK145: 470 | AL145: 8 | AO145: 230 | AP145: 7.5 | AS145: 890 | AT145: 7.5 | AW145: 210 | AX145: 7 | BA145: 770 | BB145: 7 | BE145: 320 | BF145: 6.5 | BI145: 1100 | BJ145: 6.5 | BP145: 21133 | BQ145: 2 | BR145: 1 | BS145: 1 | BT145: 3 | BU145: 3 | BV145: 27
AG146: 2400 | AH146: 9 | AK146: 2200 | AL146: 8.5 | AO146: 1200 | AP146: 8 | AW146: 1100 | AX146: 7.5 | BA146: 4000 | BB146: 7.5 | BE146: 1900 | BF146: 7 | BP146: 21141 | BQ146: 2 | BR146: 1 | BS146: 1 | BT146: 4 | BU146: 1 | BV146: 28
M147: Módulo de Rotura del Concreto | BP147: 21142 | BQ147: 2 | BR147: 1 | BS147: 1 | BT147: 4 | BU147: 2 | BV147: 29
BP148: 21143 | BQ148: 2 | BR148: 1 | BS148: 1 | BT148: 4 | BU148: 3 | BV148: 30
AG149: TDPC ADMISIBLE | AH149: espesor losa | AK149: TDPC ADMISIBLE | AL149: espesor losa | AO149: TDPC ADMISIBLE | AP149: espesor losa | AS149: TDPC ADMISIBLE | AT149: espesor losa | AW149: TDPC ADMISIBLE | AX149: espesor losa | BA149: TDPC ADMISIBLE | BB149: espesor losa | BE149: TDPC ADMISIBLE | BF149: espesor losa | BI149: TDPC ADMISIBLE | BJ149: espesor losa | BP149: 21211 | BQ149: 2 | BR149: 1 | BS149: 2 | BT149: 1 | BU149: 1 | BV149: 31
M150: 550 | AF150: TB_20 | AG150: 15 | AH150: 7 | AJ150: TB_23 | AK150: 8 | AL150: 6.5 | AN150: TB_26 | AO150: 24 | AP150: 6.5 | AR150: TB_29 | AS150: 11 | AT150: 6 | AV150: TB_32 | AW150: 1 | AX150: 5.5 | AZ150: TB_35 | BA150: 8 | BB150: 5.5 | BD150: TB_38 | BE150: 1 | BF150: 5 | BH150: TB_41 | BI150: 8 | BJ150: 5 | BP150: 21212 | BQ150: 2 | BR150: 1 | BS150: 2 | BT150: 1 | BU150: 2 | BV150: 32
M151: 600 | AG151: 110 | AH151: 7.5 | AK151: 70 | AL151: 7 | AO151: 190 | AP151: 7 | AS151: 110 | AT151: 6.5 | AW151: 19 | AX151: 6 | BA151: 84 | BB151: 6 | BE151: 23 | BF151: 5.5 | BI151: 98 | BJ151: 5.5 | BP151: 21213 | BQ151: 2 | BR151: 1 | BS151: 2 | BT151: 1 | BU151: 3 | BV151: 33
AG152: 590 | AH152: 8 | AK152: 440 | AL152: 7.5 | AO152: 1100 | AP152: 7.5 | AS152: 750 | AT152: 7 | AW152: 160 | AX152: 6.5 | BA152: 620 | BB152: 6.5 | BE152: 220 | BF152: 6 | BI152: 810 | BJ152: 6 | BP152: 21221 | BQ152: 2 | BR152: 1 | BS152: 2 | BT152: 2 | BU152: 1 | BV152: 34
M153: =IF(sel_modulo_rotura=550,1,2) -> 1 | AG153: 2700 | AH153: 8.5 | AK153: 2300 | AL153: 8 | AW153: 1000 | AX153: 7 | BA153: 3600 | BB153: 7 | BE153: 1500 | BF153: 6.5 | BI153: 5200 | BJ153: 6.5 | BP153: 21222 | BQ153: 2 | BR153: 1 | BS153: 2 | BT153: 2 | BU153: 2 | BV153: 35
BP154: 21223 | BQ154: 2 | BR154: 1 | BS154: 2 | BT154: 2 | BU154: 3 | BV154: 36
M155: =IF(M153=1,"4 kg/m3","3 kg/m3") -> 4 kg/m3 | BP155: 21231 | BQ155: 2 | BR155: 1 | BS155: 2 | BT155: 3 | BU155: 1 | BV155: 37
AG156: TDPC ADMISIBLE | AH156: espesor losa | AK156: TDPC ADMISIBLE | AL156: espesor losa | AO156: TDPC ADMISIBLE | AP156: espesor losa | AS156: TDPC ADMISIBLE | AT156: espesor losa | AW156: TDPC ADMISIBLE | AX156: espesor losa | BA156: TDPC ADMISIBLE | BB156: espesor losa | BE156: TDPC ADMISIBLE | BF156: espesor losa | BI156: TDPC ADMISIBLE | BJ156: espesor losa | BP156: 21232 | BQ156: 2 | BR156: 1 | BS156: 2 | BT156: 3 | BU156: 2 | BV156: 38
M157: =IF(cond_ref="Sin Refuerzo",1,2) -> 2 | AF157: TB_21 | AG157: 9 | AH157: 6.5 | AJ157: TB_24 | AK157: 4 | AL157: 6 | AN157: TB_27 | AO157: 12 | AP157: 6 | AR157: TB_30 | AS157: 5 | AT157: 5.5 | AV157: TB_33 | AW157: 9 | AX157: 5.5 | AZ157: TB_36 | BA157: 3 | BB157: 5 | BD157: TB_39 | BE157: 9 | BF157: 5 | BH157: TB_42 | BI157: 42 | BJ157: 5 | BP157: 21233 | BQ157: 2 | BR157: 1 | BS157: 2 | BT157: 3 | BU157: 3 | BV157: 39
AG158: 80 | AH158: 7 | AK158: 43 | AL158: 6.5 | AO158: 120 | AP158: 6.5 | AS158: 59 | AT158: 6 | AW158: 96 | AX158: 6 | BA158: 42 | BB158: 5.5 | BE158: 120 | BF158: 5.5 | BI158: 450 | BJ158: 5.5 | BP158: 21241 | BQ158: 2 | BR158: 1 | BS158: 2 | BT158: 4 | BU158: 1 | BV158: 40
AG159: 490 | AH159: 7.5 | AK159: 320 | AL159: 7 | AO159: 840 | AP159: 7 | AS159: 490 | AT159: 6.5 | AW159: 710 | AX159: 6.5 | BA159: 380 | BB159: 6 | BE159: 970 | BF159: 6 | BI159: 3400 | BJ159: 6 | BP159: 21242 | BQ159: 2 | BR159: 1 | BS159: 2 | BT159: 4 | BU159: 2 | BV159: 41
AG160: 2500 | AH160: 8 | AK160: 1900 | AL160: 7.5 | AS160: 3100 | AT160: 7 | AW160: 4200 | AX160: 7 | BA160: 2600 | BB160: 6.5 | BP160: 21243 | BQ160: 2 | BR160: 1 | BS160: 2 | BT160: 4 | BU160: 3 | BV160: 42
BP161: 22111 | BQ161: 2 | BR161: 2 | BS161: 1 | BT161: 1 | BU161: 1 | BV161: 43
BP162: 22112 | BQ162: 2 | BR162: 2 | BS162: 1 | BT162: 1 | BU162: 2 | BV162: 44
BP163: 22113 | BQ163: 2 | BR163: 2 | BS163: 1 | BT163: 1 | BU163: 3 | BV163: 45
BP164: 22121 | BQ164: 2 | BR164: 2 | BS164: 1 | BT164: 2 | BU164: 1 | BV164: 46
BP165: 22122 | BQ165: 2 | BR165: 2 | BS165: 1 | BT165: 2 | BU165: 2 | BV165: 47
BP166: 22123 | BQ166: 2 | BR166: 2 | BS166: 1 | BT166: 2 | BU166: 3 | BV166: 48
AG167: TDPC ADMISIBLE | AH167: espesor losa | AK167: TDPC ADMISIBLE | AL167: espesor losa | AO167: TDPC ADMISIBLE | AP167: espesor losa | AS167: TDPC ADMISIBLE | AT167: espesor losa | AW167: TDPC ADMISIBLE | AX167: espesor losa | BA167: TDPC ADMISIBLE | BB167: espesor losa | BE167: TDPC ADMISIBLE | BF167: espesor losa | BI167: TDPC ADMISIBLE | BJ167: espesor losa | BP167: 22131 | BQ167: 2 | BR167: 2 | BS167: 1 | BT167: 3 | BU167: 1 | BV167: 49
AF168: TB_43 | AG168: 19 | AH168: 7.5 | AJ168: TB_46 | AK168: 11 | AL168: 7 | AN168: TB_49 | AO168: 4 | AP168: 6.5 | AR168: TB_52 | AS168: 19 | AT168: 6.5 | AV168: TB_55 | AW168: 3 | AX168: 6 | AZ168: TB_58 | BA168: 14 | BB168: 6 | BD168: TB_61 | BE168: 3 | BF168: 5.5 | BH168: TB_64 | BI168: 17 | BJ168: 5.5 | BP168: 22132 | BQ168: 2 | BR168: 2 | BS168: 1 | BT168: 3 | BU168: 2 | BV168: 50
AG169: 120 | AH169: 8 | AK169: 84 | AL169: 7.5 | AO169: 34 | AP169: 7 | AS169: 150 | AT169: 7 | AW169: 29 | AX169: 6.5 | BA169: 120 | BB169: 6.5 | BE169: 41 | BF169: 6 | BI169: 160 | BJ169: 6 | BP169: 22133 | BQ169: 2 | BR169: 2 | BS169: 1 | BT169: 3 | BU169: 3 | BV169: 51
AG170: 560 | AH170: 8.5 | AK170: 470 | AL170: 8 | AO170: 230 | AP170: 7.5 | AS170: 890 | AT170: 7.5 | AW170: 210 | AX170: 7 | BA170: 770 | BB170: 7 | BE170: 320 | BF170: 6.5 | BI170: 1100 | BJ170: 6.5 | BP170: 22141 | BQ170: 2 | BR170: 2 | BS170: 1 | BT170: 4 | BU170: 1 | BV170: 52
AG171: 2400 | AH171: 9 | AK171: 2200 | AL171: 8.5 | AO171: 1200 | AP171: 8 | AW171: 1100 | AX171: 7.5 | BE171: 1900 | BF171: 7 | BP171: 22142 | BQ171: 2 | BR171: 2 | BS171: 1 | BT171: 4 | BU171: 2 | BV171: 53
BP172: 22143 | BQ172: 2 | BR172: 2 | BS172: 1 | BT172: 4 | BU172: 3 | BV172: 54
BP173: 22211 | BQ173: 2 | BR173: 2 | BS173: 2 | BT173: 1 | BU173: 1 | BV173: 55
AG174: TDPC ADMISIBLE | AH174: espesor losa | AK174: TDPC ADMISIBLE | AL174: espesor losa | AO174: TDPC ADMISIBLE | AP174: espesor losa | AS174: TDPC ADMISIBLE | AT174: espesor losa | AW174: TDPC ADMISIBLE | AX174: espesor losa | BA174: TDPC ADMISIBLE | BB174: espesor losa | BE174: TDPC ADMISIBLE | BF174: espesor losa | BI174: TDPC ADMISIBLE | BJ174: espesor losa | BP174: 22212 | BQ174: 2 | BR174: 2 | BS174: 2 | BT174: 1 | BU174: 2 | BV174: 56
AF175: TB_44 | AG175: 15 | AH175: 7 | AJ175: TB_47 | AK175: 8 | AL175: 6.5 | AN175: TB_50 | AO175: 24 | AP175: 6.5 | AR175: TB_53 | AS175: 11 | AT175: 6 | AV175: TB_56 | AW175: 1 | AX175: 5.5 | AZ175: TB_59 | BA175: 8 | BB175: 5.5 | BD175: TB_62 | BE175: 1 | BF175: 5 | BH175: TB_65 | BI175: 8 | BJ175: 5 | BP175: 22213 | BQ175: 2 | BR175: 2 | BS175: 2 | BT175: 1 | BU175: 3 | BV175: 57
AG176: 110 | AH176: 7.5 | AK176: 70 | AL176: 7 | AO176: 190 | AP176: 7 | AS176: 110 | AT176: 6.5 | AW176: 19 | AX176: 6 | BA176: 84 | BB176: 6 | BE176: 23 | BF176: 5.5 | BI176: 98 | BJ176: 5.5 | BP176: 22221 | BQ176: 2 | BR176: 2 | BS176: 2 | BT176: 2 | BU176: 1 | BV176: 58
AG177: 590 | AH177: 8 | AK177: 440 | AL177: 7.5 | AO177: 1100 | AP177: 7.5 | AS177: 750 | AT177: 7 | AW177: 160 | AX177: 6.5 | BA177: 620 | BB177: 6.5 | BE177: 220 | BF177: 6 | BI177: 810 | BJ177: 6 | BP177: 22222 | BQ177: 2 | BR177: 2 | BS177: 2 | BT177: 2 | BU177: 2 | BV177: 59
AG178: 1900 | AH178: 8.5 | AK178: 1900 | AL178: 8 | AS178: 2100 | AT178: 7.5 | AW178: 1000 | AX178: 7 | BA178: 1900 | BB178: 7 | BE178: 1400 | BF178: 6.5 | BI178: 2100 | BJ178: 6.5 | BP178: 22223 | BQ178: 2 | BR178: 2 | BS178: 2 | BT178: 2 | BU178: 3 | BV178: 60
BP179: 22231 | BQ179: 2 | BR179: 2 | BS179: 2 | BT179: 3 | BU179: 1 | BV179: 61
BP180: 22232 | BQ180: 2 | BR180: 2 | BS180: 2 | BT180: 3 | BU180: 2 | BV180: 62
AG181: TDPC ADMISIBLE | AH181: espesor losa | AK181: TDPC ADMISIBLE | AL181: espesor losa | AO181: TDPC ADMISIBLE | AP181: espesor losa | AS181: TDPC ADMISIBLE | AT181: espesor losa | AW181: TDPC ADMISIBLE | AX181: espesor losa | BA181: TDPC ADMISIBLE | BB181: espesor losa | BE181: TDPC ADMISIBLE | BF181: espesor losa | BI181: TDPC ADMISIBLE | BJ181: espesor losa | BP181: 22233 | BQ181: 2 | BR181: 2 | BS181: 2 | BT181: 3 | BU181: 3 | BV181: 63
AF182: TB_45 | AG182: 9 | AH182: 6.5 | AJ182: TB_48 | AK182: 4 | AL182: 6 | AN182: TB_51 | AO182: 12 | AP182: 6 | AR182: TB_54 | AS182: 5 | AT182: 5.5 | AV182: TB_57 | AW182: 9 | AX182: 5.5 | AZ182: TB_60 | BA182: 3 | BB182: 5 | BD182: TB_63 | BE182: 9 | BF182: 5 | BH182: TB_66 | BI182: 42 | BJ182: 5 | BP182: 22241 | BQ182: 2 | BR182: 2 | BS182: 2 | BT182: 4 | BU182: 1 | BV182: 64
AG183: 80 | AH183: 7 | AK183: 43 | AL183: 6.5 | AO183: 120 | AP183: 6.5 | AS183: 59 | AT183: 6 | AW183: 96 | AX183: 6 | BA183: 42 | BB183: 5.5 | BE183: 120 | BF183: 5.5 | BI183: 450 | BJ183: 5.5 | BP183: =BQ183&BR183&BS183&BT183&BU183 -> 22242 | BQ183: 2 | BR183: 2 | BS183: 2 | BT183: 4 | BU183: 2 | BV183: 65
AG184: 490 | AH184: 7.5 | AK184: 320 | AL184: 7 | AO184: 840 | AP184: 7 | AS184: 490 | AT184: 6.5 | AW184: 650 | AX184: 6.5 | BA184: 380 | BB184: 6 | BE184: 700 | BF184: 6 | BI184: 970 | BJ184: 6 | BP184: 22243 | BQ184: 2 | BR184: 2 | BS184: 2 | BT184: 4 | BU184: 3 | BV184: 66
AG185: 1300 | AH185: 8 | AK185: 1200 | AL185: 7.5 | AO185: 1500 | AP185: 7.5 | AS185: 1200 | AT185: 7 | AW185: 1100 | AX185: 7 | BA185: 1000 | BB185: 6.5 | BE185: 1400 | BF185: 6.5 | BI185: 2100 | BJ185: 6.5 | BP185: 31111 | BQ185: 3 | BR185: 1 | BS185: 1 | BT185: 1 | BU185: 1 | BV185: 67
AK186: 1900 | AL186: 8 | BA186: 1900 | BB186: 7 | BP186: 31112 | BQ186: 3 | BR186: 1 | BS186: 1 | BT186: 1 | BU186: 2 | BV186: 68
BP187: 31113 | BQ187: 3 | BR187: 1 | BS187: 1 | BT187: 1 | BU187: 3 | BV187: 69
BP188: 31121 | BQ188: 3 | BR188: 1 | BS188: 1 | BT188: 2 | BU188: 1 | BV188: 70
BP189: 31122 | BQ189: 3 | BR189: 1 | BS189: 1 | BT189: 2 | BU189: 2 | BV189: 71
BP190: 31123 | BQ190: 3 | BR190: 1 | BS190: 1 | BT190: 2 | BU190: 3 | BV190: 72
BP191: 31131 | BQ191: 3 | BR191: 1 | BS191: 1 | BT191: 3 | BU191: 1 | BV191: 73
AG192: TDPC ADMISIBLE | AH192: espesor losa | AK192: TDPC ADMISIBLE | AL192: espesor losa | AO192: TDPC ADMISIBLE | AP192: espesor losa | AS192: TDPC ADMISIBLE | AT192: espesor losa | AW192: TDPC ADMISIBLE | AX192: espesor losa | BA192: TDPC ADMISIBLE | BB192: espesor losa | BE192: TDPC ADMISIBLE | BF192: espesor losa | BI192: TDPC ADMISIBLE | BJ192: espesor losa | BP192: 31132 | BQ192: 3 | BR192: 1 | BS192: 1 | BT192: 3 | BU192: 2 | BV192: 74
AF193: TB_67 | AG193: 120 | AH193: 9.5 | AJ193: TB_70 | AK193: 120 | AL193: 9 | AN193: TB_73 | AO193: 70 | AP193: 8.5 | AR193: TB_76 | AS193: 300 | AT193: 8.5 | AV193: TB_79 | AW193: 67 | AX193: 8 | AZ193: TB_82 | BA193: 270 | BB193: 8 | BD193: TB_85 | BE193: 130 | BF193: 7.5 | BH193: TB_88 | BI193: 82 | BJ193: 7 | BP193: 31133 | BQ193: 3 | BR193: 1 | BS193: 1 | BT193: 3 | BU193: 3 | BV193: 75
AG194: 460 | AH194: 10 | AK194: 520 | AL194: 9.5 | AO194: 340 | AP194: 9 | AS194: 1300 | AT194: 9 | AW194: 330 | AX194: 8.5 | BA194: 1200 | BB194: 8.5 | BE194: 670 | BF194: 8 | BI194: 480 | BJ194: 7.5 | BP194: 31141 | BQ194: 3 | BR194: 1 | BS194: 1 | BT194: 4 | BU194: 1 | BV194: 76
AG195: 1600 | AH195: 10.5 | AK195: 1900 | AL195: 10 | AO195: 1300 | AP195: 9.5 | AS195: 5100 | AT195: 9.5 | AW195: 1400 | AX195: 9 | BA195: 4900 | BB195: 9 | BE195: 2900 | BF195: 8.5 | BI195: 2300 | BJ195: 8 | BP195: 31142 | BQ195: 3 | BR195: 1 | BS195: 1 | BT195: 4 | BU195: 2 | BV195: 77
AG196: 4900 | AH196: 11 | AK196: 6500 | AL196: 10.5 | AO196: 4900 | AP196: 10 | AS196: 19100 | AT196: 10 | AW196: 5100 | AX196: 9.5 | BA196: 18600 | BB196: 9.5 | BE196: 11700 | BF196: 9 | BI196: 9700 | BJ196: 8.5 | BP196: 31143 | BQ196: 3 | BR196: 1 | BS196: 1 | BT196: 4 | BU196: 3 | BV196: 78
AO197: 17400 | AP197: 10.5 | BP197: 31211 | BQ197: 3 | BR197: 1 | BS197: 2 | BT197: 1 | BU197: 1 | BV197: 79
BP198: 31212 | BQ198: 3 | BR198: 1 | BS198: 2 | BT198: 1 | BU198: 2 | BV198: 80
AG199: TDPC ADMISIBLE | AH199: espesor losa | AK199: TDPC ADMISIBLE | AL199: espesor losa | AO199: TDPC ADMISIBLE | AP199: espesor losa | AS199: TDPC ADMISIBLE | AT199: espesor losa | AW199: TDPC ADMISIBLE | AX199: espesor losa | BA199: TDPC ADMISIBLE | BB199: espesor losa | BE199: TDPC ADMISIBLE | BF199: espesor losa | BI199: TDPC ADMISIBLE | BJ199: espesor losa | BP199: 31213 | BQ199: 3 | BR199: 1 | BS199: 2 | BT199: 1 | BU199: 3 | BV199: 81
AF200: TB_68 | AG200: 160 | AH200: 9 | AJ200: TB_71 | AK200: 140 | AL200: 8.5 | AN200: TB_74 | AO200: 73 | AP200: 8 | AR200: TB_77 | AS200: 310 | AT200: 8 | AV200: TB_80 | AW200: 370 | AX200: 8 | AZ200: TB_83 | BA200: 270 | BB200: 7.5 | BD200: TB_86 | BE200: 120 | BF200: 7 | BH200: TB_89 | BI200: 67 | BJ200: 6.5 | BP200: 31221 | BQ200: 3 | BR200: 1 | BS200: 2 | BT200: 2 | BU200: 1 | BV200: 82
AG201: 630 | AH201: 9.5 | AK201: 640 | AL201: 9 | AO201: 380 | AP201: 8.5 | AS201: 1500 | AT201: 8.5 | AW201: 1600 | AX201: 8.5 | BA201: 1300 | BB201: 8 | BE201: 680 | BF201: 7.5 | BI201: 440 | BJ201: 7 | BP201: 31222 | BQ201: 3 | BR201: 1 | BS201: 2 | BT201: 2 | BU201: 2 | BV201: 83
AG202: 2300 | AH202: 10 | AK202: 2500 | AL202: 9.5 | AO202: 1700 | AP202: 9 | AS202: 6200 | AT202: 9 | AW202: 6600 | AX202: 9 | BA202: 5800 | BB202: 8.5 | BE202: 3200 | BF202: 8 | BI202: 2300 | BJ202: 7.5 | BP202: 31223 | BQ202: 3 | BR202: 1 | BS202: 2 | BT202: 2 | BU202: 3 | BV202: 84
AG203: 7700 | AH203: 10.5 | AK203: 9300 | AL203: 10 | AO203: 6500 | AP203: 9.5 | BE203: 14100 | BF203: 8.5 | BI203: 10800 | BJ203: 8 | BP203: 31231 | BQ203: 3 | BR203: 1 | BS203: 2 | BT203: 3 | BU203: 1 | BV203: 85
BP204: 31232 | BQ204: 3 | BR204: 1 | BS204: 2 | BT204: 3 | BU204: 2 | BV204: 86
BP205: 31233 | BQ205: 3 | BR205: 1 | BS205: 2 | BT205: 3 | BU205: 3 | BV205: 87
AG206: TDPC ADMISIBLE | AH206: espesor losa | AK206: TDPC ADMISIBLE | AL206: espesor losa | AO206: TDPC ADMISIBLE | AP206: espesor losa | AS206: TDPC ADMISIBLE | AT206: espesor losa | AW206: TDPC ADMISIBLE | AX206: espesor losa | BA206: TDPC ADMISIBLE | BB206: espesor losa | BE206: TDPC ADMISIBLE | BF206: espesor losa | BI206: TDPC ADMISIBLE | BJ206: espesor losa | BP206: 31241 | BQ206: 3 | BR206: 1 | BS206: 2 | BT206: 4 | BU206: 1 | BV206: 88
AF207: TB_69 | AG207: 160 | AH207: 8.5 | AJ207: TB_72 | AK207: 130 | AL207: 8 | AN207: TB_75 | AO207: 350 | AP207: 8 | AR207: TB_78 | AS207: 250 | AT207: 7.5 | AV207: TB_81 | AW207: 52 | AX207: 7 | AZ207: TB_84 | BA207: 220 | BB207: 7 | BD207: TB_87 | BE207: 83 | BF207: 6.5 | BH207: TB_90 | BI207: 320 | BJ207: 6.5 | BP207: 31242 | BQ207: 3 | BR207: 1 | BS207: 2 | BT207: 4 | BU207: 2 | BV207: 89
AG208: 700 | AH208: 9 | AK208: 640 | AL208: 8.5 | AO208: 1600 | AP208: 8.5 | AS208: 1300 | AT208: 8 | AW208: 320 | AX208: 7.5 | BA208: 1200 | BB208: 7.5 | BE208: 550 | BF208: 7 | BI208: 1900 | BJ208: 7 | BP208: 31243 | BQ208: 3 | BR208: 1 | BS208: 2 | BT208: 4 | BU208: 3 | BV208: 90
AG209: 2700 | AH209: 9.5 | AK209: 2700 | AL209: 9 | AO209: 7000 | AP209: 9 | AS209: 6200 | AT209: 8.5 | AW209: 1600 | AX209: 8 | BA209: 5700 | BB209: 8 | BE209: 2900 | BF209: 7.5 | BI209: 9800 | BJ209: 7.5 | BP209: 32111 | BQ209: 3 | BR209: 2 | BS209: 1 | BT209: 1 | BU209: 1 | BV209: 91
AG210: 9900 | AH210: 10 | AK210: 10800 | AL210: 9.5 | AS210: 11500 | AT210: 9 | AW210: 6900 | AX210: 8.5 | BA210: 23700 | BB210: 8.5 | BE210: 13800 | BF210: 8 | BP210: 32112 | BQ210: 3 | BR210: 2 | BS210: 1 | BT210: 1 | BU210: 2 | BV210: 92
BP211: 32113 | BQ211: 3 | BR211: 2 | BS211: 1 | BT211: 1 | BU211: 3 | BV211: 93
BP212: 32121 | BQ212: 3 | BR212: 2 | BS212: 1 | BT212: 2 | BU212: 1 | BV212: 94
BP213: 32122 | BQ213: 3 | BR213: 2 | BS213: 1 | BT213: 2 | BU213: 2 | BV213: 95
BP214: 32123 | BQ214: 3 | BR214: 2 | BS214: 1 | BT214: 2 | BU214: 3 | BV214: 96
BP215: 32131 | BQ215: 3 | BR215: 2 | BS215: 1 | BT215: 3 | BU215: 1 | BV215: 97
BP216: 32132 | BQ216: 3 | BR216: 2 | BS216: 1 | BT216: 3 | BU216: 2 | BV216: 98
AG217: TDPC ADMISIBLE | AH217: espesor losa | AK217: TDPC ADMISIBLE | AL217: espesor losa | AO217: TDPC ADMISIBLE | AP217: espesor losa | AS217: TDPC ADMISIBLE | AT217: espesor losa | AW217: TDPC ADMISIBLE | AX217: espesor losa | BA217: TDPC ADMISIBLE | BB217: espesor losa | BE217: TDPC ADMISIBLE | BF217: espesor losa | BI217: TDPC ADMISIBLE | BJ217: espesor losa | BP217: 32133 | BQ217: 3 | BR217: 2 | BS217: 1 | BT217: 3 | BU217: 3 | BV217: 99
AF218: TB_91 | AG218: 120 | AH218: 9.5 | AJ218: TB_94 | AK218: 120 | AL218: 9 | AN218: TB_97 | AO218: 70 | AP218: 8.5 | AR218: TB_100 | AS218: 56 | AT218: 8 | AV218: TB_103 | AW218: 67 | AX218: 8 | AZ218: TB_106 | BA218: 270 | BB218: 8 | BD218: TB_109 | BE218: 130 | BF218: 7.5 | BH218: TB_112 | BI218: 82 | BJ218: 7 | BP218: 32141 | BQ218: 3 | BR218: 2 | BS218: 1 | BT218: 4 | BU218: 1 | BV218: 100
AG219: 460 | AH219: 10 | AK219: 520 | AL219: 9.5 | AO219: 340 | AP219: 9 | AS219: 300 | AT219: 8.5 | AW219: 330 | AX219: 8.5 | BA219: 1200 | BB219: 8.5 | BE219: 670 | BF219: 8 | BI219: 480 | BJ219: 7.5 | BP219: 32142 | BQ219: 3 | BR219: 2 | BS219: 1 | BT219: 4 | BU219: 2 | BV219: 101
AG220: 1600 | AH220: 10.5 | AK220: 1900 | AL220: 10 | AO220: 1300 | AP220: 9.5 | AS220: 1300 | AT220: 9 | AW220: 1400 | AX220: 9 | BA220: 2900 | BB220: 9 | BE220: 2700 | BF220: 8.5 | BI220: 2300 | BJ220: 8 | BP220: 32143 | BQ220: 3 | BR220: 2 | BS220: 1 | BT220: 4 | BU220: 3 | BV220: 102
AG221: 2500 | AH221: 11 | AK221: 2900 | AL221: 10.5 | AO221: 2800 | AP221: 10 | AS221: 2900 | AT221: 9.5 | AW221: 2300 | AX221: 9.5 | BA221: 4700 | BB221: 9.5 | BE221: 4600 | BF221: 9 | BI221: 4700 | BJ221: 8.5 | BP221: 32211 | BQ221: 3 | BR221: 2 | BS221: 2 | BT221: 1 | BU221: 1 | BV221: 103
AG222: 3300 | AH222: 11.5 | AK222: 4000 | AL222: 11 | AO222: 4000 | AP222: 10.5 | AS222: 4300 | AT222: 10 | AW222: 3500 | AX222: 10 | BA222: 7700 | BB222: 10 | BE222: 8000 | BF222: 9.5 | BI222: 8700 | BJ222: 9 | BP222: 32212 | BQ222: 3 | BR222: 2 | BS222: 2 | BT222: 1 | BU222: 2 | BV222: 104
AG223: 4400 | AH223: 12 | AK223: 5500 | AL223: 11.5 | AO223: 5700 | AP223: 11 | AS223: 6300 | AT223: 10.5 | AW223: 5300 | AX223: 10.5 | BP223: 32213 | BQ223: 3 | BR223: 2 | BS223: 2 | BT223: 1 | BU223: 3 | BV223: 105
AK224: 7500 | AL224: 12 | AO224: 7900 | AP224: 11.5 | AS224: 9200 | AT224: 11 | AW224: 8100 | AX224: 11 | BP224: 32221 | BQ224: 3 | BR224: 2 | BS224: 2 | BT224: 2 | BU224: 1 | BV224: 106
BP225: 32222 | BQ225: 3 | BR225: 2 | BS225: 2 | BT225: 2 | BU225: 2 | BV225: 107
AG226: TDPC ADMISIBLE | AH226: espesor losa | AK226: TDPC ADMISIBLE | AL226: espesor losa | AO226: TDPC ADMISIBLE | AP226: espesor losa | AS226: TDPC ADMISIBLE | AT226: espesor losa | AW226: TDPC ADMISIBLE | AX226: espesor losa | BA226: TDPC ADMISIBLE | BB226: espesor losa | BE226: TDPC ADMISIBLE | BF226: espesor losa | BI226: TDPC ADMISIBLE | BJ226: espesor losa | BP226: 32223 | BQ226: 3 | BR226: 2 | BS226: 2 | BT226: 2 | BU226: 3 | BV226: 108
AF227: TB_92 | AG227: 160 | AH227: 9 | AJ227: TB_95 | AK227: 140 | AL227: 8.5 | AN227: TB_98 | AO227: 73 | AP227: 8 | AR227: TB_101 | AS227: 310 | AT227: 8 | AV227: TB_104 | AW227: 67 | AX227: 7.5 | AZ227: TB_107 | BA227: 270 | BB227: 7.5 | BD227: TB_110 | BE227: 120 | BF227: 7 | BH227: TB_113 | BI227: 440 | BJ227: 7 | BP227: 32231 | BQ227: 3 | BR227: 2 | BS227: 2 | BT227: 3 | BU227: 1 | BV227: 109
AG228: 630 | AH228: 9.5 | AK228: 640 | AL228: 9 | AO228: 380 | AP228: 8.5 | AS228: 1300 | AT228: 8.5 | AW228: 370 | AX228: 8 | BA228: 1100 | BB228: 8 | BE228: 680 | BF228: 7.5 | BI228: 1400 | BJ228: 7.5 | BP228: 32232 | BQ228: 3 | BR228: 2 | BS228: 2 | BT228: 3 | BU228: 2 | BV228: 110
AG229: 1300 | AH229: 10 | AK229: 1500 | AL229: 9.5 | AO229: 1300 | AP229: 9 | AS229: 2000 | AT229: 9 | AW229: 950 | AX229: 8.5 | BA229: 1800 | BB229: 8.5 | BE229: 1500 | BF229: 8 | BI229: 2500 | BJ229: 8 | BP229: 32233 | BQ229: 3 | BR229: 2 | BS229: 2 | BT229: 3 | BU229: 3 | BV229: 111
AG230: 1800 | AH230: 10.5 | AK230: 2100 | AL230: 10 | AO230: 2000 | AP230: 9.5 | AS230: 2900 | AT230: 9.5 | AW230: 1500 | AX230: 9 | BA230: 2900 | BB230: 9 | BE230: 2700 | BF230: 8.5 | BI230: 4700 | BJ230: 8.5 | BP230: 32241 | BQ230: 3 | BR230: 2 | BS230: 2 | BT230: 4 | BU230: 1 | BV230: 112
AG231: 2500 | AH231: 11 | AK231: 2900 | AL231: 10.5 | AO231: 2800 | AP231: 10 | AS231: 4300 | AT231: 10 | AW231: 2300 | AX231: 9.5 | BA231: 4700 | BB231: 9.5 | BE231: 4600 | BF231: 9 | BI231: 8700 | BJ231: 9 | BP231: 32242 | BQ231: 3 | BR231: 2 | BS231: 2 | BT231: 4 | BU231: 2 | BV231: 113
AG232: 3300 | AH232: 11.5 | AK232: 4000 | AL232: 11 | AO232: 4000 | AP232: 10.5 | AS232: 6300 | AT232: 10.5 | AW232: 3500 | AX232: 10 | BA232: 7700 | BB232: 10 | BE232: 8000 | BF232: 9.5 | BP232: 32243 | BQ232: 3 | BR232: 2 | BS232: 2 | BT232: 4 | BU232: 3 | BV232: 114
AG233: 4400 | AH233: 12 | AK233: 5500 | AL233: 11.5 | AO233: 5700 | AP233: 11 | AS233: 9200 | AT233: 11 | AW233: 5300 | AX233: 10.5 | BP233: 41111 | BQ233: 4 | BR233: 1 | BS233: 1 | BT233: 1 | BU233: 1 | BV233: 115
AK234: 7500 | AL234: 12 | AO234: 7900 | AP234: 11.5 | AW234: 8100 | AX234: 11 | BP234: 41112 | BQ234: 4 | BR234: 1 | BS234: 1 | BT234: 1 | BU234: 2 | BV234: 116
BP235: 41113 | BQ235: 4 | BR235: 1 | BS235: 1 | BT235: 1 | BU235: 3 | BV235: 117
AG236: TDPC ADMISIBLE | AH236: espesor losa | AK236: TDPC ADMISIBLE | AL236: espesor losa | AO236: TDPC ADMISIBLE | AP236: espesor losa | AS236: TDPC ADMISIBLE | AT236: espesor losa | AW236: TDPC ADMISIBLE | AX236: espesor losa | BA236: TDPC ADMISIBLE | BB236: espesor losa | BE236: TDPC ADMISIBLE | BF236: espesor losa | BI236: TDPC ADMISIBLE | BJ236: espesor losa | BP236: 41121 | BQ236: 4 | BR236: 1 | BS236: 1 | BT236: 2 | BU236: 1 | BV236: 118
AF237: TB_93 | AG237: 160 | AH237: 8.5 | AJ237: TB_96 | AK237: 130 | AL237: 8 | AN237: TB_99 | AO237: 60 | AP237: 7.5 | AR237: TB_102 | AS237: 250 | AT237: 7.5 | AV237: TB_105 | AW237: 320 | AX237: 7.5 | AZ237: TB_108 | BA237: 220 | BB237: 7 | BD237: TB_111 | BE237: 510 | BF237: 7 | BH237: TB_114 | BI237: 750 | BJ237: 7 | BP237: 41122 | BQ237: 4 | BR237: 1 | BS237: 1 | BT237: 2 | BU237: 2 | BV237: 119
AG238: 680 | AH238: 9 | AK238: 640 | AL238: 8.5 | AO238: 350 | AP238: 8 | AS238: 830 | AT238: 8 | AW238: 610 | AX238: 8 | BA238: 640 | BB238: 7.5 | BE238: 890 | BF238: 7.5 | BI238: 1400 | BJ238: 7.5 | BP238: 41123 | BQ238: 4 | BR238: 1 | BS238: 1 | BT238: 2 | BU238: 3 | BV238: 120
AG239: 960 | AH239: 9.5 | AK239: 1000 | AL239: 9 | AO239: 900 | AP239: 8.5 | AS239: 1300 | AT239: 8.5 | AW239: 950 | AX239: 8.5 | BA239: 1100 | BB239: 8 | BE239: 1500 | BF239: 8 | BI239: 2500 | BJ239: 8 | BP239: 41131 | BQ239: 4 | BR239: 1 | BS239: 1 | BT239: 3 | BU239: 1 | BV239: 121
AG240: 1300 | AH240: 10 | AK240: 1500 | AL240: 9.5 | AO240: 1300 | AP240: 9 | AS240: 2000 | AT240: 9 | AW240: 1500 | AX240: 9 | BA240: 1800 | BB240: 8.5 | BE240: 2700 | BF240: 8.5 | BI240: 4700 | BJ240: 8.5 | BP240: 41132 | BQ240: 4 | BR240: 1 | BS240: 1 | BT240: 3 | BU240: 2 | BV240: 122
AG241: 1800 | AH241: 10.5 | AK241: 2100 | AL241: 10 | AO241: 2000 | AP241: 9.5 | AS241: 2900 | AT241: 9.5 | AW241: 2300 | AX241: 9.5 | BA241: 2900 | BB241: 9 | BE241: 4600 | BF241: 9 | BI241: 8700 | BJ241: 9 | BP241: 41133 | BQ241: 4 | BR241: 1 | BS241: 1 | BT241: 3 | BU241: 3 | BV241: 123
AG242: 2500 | AH242: 11 | AK242: 2900 | AL242: 10.5 | AO242: 2800 | AP242: 10 | AS242: 4300 | AT242: 10 | AW242: 3500 | AX242: 10 | BA242: 4700 | BB242: 9.5 | BE242: 8000 | BF242: 9.5 | BP242: 41141 | BQ242: 4 | BR242: 1 | BS242: 1 | BT242: 4 | BU242: 1 | BV242: 124
AG243: 3300 | AH243: 11.5 | AK243: 4000 | AL243: 11 | AO243: 4000 | AP243: 10.5 | AS243: 6300 | AT243: 10.5 | AW243: 5300 | AX243: 10.5 | BA243: 7700 | BB243: 10 | BP243: 41142 | BQ243: 4 | BR243: 1 | BS243: 1 | BT243: 4 | BU243: 2 | BV243: 125
AG244: 4400 | AH244: 12 | AK244: 5500 | AL244: 11.5 | AO244: 5700 | AP244: 11 | AS244: 9200 | AT244: 11 | AW244: 8100 | AX244: 11 | BP244: 41143 | BQ244: 4 | BR244: 1 | BS244: 1 | BT244: 4 | BU244: 3 | BV244: 126
AK245: 7500 | AL245: 12 | AO245: 7900 | AP245: 11.5 | BP245: 41211 | BQ245: 4 | BR245: 1 | BS245: 2 | BT245: 1 | BU245: 1 | BV245: 127
BP246: 41212 | BQ246: 4 | BR246: 1 | BS246: 2 | BT246: 1 | BU246: 2 | BV246: 128
BP247: =BQ247&BR247&BS247&BT247&BU247 -> 41213 | BQ247: 4 | BR247: 1 | BS247: 2 | BT247: 1 | BU247: 3 | BV247: 129
BP248: 41221 | BQ248: 4 | BR248: 1 | BS248: 2 | BT248: 2 | BU248: 1 | BV248: 130
BP249: 41222 | BQ249: 4 | BR249: 1 | BS249: 2 | BT249: 2 | BU249: 2 | BV249: 131
BP250: 41223 | BQ250: 4 | BR250: 1 | BS250: 2 | BT250: 2 | BU250: 3 | BV250: 132
BP251: 41231 | BQ251: 4 | BR251: 1 | BS251: 2 | BT251: 3 | BU251: 1 | BV251: 133
AG252: TDPC ADMISIBLE | AH252: espesor losa | AK252: TDPC ADMISIBLE | AL252: espesor losa | AO252: TDPC ADMISIBLE | AP252: espesor losa | AS252: TDPC ADMISIBLE | AT252: espesor losa | AW252: TDPC ADMISIBLE | AX252: espesor losa | BA252: TDPC ADMISIBLE | BB252: espesor losa | BE252: TDPC ADMISIBLE | BF252: espesor losa | BI252: TDPC ADMISIBLE | BJ252: espesor losa | BP252: 41232 | BQ252: 4 | BR252: 1 | BS252: 2 | BT252: 3 | BU252: 2 | BV252: 134
AF253: TB_115 | AG253: 320 | AH253: 10.5 | AJ253: TB_118 | AK253: 390 | AL253: 10 | AN253: TB_121 | AO253: 280 | AP253: 9.5 | AR253: TB_124 | AS253: 260 | AT253: 9 | AV253: TB_127 | AW253: 280 | AX253: 9 | AZ253: TB_130 | BA253: 250 | BB253: 8.5 | BD253: TB_133 | BE253: 130 | BF253: 8 | BH253: TB_136 | BI253: 480 | BJ253: 8 | BP253: 41233 | BQ253: 4 | BR253: 1 | BS253: 2 | BT253: 3 | BU253: 3 | BV253: 135
AG254: 1000 | AH254: 11 | AK254: 1400 | AL254: 10.5 | AO254: 1100 | AP254: 10 | AS254: 1100 | AT254: 9.5 | AW254: 1100 | AX254: 9.5 | BA254: 1000 | BB254: 9 | BE254: 620 | BF254: 8.5 | BI254: 2100 | BJ254: 8.5 | BP254: 41241 | BQ254: 4 | BR254: 1 | BS254: 2 | BT254: 4 | BU254: 1 | BV254: 136
AG255: 3000 | AH255: 11.5 | AK255: 4300 | AL255: 11 | AO255: 3600 | AP255: 10.5 | AS255: 4000 | AT255: 10 | AW255: 3800 | AX255: 10 | BA255: 900 | BB255: 9.5 | BE255: 2500 | BF255: 9 | BI255: 8200 | BJ255: 9 | BP255: 41242 | BQ255: 4 | BR255: 1 | BS255: 2 | BT255: 4 | BU255: 2 | BV255: 137
AG256: 8200 | AH256: 12 | AK256: 13100 | AL256: 11.5 | AO256: 11600 | AP256: 11 | AS256: 13800 | AT256: 10.5 | AW256: 12400 | AX256: 10.5 | BA256: 13600 | BB256: 10 | BE256: 9300 | BF256: 9.5 | BI256: 30700 | BJ256: 9.5 | BP256: 41243 | BQ256: 4 | BR256: 1 | BS256: 2 | BT256: 4 | BU256: 3 | BV256: 138
AK257: 40000 | AL257: 12 | AO257: 37200 | AP257: 11.5 | AS257: 46600 | AT257: 11 | AW257: 40400 | AX257: 11 | BA257: 46200 | BB257: 10.5 | BE257: 32900 | BF257: 10 | BP257: 42111 | BQ257: 4 | BR257: 2 | BS257: 1 | BT257: 1 | BU257: 1 | BV257: 139
BP258: 42112 | BQ258: 4 | BR258: 2 | BS258: 1 | BT258: 1 | BU258: 2 | BV258: 140
AG259: TDPC ADMISIBLE | AH259: espesor losa | AK259: TDPC ADMISIBLE | AL259: espesor losa | AO259: TDPC ADMISIBLE | AP259: espesor losa | AS259: TDPC ADMISIBLE | AT259: espesor losa | AW259: TDPC ADMISIBLE | AX259: espesor losa | BA259: TDPC ADMISIBLE | BB259: espesor losa | BE259: TDPC ADMISIBLE | BF259: espesor losa | BI259: TDPC ADMISIBLE | BJ259: espesor losa | BP259: 42113 | BQ259: 4 | BR259: 2 | BS259: 1 | BT259: 1 | BU259: 3 | BV259: 141
AF260: TB_116 | AG260: 120 | AH260: 9.5 | AJ260: TB_119 | AK260: 120 | AL260: 9 | AN260: TB_122 | AO260: 340 | AP260: 9 | AR260: TB_125 | AS260: 300 | AT260: 8.5 | AV260: TB_128 | AW260: 340 | AX260: 8.5 | AZ260: TB_131 | BA260: 270 | BB260: 8 | BD260: TB_134 | BE260: 130 | BF260: 7.5 | BH260: TB_137 | BI260: 490 | BJ260: 7.5 | BP260: 42121 | BQ260: 4 | BR260: 2 | BS260: 1 | BT260: 2 | BU260: 1 | BV260: 142
AG261: 480 | AH261: 10 | AK261: 530 | AL261: 9.5 | AO261: 1400 | AP261: 9.5 | AS261: 1300 | AT261: 9 | AW261: 1400 | AX261: 9 | BA261: 1300 | BB261: 8.5 | BE261: 690 | BF261: 8 | BI261: 2300 | BJ261: 8 | BP261: 42122 | BQ261: 4 | BR261: 2 | BS261: 1 | BT261: 2 | BU261: 2 | BV261: 143
AG262: 1600 | AH262: 10.5 | AK262: 1900 | AL262: 10 | AO262: 5100 | AP262: 10 | AS262: 5200 | AT262: 9.5 | AW262: 5200 | AX262: 9.5 | BA262: 5000 | BB262: 9 | BE262: 3000 | BF262: 8.5 | BI262: 9900 | BJ262: 8.5 | BP262: 42123 | BQ262: 4 | BR262: 2 | BS262: 1 | BT262: 2 | BU262: 3 | BV262: 144
AG263: 4900 | AH263: 11 | AK263: 6500 | AL263: 10.5 | AO263: 17500 | AP263: 10.5 | AS263: 19300 | AT263: 10 | AW263: 18400 | AX263: 10 | BA263: 18800 | BB263: 9.5 | BE263: 12000 | BF263: 9 | BI263: 40200 | BJ263: 9 | BP263: 42131 | BQ263: 4 | BR263: 2 | BS263: 1 | BT263: 3 | BU263: 1 | BV263: 145
AG264: 14500 | AH264: 11.5 | AK264: 21400 | AL264: 11 | AO264: 53800 | AP264: 11 | AS264: 45900 | AT264: 10.5 | BE264: 45900 | BF264: 9.5 | BP264: 42132 | BQ264: 4 | BR264: 2 | BS264: 1 | BT264: 3 | BU264: 2 | BV264: 146
AG265: 44000 | AH265: 12 | AK265: 65000 | AL265: 11.5 | BP265: 42133 | BQ265: 4 | BR265: 2 | BS265: 1 | BT265: 3 | BU265: 3 | BV265: 147
BP266: 42141 | BQ266: 4 | BR266: 2 | BS266: 1 | BT266: 4 | BU266: 1 | BV266: 148
AW267: TDPC ADMISIBLE | AX267: espesor losa | BA267: TDPC ADMISIBLE | BB267: espesor losa | BE267: TDPC ADMISIBLE | BF267: espesor losa | BI267: TDPC ADMISIBLE | BJ267: espesor losa | BP267: 42142 | BQ267: 4 | BR267: 2 | BS267: 1 | BT267: 4 | BU267: 2 | BV267: 149
AG268: TDPC ADMISIBLE | AH268: espesor losa | AK268: TDPC ADMISIBLE | AL268: espesor losa | AO268: TDPC ADMISIBLE | AP268: espesor losa | AS268: TDPC ADMISIBLE | AT268: espesor losa | AV268: TB_129 | AW268: 330 | AX268: 8 | AZ268: TB_132 | BA268: 240 | BB268: 7.5 | BD268: TB_135 | BE268: 620 | BF268: 7.5 | BH268: TB_138 | BI268: 400 | BJ268: 7 | BP268: 42143 | BQ268: 4 | BR268: 2 | BS268: 1 | BT268: 4 | BU268: 3 | BV268: 150
AF269: TB_117 | AG269: 140 | AH269: 9 | AJ269: TB_120 | AK269: 120 | AL269: 8.5 | AN269: TB_123 | AO269: 340 | AP269: 8.5 | AR269: TB_126 | AS269: 270 | AT269: 8 | AW269: 1500 | AX269: 8.5 | BA269: 1200 | BB269: 8 | BE269: 3000 | BF269: 8 | BI269: 2100 | BJ269: 7.5 | BP269: 42211 | BQ269: 4 | BR269: 2 | BS269: 2 | BT269: 1 | BU269: 1 | BV269: 151
AG270: 570 | AH270: 9.5 | AK270: 580 | AL270: 9 | AO270: 1500 | AP270: 9 | AS270: 1300 | AT270: 8.5 | AW270: 5900 | AX270: 9 | BA270: 5300 | BB270: 8.5 | BE270: 12700 | BF270: 8.5 | BI270: 9800 | BJ270: 8 | BP270: 42212 | BQ270: 4 | BR270: 2 | BS270: 2 | BT270: 1 | BU270: 2 | BV270: 152
AG271: 2000 | AH271: 10 | AK271: 2300 | AL271: 9.5 | AO271: 5900 | AP271: 9.5 | AS271: 5600 | AT271: 9 | AW271: 22500 | AX271: 9.5 | BA271: 21400 | BB271: 9 | BE271: 44900 | BF271: 9 | BI271: 41100 | BJ271: 8.5 | BP271: 42213 | BQ271: 4 | BR271: 2 | BS271: 2 | BT271: 1 | BU271: 3 | BV271: 153
AG272: 6700 | AH272: 10.5 | AK272: 8200 | AL272: 10 | AO272: 18700 | AP272: 10 | AS272: 14700 | AT272: 9.5 | AW272: 45200 | AX272: 10 | BA272: 52000 | BB272: 9.5 | BP272: 42221 | BQ272: 4 | BR272: 2 | BS272: 2 | BT272: 2 | BU272: 1 | BV272: 154
AG273: 21600 | AH273: 11 | AK273: 24100 | AL273: 10.5 | AO273: 31800 | AP273: 10.5 | AS273: 25900 | AT273: 10 | BP273: 42222 | BQ273: 4 | BR273: 2 | BS273: 2 | BT273: 2 | BU273: 2 | BV273: 155
AG274: 39700 | AH274: 11.5 | AK274: 39600 | AL274: 11 | AS274: 45800 | AT274: 10.5 | BP274: 42223 | BQ274: 4 | BR274: 2 | BS274: 2 | BT274: 2 | BU274: 3 | BV274: 156
BP275: 42231 | BQ275: 4 | BR275: 2 | BS275: 2 | BT275: 3 | BU275: 1 | BV275: 157
BP276: 42232 | BQ276: 4 | BR276: 2 | BS276: 2 | BT276: 3 | BU276: 2 | BV276: 158
BP277: 42233 | BQ277: 4 | BR277: 2 | BS277: 2 | BT277: 3 | BU277: 3 | BV277: 159
BP278: 42241 | BQ278: 4 | BR278: 2 | BS278: 2 | BT278: 4 | BU278: 1 | BV278: 160
BP279: 42242 | BQ279: 4 | BR279: 2 | BS279: 2 | BT279: 4 | BU279: 2 | BV279: 161
BP280: 42243 | BQ280: 4 | BR280: 2 | BS280: 2 | BT280: 4 | BU280: 3 | BV280: 162
AG283: TDPC ADMISIBLE | AH283: espesor losa | AK283: TDPC ADMISIBLE | AL283: espesor losa | AO283: TDPC ADMISIBLE | AP283: espesor losa | AS283: TDPC ADMISIBLE | AT283: espesor losa | AW283: TDPC ADMISIBLE | AX283: espesor losa | BA283: TDPC ADMISIBLE | BB283: espesor losa | BE283: TDPC ADMISIBLE | BF283: espesor losa | BI283: TDPC ADMISIBLE | BJ283: espesor losa
AF284: TB_139 | AG284: 320 | AH284: 10.5 | AJ284: TB_142 | AK284: 390 | AL284: 10 | AN284: TB_145 | AO284: 280 | AP284: 9.5 | AR284: TB_148 | AS284: 260 | AT284: 9 | AV284: TB_151 | AW284: 280 | AX284: 9 | AZ284: TB_154 | BA284: 250 | BB284: 8.5 | BD284: TB_157 | BE284: 130 | BF284: 8 | BH284: TB_160 | BI284: 480 | BJ284: 8
AG285: 1000 | AH285: 11 | AK285: 1400 | AL285: 10.5 | AO285: 1100 | AP285: 10 | AS285: 1100 | AT285: 9.5 | AW285: 1100 | AX285: 9.5 | BA285: 1000 | BB285: 9 | BE285: 620 | BF285: 8.5 | BI285: 2100 | BJ285: 8.5
AG286: 2700 | AH286: 11.5 | AK286: 3300 | AL286: 11 | AO286: 3200 | AP286: 10.5 | AS286: 3400 | AT286: 10 | AW286: 2600 | AX286: 10 | BA286: 3400 | BB286: 9.5 | BE286: 2500 | BF286: 9 | BI286: 5700 | BJ286: 9
AG287: 3600 | AH287: 12 | AK287: 4500 | AL287: 11.5 | AO287: 4500 | AP287: 11 | AS287: 4900 | AT287: 10.5 | AW287: 5900 | AX287: 11 | BA287: 5500 | BB287: 10 | BE287: 5500 | BF287: 9.5 | BI287: 10200 | BJ287: 9.5
AG288: 6300 | AH288: 13 | AK288: 6100 | AL288: 12 | AO288: 6300 | AP288: 11.5 | AS288: 7200 | AT288: 11 | AW288: 12800 | AX288: 12 | BA288: 13600 | BB288: 11 | BE288: 9200 | BF288: 10 | BI288: 17900 | BJ288: 10
AG289: 10800 | AH289: 14 | AK289: 11100 | AL289: 13 | AO289: 8800 | AP289: 12 | AS289: 10400 | AT289: 11.5 | BE289: 24200 | BF289: 11
AO290: 16800 | AP290: 13 | AS290: 14900 | AT290: 12
AG292: TDPC ADMISIBLE | AH292: espesor losa | AK292: TDPC ADMISIBLE | AL292: espesor losa | AO292: TDPC ADMISIBLE | AP292: espesor losa | AS292: TDPC ADMISIBLE | AT292: espesor losa | AW292: TDPC ADMISIBLE | AX292: espesor losa | BA292: TDPC ADMISIBLE | BB292: espesor losa | BE292: TDPC ADMISIBLE | BF292: espesor losa | BI292: TDPC ADMISIBLE | BJ292: espesor losa
AF293: TB_140 | AG293: 120 | AH293: 9.5 | AJ293: TB_143 | AK293: 120 | AL293: 9 | AN293: TB_146 | AO293: 340 | AP293: 9 | AR293: TB_149 | AS293: 300 | AT293: 8.5 | AV293: TB_152 | AW293: 340 | AX293: 8.5 | AZ293: TB_155 | BA293: 270 | BB293: 8 | BD293: TB_158 | BE293: 130 | BF293: 7.5 | BH293: TB_161 | BI293: 490 | BJ293: 7.5
AG294: 480 | AH294: 10 | AK294: 530 | AL294: 9.5 | AO294: 1400 | AP294: 9.5 | AS294: 1300 | AT294: 9 | AW294: 1100 | AX294: 9 | BA294: 1300 | BB294: 8.5 | BE294: 690 | BF294: 8 | BI294: 1700 | BJ294: 8
... 16 more rows

Sheet AASHTO 1993
A1: Diseño de Pavimentos Rígidos Según Documento Técnico "Guide for Design of Pavement Structures" de AASHTO, 1993
A12: Descripción del Proyecto:
A14: 1. Número de Aplicaciones de la Carga del Eje Individual Equivalente en el Período de Diseño
E15: 200000
B18: 2. Módulo de Rotura del Concreto (psi) | G18: 150
B23: 3. Módulo de Elasticidad del Concreto (psi) | G23: 4000000
B28: 4. Dosificación de FIBRAPLAS CONCRETE (kg/m3) | G28: 4
B33: Módulo Final Mejorado de Rotura del Concreto (psi): | G33: 181.7499303
B38: 5. Módulo de Reacción (k) de Subrasante (pci) | G38: 110
B43: 6. Confiabilidad (%) | G43: 85
B48: 7. Desviación Estándar | G48: 0.35
B53: 8. Coeficiente de Transferencia en Juntas | G53: 3.2
B58: 9. Coeficiente de Drenaje | G58: 1
B63: 10. Serviciabilidad Inicial | G63: 4.5
B68: 11. Serviciabilidad Terminal | G68: 1.5
A75: Espesor de Diseño Estructura de Pavimento Rígido Convencional (pulgadas) | G75: =DESIGN_D__inches -> 11.8
A79: Espesor de Diseño Estructura de Pavimento Rígido Reforzado con FIBRAPLAS CONCRETE (pulgadas) | G79: =D_DESIGNR_inches -> 10.6
O85: D, pulgadas = | P85: =LOOKUP(1.01, Y94:Y1194,N94:N1194) -> 11.8 | S85: D Ref, pulgadas = | T85: =LOOKUP(1.01, AB94:AB1194,N94:N1194) -> 10.6
R88: =ISNA(P85) -> FALSE
N89: D Step = | O89: 0.01
Y92: Ratio | AB92: Ratio
N93: D | O93: PCC MR | P93: E | Q93: k-value | R93: R | S93: So | T93: J | U93: Cd | V93: Pi | W93: Pt | X93: W18 | Y93: (W18calc/W18design) | Z93: PCC IMR | AA93: W18 | AB93: (W18calc/W18design)
N94: 5 | O94: =PCC_MR -> 150 | P94: =PCC_ME -> 4000000 | Q94: =K_MODULE -> 110 | R94: =R_ -> 85 | S94: =So -> 0.35 | T94: =J_ -> 3.2 | U94: =Cd_ -> 1 | V94: =Pi -> 4.5 | W94: =Pt -> 1.5 | X94: =10^(-NORMSINV(R94/100)*S94+7.35*LOG10(N94+1)-0.06+((LOG10((V94-W94)/3))/(1+((1.625*10^7)/((N94+1)^8.46))))+((4.22-0.32*W94)*LOG10((O94*U94*((N94^0.75)-1.132))/(215.63*T94*((N94^0.75)-18.42*(Q94/P94)^0.25))))) -> 940.5701442 | Y94: =+X94/ESALS -> 0.004702850721 | Z94: =PCC_IMR -> 181.7499303 | AA94: =10^(-NORMSINV(R94/100)*S94+7.35*LOG10(N94+1)-0.06+((LOG10((V94-W94)/3))/(1+((1.625*10^7)/((N94+1)^8.46))))+((4.22-0.32*W94)*LOG10((Z94*U94*((N94^0.75)-1.132))/(215.63*T94*((N94^0.75)-18.42*(Q94/P94)^0.25))))) -> 1928.606323 | AB94: =+AA94/ESALS -> 0.009643031615
N95: =IF(N94 = "", "", IF(AND(0.995*ESALS<=X94,X94<=1.005*ESALS),"",(N94+D_Step))) -> 5.01 | O95: 150 | P95: 4000000 | Q95: 110 | R95: 85 | S95: 0.35 | T95: 3.2 | U95: 1 | V95: 4.5 | W95: 1.5 | X95: 951.3445114 | Y95: 0.004756722557 | Z95: 181.7499303 | AA95: 1950.698788 | AB95: 0.009753493938
N96: 5.02 | O96: 150 | P96: 4000000 | Q96: 110 | R96: 85 | S96: 0.35 | T96: 3.2 | U96: 1 | V96: 4.5 | W96: 1.5 | X96: 962.2270006 | Y96: 0.004811135003 | Z96: 181.7499303 | AA96: 1973.012953 | AB96: 0.009865064763
N97: 5.03 | O97: 150 | P97: 4000000 | Q97: 110 | R97: 85 | S97: 0.35 | T97: 3.2 | U97: 1 | V97: 4.5 | W97: 1.5 | X97: 973.2185317 | Y97: 0.004866092659 | Z97: 181.7499303 | AA97: 1995.550704 | AB97: 0.009977753522
N98: 5.04 | O98: 150 | P98: 4000000 | Q98: 110 | R98: 85 | S98: 0.35 | T98: 3.2 | U98: 1 | V98: 4.5 | W98: 1.5 | X98: 984.320031 | Y98: 0.004921600155 | Z98: 181.7499303 | AA98: 2018.313942 | AB98: 0.01009156971
N99: 5.05 | O99: 150 | P99: 4000000 | Q99: 110 | R99: 85 | S99: 0.35 | T99: 3.2 | U99: 1 | V99: 4.5 | W99: 1.5 | X99: 995.532431 | Y99: 0.004977662155 | Z99: 181.7499303 | AA99: 2041.304578 | AB99: 0.01020652289
N100: 5.06 | O100: 150 | P100: 4000000 | Q100: 110 | R100: 85 | S100: 0.35 | T100: 3.2 | U100: 1 | V100: 4.5 | W100: 1.5 | X100: 1006.856671 | Y100: 0.005034283356 | Z100: 181.7499303 | AA100: 2064.524538 | AB100: 0.01032262269
N101: 5.07 | O101: 150 | P101: 4000000 | Q101: 110 | R101: 85 | S101: 0.35 | T101: 3.2 | U101: 1 | V101: 4.5 | W101: 1.5 | X101: 1018.293697 | Y101: 0.005091468484 | Z101: 181.7499303 | AA101: 2087.975761 | AB101: 0.0104398788
N102: 5.08 | O102: 150 | P102: 4000000 | Q102: 110 | R102: 85 | S102: 0.35 | T102: 3.2 | U102: 1 | V102: 4.5 | W102: 1.5 | X102: 1029.84446 | Y102: 0.005149222302 | Z102: 181.7499303 | AA102: 2111.660199 | AB102: 0.010558301
N103: 5.09 | O103: 150 | P103: 4000000 | Q103: 110 | R103: 85 | S103: 0.35 | T103: 3.2 | U103: 1 | V103: 4.5 | W103: 1.5 | X103: 1041.509921 | Y103: 0.005207549603 | Z103: 181.7499303 | AA103: 2135.579819 | AB103: 0.01067789909
N104: 5.1 | O104: 150 | P104: 4000000 | Q104: 110 | R104: 85 | S104: 0.35 | T104: 3.2 | U104: 1 | V104: 4.5 | W104: 1.5 | X104: 1053.291043 | Y104: 0.005266455213 | Z104: 181.7499303 | AA104: 2159.736599 | AB104: 0.010798683
N105: 5.11 | O105: 150 | P105: 4000000 | Q105: 110 | R105: 85 | S105: 0.35 | T105: 3.2 | U105: 1 | V105: 4.5 | W105: 1.5 | X105: 1065.188799 | Y105: 0.005325943993 | Z105: 181.7499303 | AA105: 2184.132534 | AB105: 0.01092066267
N106: 5.12 | O106: 150 | P106: 4000000 | Q106: 110 | R106: 85 | S106: 0.35 | T106: 3.2 | U106: 1 | V106: 4.5 | W106: 1.5 | X106: 1077.204167 | Y106: 0.005386020836 | Z106: 181.7499303 | AA106: 2208.769628 | AB106: 0.01104384814
N107: 5.13 | O107: 150 | P107: 4000000 | Q107: 110 | R107: 85 | S107: 0.35 | T107: 3.2 | U107: 1 | V107: 4.5 | W107: 1.5 | X107: 1089.338134 | Y107: 0.005446690669 | Z107: 181.7499303 | AA107: 2233.649904 | AB107: 0.01116824952
N108: 5.14 | O108: 150 | P108: 4000000 | Q108: 110 | R108: 85 | S108: 0.35 | T108: 3.2 | U108: 1 | V108: 4.5 | W108: 1.5 | X108: 1101.59169 | Y108: 0.005507958452 | Z108: 181.7499303 | AA108: 2258.775395 | AB108: 0.01129387698
N109: 5.15 | O109: 150 | P109: 4000000 | Q109: 110 | R109: 85 | S109: 0.35 | T109: 3.2 | U109: 1 | V109: 4.5 | W109: 1.5 | X109: 1113.965836 | Y109: 0.005569829179 | Z109: 181.7499303 | AA109: 2284.14815 | AB109: 0.01142074075
N110: 5.16 | O110: 150 | P110: 4000000 | Q110: 110 | R110: 85 | S110: 0.35 | T110: 3.2 | U110: 1 | V110: 4.5 | W110: 1.5 | X110: 1126.461576 | Y110: 0.00563230788 | Z110: 181.7499303 | AA110: 2309.77023 | AB110: 0.01154885115
N111: 5.17 | O111: 150 | P111: 4000000 | Q111: 110 | R111: 85 | S111: 0.35 | T111: 3.2 | U111: 1 | V111: 4.5 | W111: 1.5 | X111: 1139.079923 | Y111: 0.005695399617 | Z111: 181.7499303 | AA111: 2335.643711 | AB111: 0.01167821856
N112: 5.18 | O112: 150 | P112: 4000000 | Q112: 110 | R112: 85 | S112: 0.35 | T112: 3.2 | U112: 1 | V112: 4.5 | W112: 1.5 | X112: 1151.821897 | Y112: 0.005759109487 | Z112: 181.7499303 | AA112: 2361.770685 | AB112: 0.01180885343
N113: 5.19 | O113: 150 | P113: 4000000 | Q113: 110 | R113: 85 | S113: 0.35 | T113: 3.2 | U113: 1 | V113: 4.5 | W113: 1.5 | X113: 1164.688524 | Y113: 0.005823442622 | Z113: 181.7499303 | AA113: 2388.153256 | AB113: 0.01194076628
N114: 5.2 | O114: 150 | P114: 4000000 | Q114: 110 | R114: 85 | S114: 0.35 | T114: 3.2 | U114: 1 | V114: 4.5 | W114: 1.5 | X114: 1177.680838 | Y114: 0.005888404188 | Z114: 181.7499303 | AA114: 2414.793542 | AB114: 0.01207396771
N115: 5.21 | O115: 150 | P115: 4000000 | Q115: 110 | R115: 85 | S115: 0.35 | T115: 3.2 | U115: 1 | V115: 4.5 | W115: 1.5 | X115: 1190.799878 | Y115: 0.005953999388 | Z115: 181.7499303 | AA115: 2441.693676 | AB115: 0.01220846838
N116: 5.22 | O116: 150 | P116: 4000000 | Q116: 110 | R116: 85 | S116: 0.35 | T116: 3.2 | U116: 1 | V116: 4.5 | W116: 1.5 | X116: 1204.046691 | Y116: 0.006020233457 | Z116: 181.7499303 | AA116: 2468.855807 | AB116: 0.01234427903
N117: 5.23 | O117: 150 | P117: 4000000 | Q117: 110 | R117: 85 | S117: 0.35 | T117: 3.2 | U117: 1 | V117: 4.5 | W117: 1.5 | X117: 1217.422334 | Y117: 0.006087111668 | Z117: 181.7499303 | AA117: 2496.282095 | AB117: 0.01248141048
N118: 5.24 | O118: 150 | P118: 4000000 | Q118: 110 | R118: 85 | S118: 0.35 | T118: 3.2 | U118: 1 | V118: 4.5 | W118: 1.5 | X118: 1230.927866 | Y118: 0.006154639329 | Z118: 181.7499303 | AA118: 2523.974718 | AB118: 0.01261987359
N119: 5.25 | O119: 150 | P119: 4000000 | Q119: 110 | R119: 85 | S119: 0.35 | T119: 3.2 | U119: 1 | V119: 4.5 | W119: 1.5 | X119: 1244.564356 | Y119: 0.006222821782 | Z119: 181.7499303 | AA119: 2551.935868 | AB119: 0.01275967934
N120: 5.26 | O120: 150 | P120: 4000000 | Q120: 110 | R120: 85 | S120: 0.35 | T120: 3.2 | U120: 1 | V120: 4.5 | W120: 1.5 | X120: 1258.332881 | Y120: 0.006291664407 | Z120: 181.7499303 | AA120: 2580.167749 | AB120: 0.01290083874
N121: 5.27 | O121: 150 | P121: 4000000 | Q121: 110 | R121: 85 | S121: 0.35 | T121: 3.2 | U121: 1 | V121: 4.5 | W121: 1.5 | X121: 1272.234524 | Y121: 0.00636117262 | Z121: 181.7499303 | AA121: 2608.672582 | AB121: 0.01304336291
N122: 5.28 | O122: 150 | P122: 4000000 | Q122: 110 | R122: 85 | S122: 0.35 | T122: 3.2 | U122: 1 | V122: 4.5 | W122: 1.5 | X122: 1286.270374 | Y122: 0.00643135187 | Z122: 181.7499303 | AA122: 2637.452604 | AB122: 0.01318726302
N123: 5.29 | O123: 150 | P123: 4000000 | Q123: 110 | R123: 85 | S123: 0.35 | T123: 3.2 | U123: 1 | V123: 4.5 | W123: 1.5 | X123: 1300.44153 | Y123: 0.006502207648 | Z123: 181.7499303 | AA123: 2666.510065 | AB123: 0.01333255033
N124: 5.3 | O124: 150 | P124: 4000000 | Q124: 110 | R124: 85 | S124: 0.35 | T124: 3.2 | U124: 1 | V124: 4.5 | W124: 1.5 | X124: 1314.749095 | Y124: 0.006573745476 | Z124: 181.7499303 | AA124: 2695.84723 | AB124: 0.01347923615
N125: 5.31 | O125: 150 | P125: 4000000 | Q125: 110 | R125: 85 | S125: 0.35 | T125: 3.2 | U125: 1 | V125: 4.5 | W125: 1.5 | X125: 1329.194183 | Y125: 0.006645970917 | Z125: 181.7499303 | AA125: 2725.46638 | AB125: 0.0136273319
N126: 5.32 | O126: 150 | P126: 4000000 | Q126: 110 | R126: 85 | S126: 0.35 | T126: 3.2 | U126: 1 | V126: 4.5 | W126: 1.5 | X126: 1343.777914 | Y126: 0.006718889569 | Z126: 181.7499303 | AA126: 2755.369812 | AB126: 0.01377684906
N127: 5.33 | O127: 150 | P127: 4000000 | Q127: 110 | R127: 85 | S127: 0.35 | T127: 3.2 | U127: 1 | V127: 4.5 | W127: 1.5 | X127: 1358.501414 | Y127: 0.006792507068 | Z127: 181.7499303 | AA127: 2785.559835 | AB127: 0.01392779918
N128: 5.34 | O128: 150 | P128: 4000000 | Q128: 110 | R128: 85 | S128: 0.35 | T128: 3.2 | U128: 1 | V128: 4.5 | W128: 1.5 | X128: 1373.365817 | Y128: 0.006866829086 | Z128: 181.7499303 | AA128: 2816.038777 | AB128: 0.01408019389
N129: 5.35 | O129: 150 | P129: 4000000 | Q129: 110 | R129: 85 | S129: 0.35 | T129: 3.2 | U129: 1 | V129: 4.5 | W129: 1.5 | X129: 1388.372267 | Y129: 0.006941861335 | Z129: 181.7499303 | AA129: 2846.80898 | AB129: 0.0142340449
N130: 5.36 | O130: 150 | P130: 4000000 | Q130: 110 | R130: 85 | S130: 0.35 | T130: 3.2 | U130: 1 | V130: 4.5 | W130: 1.5 | X130: 1403.521912 | Y130: 0.007017609562 | Z130: 181.7499303 | AA130: 2877.8728 | AB130: 0.014389364
N131: 5.37 | O131: 150 | P131: 4000000 | Q131: 110 | R131: 85 | S131: 0.35 | T131: 3.2 | U131: 1 | V131: 4.5 | W131: 1.5 | X131: 1418.815911 | Y131: 0.007094079554 | Z131: 181.7499303 | AA131: 2909.232611 | AB131: 0.01454616306
N132: 5.38 | O132: 150 | P132: 4000000 | Q132: 110 | R132: 85 | S132: 0.35 | T132: 3.2 | U132: 1 | V132: 4.5 | W132: 1.5 | X132: 1434.255427 | Y132: 0.007171277136 | Z132: 181.7499303 | AA132: 2940.890802 | AB132: 0.01470445401
N133: 5.39 | O133: 150 | P133: 4000000 | Q133: 110 | R133: 85 | S133: 0.35 | T133: 3.2 | U133: 1 | V133: 4.5 | W133: 1.5 | X133: 1449.841634 | Y133: 0.007249208171 | Z133: 181.7499303 | AA133: 2972.849776 | AB133: 0.01486424888
N134: 5.4 | O134: 150 | P134: 4000000 | Q134: 110 | R134: 85 | S134: 0.35 | T134: 3.2 | U134: 1 | V134: 4.5 | W134: 1.5 | X134: 1465.575712 | Y134: 0.007327878559 | Z134: 181.7499303 | AA134: 3005.111955 | AB134: 0.01502555977
N135: 5.41 | O135: 150 | P135: 4000000 | Q135: 110 | R135: 85 | S135: 0.35 | T135: 3.2 | U135: 1 | V135: 4.5 | W135: 1.5 | X135: 1481.458848 | Y135: 0.007407294242 | Z135: 181.7499303 | AA135: 3037.679773 | AB135: 0.01518839886
N136: 5.42 | O136: 150 | P136: 4000000 | Q136: 110 | R136: 85 | S136: 0.35 | T136: 3.2 | U136: 1 | V136: 4.5 | W136: 1.5 | X136: 1497.49224 | Y136: 0.007487461198 | Z136: 181.7499303 | AA136: 3070.555683 | AB136: 0.01535277842
N137: 5.43 | O137: 150 | P137: 4000000 | Q137: 110 | R137: 85 | S137: 0.35 | T137: 3.2 | U137: 1 | V137: 4.5 | W137: 1.5 | X137: 1513.677089 | Y137: 0.007568385445 | Z137: 181.7499303 | AA137: 3103.742153 | AB137: 0.01551871077
N138: 5.44 | O138: 150 | P138: 4000000 | Q138: 110 | R138: 85 | S138: 0.35 | T138: 3.2 | U138: 1 | V138: 4.5 | W138: 1.5 | X138: 1530.014608 | Y138: 0.007650073042 | Z138: 181.7499303 | AA138: 3137.241668 | AB138: 0.01568620834
N139: 5.45 | O139: 150 | P139: 4000000 | Q139: 110 | R139: 85 | S139: 0.35 | T139: 3.2 | U139: 1 | V139: 4.5 | W139: 1.5 | X139: 1546.506017 | Y139: 0.007732530086 | Z139: 181.7499303 | AA139: 3171.056727 | AB139: 0.01585528364
N140: 5.46 | O140: 150 | P140: 4000000 | Q140: 110 | R140: 85 | S140: 0.35 | T140: 3.2 | U140: 1 | V140: 4.5 | W140: 1.5 | X140: 1563.152542 | Y140: 0.007815762712 | Z140: 181.7499303 | AA140: 3205.189847 | AB140: 0.01602594924
N141: 5.47 | O141: 150 | P141: 4000000 | Q141: 110 | R141: 85 | S141: 0.35 | T141: 3.2 | U141: 1 | V141: 4.5 | W141: 1.5 | X141: 1579.95542 | Y141: 0.007899777099 | Z141: 181.7499303 | AA141: 3239.643562 | AB141: 0.01619821781
N142: 5.48 | O142: 150 | P142: 4000000 | Q142: 110 | R142: 85 | S142: 0.35 | T142: 3.2 | U142: 1 | V142: 4.5 | W142: 1.5 | X142: 1596.915893 | Y142: 0.007984579464 | Z142: 181.7499303 | AA142: 3274.420421 | AB142: 0.01637210211
N143: 5.49 | O143: 150 | P143: 4000000 | Q143: 110 | R143: 85 | S143: 0.35 | T143: 3.2 | U143: 1 | V143: 4.5 | W143: 1.5 | X143: 1614.035212 | Y143: 0.008070176062 | Z143: 181.7499303 | AA143: 3309.52299 | AB143: 0.01654761495
N144: 5.5 | O144: 150 | P144: 4000000 | Q144: 110 | R144: 85 | S144: 0.35 | T144: 3.2 | U144: 1 | V144: 4.5 | W144: 1.5 | X144: 1631.314639 | Y144: 0.008156573194 | Z144: 181.7499303 | AA144: 3344.953852 | AB144: 0.01672476926
N145: 5.51 | O145: 150 | P145: 4000000 | Q145: 110 | R145: 85 | S145: 0.35 | T145: 3.2 | U145: 1 | V145: 4.5 | W145: 1.5 | X145: 1648.755439 | Y145: 0.008243777196 | Z145: 181.7499303 | AA145: 3380.715606 | AB145: 0.01690357803
N146: 5.52 | O146: 150 | P146: 4000000 | Q146: 110 | R146: 85 | S146: 0.35 | T146: 3.2 | U146: 1 | V146: 4.5 | W146: 1.5 | X146: 1666.35889 | Y146: 0.008331794449 | Z146: 181.7499303 | AA146: 3416.810868 | AB146: 0.01708405434
N147: 5.53 | O147: 150 | P147: 4000000 | Q147: 110 | R147: 85 | S147: 0.35 | T147: 3.2 | U147: 1 | V147: 4.5 | W147: 1.5 | X147: 1684.126275 | Y147: 0.008420631373 | Z147: 181.7499303 | AA147: 3453.242272 | AB147: 0.01726621136
N148: 5.54 | O148: 150 | P148: 4000000 | Q148: 110 | R148: 85 | S148: 0.35 | T148: 3.2 | U148: 1 | V148: 4.5 | W148: 1.5 | X148: 1702.058886 | Y148: 0.008510294431 | Z148: 181.7499303 | AA148: 3490.012467 | AB148: 0.01745006234
N149: 5.55 | O149: 150 | P149: 4000000 | Q149: 110 | R149: 85 | S149: 0.35 | T149: 3.2 | U149: 1 | V149: 4.5 | W149: 1.5 | X149: 1720.158025 | Y149: 0.008600790125 | Z149: 181.7499303 | AA149: 3527.124121 | AB149: 0.01763562061
N150: 5.56 | O150: 150 | P150: 4000000 | Q150: 110 | R150: 85 | S150: 0.35 | T150: 3.2 | U150: 1 | V150: 4.5 | W150: 1.5 | X150: 1738.425001 | Y150: 0.008692125003 | Z150: 181.7499303 | AA150: 3564.579918 | AB150: 0.01782289959
N151: 5.57 | O151: 150 | P151: 4000000 | Q151: 110 | R151: 85 | S151: 0.35 | T151: 3.2 | U151: 1 | V151: 4.5 | W151: 1.5 | X151: 1756.86113 | Y151: 0.00878430565 | Z151: 181.7499303 | AA151: 3602.38256 | AB151: 0.0180119128
N152: 5.58 | O152: 150 | P152: 4000000 | Q152: 110 | R152: 85 | S152: 0.35 | T152: 3.2 | U152: 1 | V152: 4.5 | W152: 1.5 | X152: 1775.467739 | Y152: 0.008877338696 | Z152: 181.7499303 | AA152: 3640.534764 | AB152: 0.01820267382
N153: 5.59 | O153: 150 | P153: 4000000 | Q153: 110 | R153: 85 | S153: 0.35 | T153: 3.2 | U153: 1 | V153: 4.5 | W153: 1.5 | X153: 1794.246163 | Y153: 0.008971230814 | Z153: 181.7499303 | AA153: 3679.039267 | AB153: 0.01839519634
N154: 5.6 | O154: 150 | P154: 4000000 | Q154: 110 | R154: 85 | S154: 0.35 | T154: 3.2 | U154: 1 | V154: 4.5 | W154: 1.5 | X154: 1813.197743 | Y154: 0.009065988717 | Z154: 181.7499303 | AA154: 3717.898824 | AB154: 0.01858949412
N155: 5.61 | O155: 150 | P155: 4000000 | Q155: 110 | R155: 85 | S155: 0.35 | T155: 3.2 | U155: 1 | V155: 4.5 | W155: 1.5 | X155: 1832.323833 | Y155: 0.009161619164 | Z155: 181.7499303 | AA155: 3757.116204 | AB155: 0.01878558102
N156: 5.62 | O156: 150 | P156: 4000000 | Q156: 110 | R156: 85 | S156: 0.35 | T156: 3.2 | U156: 1 | V156: 4.5 | W156: 1.5 | X156: 1851.625791 | Y156: 0.009258128954 | Z156: 181.7499303 | AA156: 3796.694196 | AB156: 0.01898347098
N157: 5.63 | O157: 150 | P157: 4000000 | Q157: 110 | R157: 85 | S157: 0.35 | T157: 3.2 | U157: 1 | V157: 4.5 | W157: 1.5 | X157: 1871.104986 | Y157: 0.009355524932 | Z157: 181.7499303 | AA157: 3836.635608 | AB157: 0.01918317804
N158: 5.64 | O158: =PCC_MR -> 150 | P158: =PCC_ME -> 4000000 | Q158: =K_MODULE -> 110 | R158: =R_ -> 85 | S158: =So -> 0.35 | T158: =J_ -> 3.2 | U158: =Cd_ -> 1 | V158: =Pi -> 4.5 | W158: =Pt -> 1.5 | X158: =10^(-NORMSINV(R158/100)*S158+7.35*LOG10(N158+1)-0.06+((LOG10((V158-W158)/3))/(1+((1.625*10^7)/((N158+1)^8.46))))+((4.22-0.32*W158)*LOG10((O158*U158*((N158^0.75)-1.132))/(215.63*T158*((N158^0.75)-18.42*(Q158/P158)^0.25))))) -> 1890.762797 | Y158: =+X158/ESALS -> 0.009453813984 | Z158: =PCC_IMR -> 181.7499303 | AA158: =10^(-NORMSINV(R158/100)*S158+7.35*LOG10(N158+1)-0.06+((LOG10((V158-W158)/3))/(1+((1.625*10^7)/((N158+1)^8.46))))+((4.22-0.32*W158)*LOG10((Z158*U158*((N158^0.75)-1.132))/(215.63*T158*((N158^0.75)-18.42*(Q158/P158)^0.25))))) -> 3876.943264 | AB158: =+AA158/ESALS -> 0.01938471632
N159: =IF(N158 = "", "", IF(AND(0.995*ESALS<=X158,X158<=1.005*ESALS),"",(N158+D_Step))) -> 5.65 | O159: 150 | P159: 4000000 | Q159: 110 | R159: 85 | S159: 0.35 | T159: 3.2 | U159: 1 | V159: 4.5 | W159: 1.5 | X159: 1910.600608 | Y159: 0.00955300304 | Z159: 181.7499303 | AA159: 3917.620005 | AB159: 0.01958810003
N160: 5.66 | O160: 150 | P160: 4000000 | Q160: 110 | R160: 85 | S160: 0.35 | T160: 3.2 | U160: 1 | V160: 4.5 | W160: 1.5 | X160: 1930.619815 | Y160: 0.009653099077 | Z160: 181.7499303 | AA160: 3958.668692 | AB160: 0.01979334346
N161: 5.67 | O161: 150 | P161: 4000000 | Q161: 110 | R161: 85 | S161: 0.35 | T161: 3.2 | U161: 1 | V161: 4.5 | W161: 1.5 | X161: 1950.821822 | Y161: 0.009754109111 | Z161: 181.7499303 | AA161: 4000.092204 | AB161: 0.02000046102
N162: 5.68 | O162: 150 | P162: 4000000 | Q162: 110 | R162: 85 | S162: 0.35 | T162: 3.2 | U162: 1 | V162: 4.5 | W162: 1.5 | X162: 1971.208041 | Y162: 0.009856040206 | Z162: 181.7499303 | AA162: 4041.893436 | AB162: 0.02020946718
N163: 5.69 | O163: 150 | P163: 4000000 | Q163: 110 | R163: 85 | S163: 0.35 | T163: 3.2 | U163: 1 | V163: 4.5 | W163: 1.5 | X163: 1991.779894 | Y163: 0.00995889947 | Z163: 181.7499303 | AA163: 4084.075304 | AB163: 0.02042037652
N164: 5.7 | O164: 150 | P164: 4000000 | Q164: 110 | R164: 85 | S164: 0.35 | T164: 3.2 | U164: 1 | V164: 4.5 | W164: 1.5 | X164: 2012.538811 | Y164: 0.01006269405 | Z164: 181.7499303 | AA164: 4126.64074 | AB164: 0.0206332037
N165: 5.71 | O165: 150 | P165: 4000000 | Q165: 110 | R165: 85 | S165: 0.35 | T165: 3.2 | U165: 1 | V165: 4.5 | W165: 1.5 | X165: 2033.486231 | Y165: 0.01016743116 | Z165: 181.7499303 | AA165: 4169.592696 | AB165: 0.02084796348
N166: 5.72 | O166: 150 | P166: 4000000 | Q166: 110 | R166: 85 | S166: 0.35 | T166: 3.2 | U166: 1 | V166: 4.5 | W166: 1.5 | X166: 2054.623604 | Y166: 0.01027311802 | Z166: 181.7499303 | AA166: 4212.934142 | AB166: 0.02106467071
N167: 5.73 | O167: 150 | P167: 4000000 | Q167: 110 | R167: 85 | S167: 0.35 | T167: 3.2 | U167: 1 | V167: 4.5 | W167: 1.5 | X167: 2075.952386 | Y167: 0.01037976193 | Z167: 181.7499303 | AA167: 4256.668067 | AB167: 0.02128334033
N168: 5.74 | O168: 150 | P168: 4000000 | Q168: 110 | R168: 85 | S168: 0.35 | T168: 3.2 | U168: 1 | V168: 4.5 | W168: 1.5 | X168: 2097.474044 | Y168: 0.01048737022 | Z168: 181.7499303 | AA168: 4300.797478 | AB168: 0.02150398739
N169: 5.75 | O169: 150 | P169: 4000000 | Q169: 110 | R169: 85 | S169: 0.35 | T169: 3.2 | U169: 1 | V169: 4.5 | W169: 1.5 | X169: 2119.190054 | Y169: 0.01059595027 | Z169: 181.7499303 | AA169: 4345.3254 | AB169: 0.021726627
N170: 5.76 | O170: 150 | P170: 4000000 | Q170: 110 | R170: 85 | S170: 0.35 | T170: 3.2 | U170: 1 | V170: 4.5 | W170: 1.5 | X170: 2141.101902 | Y170: 0.01070550951 | Z170: 181.7499303 | AA170: 4390.25488 | AB170: 0.0219512744
N171: 5.77 | O171: 150 | P171: 4000000 | Q171: 110 | R171: 85 | S171: 0.35 | T171: 3.2 | U171: 1 | V171: 4.5 | W171: 1.5 | X171: 2163.211081 | Y171: 0.0108160554 | Z171: 181.7499303 | AA171: 4435.588981 | AB171: 0.02217794491
N172: 5.78 | O172: 150 | P172: 4000000 | Q172: 110 | R172: 85 | S172: 0.35 | T172: 3.2 | U172: 1 | V172: 4.5 | W172: 1.5 | X172: 2185.519094 | Y172: 0.01092759547 | Z172: 181.7499303 | AA172: 4481.330786 | AB172: 0.02240665393
N173: 5.79 | O173: 150 | P173: 4000000 | Q173: 110 | R173: 85 | S173: 0.35 | T173: 3.2 | U173: 1 | V173: 4.5 | W173: 1.5 | X173: 2208.027455 | Y173: 0.01104013728 | Z173: 181.7499303 | AA173: 4527.483397 | AB173: 0.02263741699
N174: 5.8 | O174: 150 | P174: 4000000 | Q174: 110 | R174: 85 | S174: 0.35 | T174: 3.2 | U174: 1 | V174: 4.5 | W174: 1.5 | X174: 2230.737687 | Y174: 0.01115368844 | Z174: 181.7499303 | AA174: 4574.049936 | AB174: 0.02287024968
N175: 5.81 | O175: 150 | P175: 4000000 | Q175: 110 | R175: 85 | S175: 0.35 | T175: 3.2 | U175: 1 | V175: 4.5 | W175: 1.5 | X175: 2253.65132 | Y175: 0.0112682566 | Z175: 181.7499303 | AA175: 4621.033543 | AB175: 0.02310516772
N176: 5.82 | O176: 150 | P176: 4000000 | Q176: 110 | R176: 85 | S176: 0.35 | T176: 3.2 | U176: 1 | V176: 4.5 | W176: 1.5 | X176: 2276.769897 | Y176: 0.01138384948 | Z176: 181.7499303 | AA176: 4668.437379 | AB176: 0.02334218689
N177: 5.83 | O177: 150 | P177: 4000000 | Q177: 110 | R177: 85 | S177: 0.35 | T177: 3.2 | U177: 1 | V177: 4.5 | W177: 1.5 | X177: 2300.094967 | Y177: 0.01150047484 | Z177: 181.7499303 | AA177: 4716.264623 | AB177: 0.02358132312
N178: 5.84 | O178: 150 | P178: 4000000 | Q178: 110 | R178: 85 | S178: 0.35 | T178: 3.2 | U178: 1 | V178: 4.5 | W178: 1.5 | X178: 2323.628091 | Y178: 0.01161814046 | Z178: 181.7499303 | AA178: 4764.518475 | AB178: 0.02382259238
N179: 5.85 | O179: 150 | P179: 4000000 | Q179: 110 | R179: 85 | S179: 0.35 | T179: 3.2 | U179: 1 | V179: 4.5 | W179: 1.5 | X179: 2347.37084 | Y179: 0.0117368542 | Z179: 181.7499303 | AA179: 4813.202154 | AB179: 0.02406601077
N180: 5.86 | O180: 150 | P180: 4000000 | Q180: 110 | R180: 85 | S180: 0.35 | T180: 3.2 | U180: 1 | V180: 4.5 | W180: 1.5 | X180: 2371.324792 | Y180: 0.01185662396 | Z180: 181.7499303 | AA180: 4862.318898 | AB180: 0.02431159449
N181: 5.87 | O181: 150 | P181: 4000000 | Q181: 110 | R181: 85 | S181: 0.35 | T181: 3.2 | U181: 1 | V181: 4.5 | W181: 1.5 | X181: 2395.491537 | Y181: 0.01197745768 | Z181: 181.7499303 | AA181: 4911.871967 | AB181: 0.02455935983
N182: 5.88 | O182: 150 | P182: 4000000 | Q182: 110 | R182: 85 | S182: 0.35 | T182: 3.2 | U182: 1 | V182: 4.5 | W182: 1.5 | X182: 2419.872673 | Y182: 0.01209936337 | Z182: 181.7499303 | AA182: 4961.864638 | AB182: 0.02480932319
N183: 5.89 | O183: 150 | P183: 4000000 | Q183: 110 | R183: 85 | S183: 0.35 | T183: 3.2 | U183: 1 | V183: 4.5 | W183: 1.5 | X183: 2444.469811 | Y183: 0.01222234905 | Z183: 181.7499303 | AA183: 5012.300212 | AB183: 0.02506150106
N184: 5.9 | O184: 150 | P184: 4000000 | Q184: 110 | R184: 85 | S184: 0.35 | T184: 3.2 | U184: 1 | V184: 4.5 | W184: 1.5 | X184: 2469.284567 | Y184: 0.01234642284 | Z184: 181.7499303 | AA184: 5063.182006 | AB184: 0.02531591003
N185: 5.91 | O185: 150 | P185: 4000000 | Q185: 110 | R185: 85 | S185: 0.35 | T185: 3.2 | U185: 1 | V185: 4.5 | W185: 1.5 | X185: 2494.318572 | Y185: 0.01247159286 | Z185: 181.7499303 | AA185: 5114.513361 | AB185: 0.0255725668
N186: 5.92 | O186: 150 | P186: 4000000 | Q186: 110 | R186: 85 | S186: 0.35 | T186: 3.2 | U186: 1 | V186: 4.5 | W186: 1.5 | X186: 2519.573463 | Y186: 0.01259786732 | Z186: 181.7499303 | AA186: 5166.297635 | AB186: 0.02583148818
N187: 5.93 | O187: 150 | P187: 4000000 | Q187: 110 | R187: 85 | S187: 0.35 | T187: 3.2 | U187: 1 | V187: 4.5 | W187: 1.5 | X187: 2545.050889 | Y187: 0.01272525444 | Z187: 181.7499303 | AA187: 5218.53821 | AB187: 0.02609269105
N188: 5.94 | O188: 150 | P188: 4000000 | Q188: 110 | R188: 85 | S188: 0.35 | T188: 3.2 | U188: 1 | V188: 4.5 | W188: 1.5 | X188: 2570.752508 | Y188: 0.01285376254 | Z188: 181.7499303 | AA188: 5271.238485 | AB188: 0.02635619242
N189: 5.95 | O189: 150 | P189: 4000000 | Q189: 110 | R189: 85 | S189: 0.35 | T189: 3.2 | U189: 1 | V189: 4.5 | W189: 1.5 | X189: 2596.679989 | Y189: 0.01298339995 | Z189: 181.7499303 | AA189: 5324.401882 | AB189: 0.02662200941
N190: 5.96 | O190: 150 | P190: 4000000 | Q190: 110 | R190: 85 | S190: 0.35 | T190: 3.2 | U190: 1 | V190: 4.5 | W190: 1.5 | X190: 2622.835011 | Y190: 0.01311417506 | Z190: 181.7499303 | AA190: 5378.031843 | AB190: 0.02689015922
N191: 5.97 | O191: 150 | P191: 4000000 | Q191: 110 | R191: 85 | S191: 0.35 | T191: 3.2 | U191: 1 | V191: 4.5 | W191: 1.5 | X191: 2649.219262 | Y191: 0.01324609631 | Z191: 181.7499303 | AA191: 5432.131831 | AB191: 0.02716065916
N192: 5.98 | O192: 150 | P192: 4000000 | Q192: 110 | R192: 85 | S192: 0.35 | T192: 3.2 | U192: 1 | V192: 4.5 | W192: 1.5 | X192: 2675.834442 | Y192: 0.01337917221 | Z192: 181.7499303 | AA192: 5486.70533 | AB192: 0.02743352665
N193: 5.99 | O193: 150 | P193: 4000000 | Q193: 110 | R193: 85 | S193: 0.35 | T193: 3.2 | U193: 1 | V193: 4.5 | W193: 1.5 | X193: 2702.68226 | Y193: 0.0135134113 | Z193: 181.7499303 | AA193: 5541.755845 | AB193: 0.02770877923
N194: 6 | O194: 150 | P194: 4000000 | Q194: 110 | R194: 85 | S194: 0.35 | T194: 3.2 | U194: 1 | V194: 4.5 | W194: 1.5 | X194: 2729.764435 | Y194: 0.01364882217 | Z194: 181.7499303 | AA194: 5597.286902 | AB194: 0.02798643451
N195: 6.01 | O195: 150 | P195: 4000000 | Q195: 110 | R195: 85 | S195: 0.35 | T195: 3.2 | U195: 1 | V195: 4.5 | W195: 1.5 | X195: 2757.082698 | Y195: 0.01378541349 | Z195: 181.7499303 | AA195: 5653.302049 | AB195: 0.02826651024
N196: 6.02 | O196: 150 | P196: 4000000 | Q196: 110 | R196: 85 | S196: 0.35 | T196: 3.2 | U196: 1 | V196: 4.5 | W196: 1.5 | X196: 2784.638788 | Y196: 0.01392319394 | Z196: 181.7499303 | AA196: 5709.804853 | AB196: 0.02854902427
N197: 6.03 | O197: 150 | P197: 4000000 | Q197: 110 | R197: 85 | S197: 0.35 | T197: 3.2 | U197: 1 | V197: 4.5 | W197: 1.5 | X197: 2812.434458 | Y197: 0.01406217229 | Z197: 181.7499303 | AA197: 5766.798906 | AB197: 0.02883399453
N198: 6.04 | O198: 150 | P198: 4000000 | Q198: 110 | R198: 85 | S198: 0.35 | T198: 3.2 | U198: 1 | V198: 4.5 | W198: 1.5 | X198: 2840.471468 | Y198: 0.01420235734 | Z198: 181.7499303 | AA198: 5824.287818 | AB198: 0.02912143909
N199: 6.05 | O199: 150 | P199: 4000000 | Q199: 110 | R199: 85 | S199: 0.35 | T199: 3.2 | U199: 1 | V199: 4.5 | W199: 1.5 | X199: 2868.75159 | Y199: 0.01434375795 | Z199: 181.7499303 | AA199: 5882.275224 | AB199: 0.02941137612
N200: 6.06 | O200: 150 | P200: 4000000 | Q200: 110 | R200: 85 | S200: 0.35 | T200: 3.2 | U200: 1 | V200: 4.5 | W200: 1.5 | X200: 2897.276607 | Y200: 0.01448638303 | Z200: 181.7499303 | AA200: 5940.764777 | AB200: 0.02970382389
N201: 6.07 | O201: 150 | P201: 4000000 | Q201: 110 | R201: 85 | S201: 0.35 | T201: 3.2 | U201: 1 | V201: 4.5 | W201: 1.5 | X201: 2926.048312 | Y201: 0.01463024156 | Z201: 181.7499303 | AA201: 5999.760156 | AB201: 0.02999880078
N202: 6.08 | O202: 150 | P202: 4000000 | Q202: 110 | R202: 85 | S202: 0.35 | T202: 3.2 | U202: 1 | V202: 4.5 | W202: 1.5 | X202: 2955.068509 | Y202: 0.01477534254 | Z202: 181.7499303 | AA202: 6059.265059 | AB202: 0.03029632529
N203: 6.09 | O203: 150 | P203: 4000000 | Q203: 110 | R203: 85 | S203: 0.35 | T203: 3.2 | U203: 1 | V203: 4.5 | W203: 1.5 | X203: 2984.339012 | Y203: 0.01492169506 | Z203: 181.7499303 | AA203: 6119.283206 | AB203: 0.03059641603
N204: 6.1 | O204: 150 | P204: 4000000 | Q204: 110 | R204: 85 | S204: 0.35 | T204: 3.2 | U204: 1 | V204: 4.5 | W204: 1.5 | X204: 3013.861647 | Y204: 0.01506930824 | Z204: 181.7499303 | AA204: 6179.818342 | AB204: 0.03089909171
N205: 6.11 | O205: 150 | P205: 4000000 | Q205: 110 | R205: 85 | S205: 0.35 | T205: 3.2 | U205: 1 | V205: 4.5 | W205: 1.5 | X205: 3043.638251 | Y205: 0.01521819125 | Z205: 181.7499303 | AA205: 6240.87423 | AB205: 0.03120437115
N206: 6.12 | O206: 150 | P206: 4000000 | Q206: 110 | R206: 85 | S206: 0.35 | T206: 3.2 | U206: 1 | V206: 4.5 | W206: 1.5 | X206: 3073.67067 | Y206: 0.01536835335 | Z206: 181.7499303 | AA206: 6302.454659 | AB206: 0.0315122733
N207: 6.13 | O207: 150 | P207: 4000000 | Q207: 110 | R207: 85 | S207: 0.35 | T207: 3.2 | U207: 1 | V207: 4.5 | W207: 1.5 | X207: 3103.960762 | Y207: 0.01551980381 | Z207: 181.7499303 | AA207: 6364.563439 | AB207: 0.0318228172
N208: 6.14 | O208: 150 | P208: 4000000 | Q208: 110 | R208: 85 | S208: 0.35 | T208: 3.2 | U208: 1 | V208: 4.5 | W208: 1.5 | X208: 3134.510397 | Y208: 0.01567255199 | Z208: 181.7499303 | AA208: 6427.204402 | AB208: 0.03213602201
N209: 6.15 | O209: 150 | P209: 4000000 | Q209: 110 | R209: 85 | S209: 0.35 | T209: 3.2 | U209: 1 | V209: 4.5 | W209: 1.5 | X209: 3165.321456 | Y209: 0.01582660728 | Z209: 181.7499303 | AA209: 6490.381405 | AB209: 0.03245190702
N210: 6.16 | O210: 150 | P210: 4000000 | Q210: 110 | R210: 85 | S210: 0.35 | T210: 3.2 | U210: 1 | V210: 4.5 | W210: 1.5 | X210: 3196.395828 | Y210: 0.01598197914 | Z210: 181.7499303 | AA210: 6554.098323 | AB210: 0.03277049162
N211: 6.17 | O211: 150 | P211: 4000000 | Q211: 110 | R211: 85 | S211: 0.35 | T211: 3.2 | U211: 1 | V211: 4.5 | W211: 1.5 | X211: 3227.735418 | Y211: 0.01613867709 | Z211: 181.7499303 | AA211: 6618.35906 | AB211: 0.0330917953
N212: 6.18 | O212: 150 | P212: 4000000 | Q212: 110 | R212: 85 | S212: 0.35 | T212: 3.2 | U212: 1 | V212: 4.5 | W212: 1.5 | X212: 3259.342137 | Y212: 0.01629671069 | Z212: 181.7499303 | AA212: 6683.167538 | AB212: 0.03341583769
N213: 6.19 | O213: 150 | P213: 4000000 | Q213: 110 | R213: 85 | S213: 0.35 | T213: 3.2 | U213: 1 | V213: 4.5 | W213: 1.5 | X213: 3291.217912 | Y213: 0.01645608956 | Z213: 181.7499303 | AA213: 6748.527704 | AB213: 0.03374263852
N214: 6.2 | O214: 150 | P214: 4000000 | Q214: 110 | R214: 85 | S214: 0.35 | T214: 3.2 | U214: 1 | V214: 4.5 | W214: 1.5 | X214: 3323.364679 | Y214: 0.01661682339 | Z214: 181.7499303 | AA214: 6814.443529 | AB214: 0.03407221765
N215: 6.21 | O215: 150 | P215: 4000000 | Q215: 110 | R215: 85 | S215: 0.35 | T215: 3.2 | U215: 1 | V215: 4.5 | W215: 1.5 | X215: 3355.784384 | Y215: 0.01677892192 | Z215: 181.7499303 | AA215: 6880.919006 | AB215: 0.03440459503
N216: 6.22 | O216: 150 | P216: 4000000 | Q216: 110 | R216: 85 | S216: 0.35 | T216: 3.2 | U216: 1 | V216: 4.5 | W216: 1.5 | X216: 3388.478988 | Y216: 0.01694239494 | Z216: 181.7499303 | AA216: 6947.958151 | AB216: 0.03473979076
N217: 6.23 | O217: 150 | P217: 4000000 | Q217: 110 | R217: 85 | S217: 0.35 | T217: 3.2 | U217: 1 | V217: 4.5 | W217: 1.5 | X217: 3421.450459 | Y217: 0.0171072523 | Z217: 181.7499303 | AA217: 7015.565006 | AB217: 0.03507782503
N218: 6.24 | O218: 150 | P218: 4000000 | Q218: 110 | R218: 85 | S218: 0.35 | T218: 3.2 | U218: 1 | V218: 4.5 | W218: 1.5 | X218: 3454.700782 | Y218: 0.01727350391 | Z218: 181.7499303 | AA218: 7083.743633 | AB218: 0.03541871817
N219: 6.25 | O219: 150 | P219: 4000000 | Q219: 110 | R219: 85 | S219: 0.35 | T219: 3.2 | U219: 1 | V219: 4.5 | W219: 1.5 | X219: 3488.231947 | Y219: 0.01744115974 | Z219: 181.7499303 | AA219: 7152.498121 | AB219: 0.03576249061
N220: 6.26 | O220: 150 | P220: 4000000 | Q220: 110 | R220: 85 | S220: 0.35 | T220: 3.2 | U220: 1 | V220: 4.5 | W220: 1.5 | X220: 3522.045962 | Y220: 0.01761022981 | Z220: 181.7499303 | AA220: 7221.832581 | AB220: 0.0361091629
N221: 6.27 | O221: 150 | P221: 4000000 | Q221: 110 | R221: 85 | S221: 0.35 | T221: 3.2 | U221: 1 | V221: 4.5 | W221: 1.5 | X221: 3556.144843 | Y221: 0.01778072421 | Z221: 181.7499303 | AA221: 7291.751148 | AB221: 0.03645875574
N222: 6.28 | O222: =PCC_MR -> 150 | P222: =PCC_ME -> 4000000 | Q222: =K_MODULE -> 110 | R222: =R_ -> 85 | S222: =So -> 0.35 | T222: =J_ -> 3.2 | U222: =Cd_ -> 1 | V222: =Pi -> 4.5 | W222: =Pt -> 1.5 | X222: =10^(-NORMSINV(R222/100)*S222+7.35*LOG10(N222+1)-0.06+((LOG10((V222-W222)/3))/(1+((1.625*10^7)/((N222+1)^8.46))))+((4.22-0.32*W222)*LOG10((O222*U222*((N222^0.75)-1.132))/(215.63*T222*((N222^0.75)-18.42*(Q222/P222)^0.25))))) -> 3590.530617 | Y222: =+X222/ESALS -> 0.01795265309 | Z222: =PCC_IMR -> 181.7499303 | AA222: =10^(-NORMSINV(R222/100)*S222+7.35*LOG10(N222+1)-0.06+((LOG10((V222-W222)/3))/(1+((1.625*10^7)/((N222+1)^8.46))))+((4.22-0.32*W222)*LOG10((Z222*U222*((N222^0.75)-1.132))/(215.63*T222*((N222^0.75)-18.42*(Q222/P222)^0.25))))) -> 7362.257981 | AB222: =+AA222/ESALS -> 0.0368112899
N223: =IF(N222 = "", "", IF(AND(0.995*ESALS<=X222,X222<=1.005*ESALS),"",(N222+D_Step))) -> 6.29 | O223: 150 | P223: 4000000 | Q223: 110 | R223: 85 | S223: 0.35 | T223: 3.2 | U223: 1 | V223: 4.5 | W223: 1.5 | X223: 3625.205326 | Y223: 0.01812602663 | Z223: 181.7499303 | AA223: 7433.357264 | AB223: 0.03716678632
N224: 6.3 | O224: 150 | P224: 4000000 | Q224: 110 | R224: 85 | S224: 0.35 | T224: 3.2 | U224: 1 | V224: 4.5 | W224: 1.5 | X224: 3660.171021 | Y224: 0.01830085511 | Z224: 181.7499303 | AA224: 7505.053204 | AB224: 0.03752526602
N225: 6.31 | O225: 150 | P225: 4000000 | Q225: 110 | R225: 85 | S225: 0.35 | T225: 3.2 | U225: 1 | V225: 4.5 | W225: 1.5 | X225: 3695.429767 | Y225: 0.01847714884 | Z225: 181.7499303 | AA225: 7577.350034 | AB225: 0.03788675017
N226: 6.32 | O226: 150 | P226: 4000000 | Q226: 110 | R226: 85 | S226: 0.35 | T226: 3.2 | U226: 1 | V226: 4.5 | W226: 1.5 | X226: 3730.983639 | Y226: 0.01865491819 | Z226: 181.7499303 | AA226: 7650.25201 | AB226: 0.03825126005
N227: 6.33 | O227: 150 | P227: 4000000 | Q227: 110 | R227: 85 | S227: 0.35 | T227: 3.2 | U227: 1 | V227: 4.5 | W227: 1.5 | X227: 3766.834725 | Y227: 0.01883417362 | Z227: 181.7499303 | AA227: 7723.763414 | AB227: 0.03861881707
N228: 6.34 | O228: 150 | P228: 4000000 | Q228: 110 | R228: 85 | S228: 0.35 | T228: 3.2 | U228: 1 | V228: 4.5 | W228: 1.5 | X228: 3802.985125 | Y228: 0.01901492562 | Z228: 181.7499303 | AA228: 7797.88855 | AB228: 0.03898944275
N229: 6.35 | O229: 150 | P229: 4000000 | Q229: 110 | R229: 85 | S229: 0.35 | T229: 3.2 | U229: 1 | V229: 4.5 | W229: 1.5 | X229: 3839.436951 | Y229: 0.01919718475 | Z229: 181.7499303 | AA229: 7872.631749 | AB229: 0.03936315875
N230: 6.36 | O230: 150 | P230: 4000000 | Q230: 110 | R230: 85 | S230: 0.35 | T230: 3.2 | U230: 1 | V230: 4.5 | W230: 1.5 | X230: 3876.192327 | Y230: 0.01938096163 | Z230: 181.7499303 | AA230: 7947.997367 | AB230: 0.03973998684
N231: 6.37 | O231: 150 | P231: 4000000 | Q231: 110 | R231: 85 | S231: 0.35 | T231: 3.2 | U231: 1 | V231: 4.5 | W231: 1.5 | X231: 3913.253389 | Y231: 0.01956626694 | Z231: 181.7499303 | AA231: 8023.989785 | AB231: 0.04011994892
N232: 6.38 | O232: 150 | P232: 4000000 | Q232: 110 | R232: 85 | S232: 0.35 | T232: 3.2 | U232: 1 | V232: 4.5 | W232: 1.5 | X232: 3950.622286 | Y232: 0.01975311143 | Z232: 181.7499303 | AA232: 8100.613407 | AB232: 0.04050306703
N233: 6.39 | O233: 150 | P233: 4000000 | Q233: 110 | R233: 85 | S233: 0.35 | T233: 3.2 | U233: 1 | V233: 4.5 | W233: 1.5 | X233: 3988.301179 | Y233: 0.01994150589 | Z233: 181.7499303 | AA233: 8177.872664 | AB233: 0.04088936332
N234: 6.4 | O234: 150 | P234: 4000000 | Q234: 110 | R234: 85 | S234: 0.35 | T234: 3.2 | U234: 1 | V234: 4.5 | W234: 1.5 | X234: 4026.29224 | Y234: 0.0201314612 | Z234: 181.7499303 | AA234: 8255.772013 | AB234: 0.04127886006
N235: 6.41 | O235: 150 | P235: 4000000 | Q235: 110 | R235: 85 | S235: 0.35 | T235: 3.2 | U235: 1 | V235: 4.5 | W235: 1.5 | X235: 4064.597657 | Y235: 0.02032298828 | Z235: 181.7499303 | AA235: 8334.315935 | AB235: 0.04167157967
N236: 6.42 | O236: 150 | P236: 4000000 | Q236: 110 | R236: 85 | S236: 0.35 | T236: 3.2 | U236: 1 | V236: 4.5 | W236: 1.5 | X236: 4103.219626 | Y236: 0.02051609813 | Z236: 181.7499303 | AA236: 8413.508937 | AB236: 0.04206754468
N237: 6.43 | O237: 150 | P237: 4000000 | Q237: 110 | R237: 85 | S237: 0.35 | T237: 3.2 | U237: 1 | V237: 4.5 | W237: 1.5 | X237: 4142.160358 | Y237: 0.02071080179 | Z237: 181.7499303 | AA237: 8493.355552 | AB237: 0.04246677776
N238: 6.44 | O238: 150 | P238: 4000000 | Q238: 110 | R238: 85 | S238: 0.35 | T238: 3.2 | U238: 1 | V238: 4.5 | W238: 1.5 | X238: 4181.422076 | Y238: 0.02090711038 | Z238: 181.7499303 | AA238: 8573.860338 | AB238: 0.04286930169
N239: 6.45 | O239: 150 | P239: 4000000 | Q239: 110 | R239: 85 | S239: 0.35 | T239: 3.2 | U239: 1 | V239: 4.5 | W239: 1.5 | X239: 4221.007017 | Y239: 0.02110503508 | Z239: 181.7499303 | AA239: 8655.027881 | AB239: 0.0432751394
N240: 6.46 | O240: 150 | P240: 4000000 | Q240: 110 | R240: 85 | S240: 0.35 | T240: 3.2 | U240: 1 | V240: 4.5 | W240: 1.5 | X240: 4260.917428 | Y240: 0.02130458714 | Z240: 181.7499303 | AA240: 8736.862789 | AB240: 0.04368431395
N241: 6.47 | O241: 150 | P241: 4000000 | Q241: 110 | R241: 85 | S241: 0.35 | T241: 3.2 | U241: 1 | V241: 4.5 | W241: 1.5 | X241: 4301.155572 | Y241: 0.02150577786 | Z241: 181.7499303 | AA241: 8819.369701 | AB241: 0.0440968485
N242: 6.48 | O242: 150 | P242: 4000000 | Q242: 110 | R242: 85 | S242: 0.35 | T242: 3.2 | U242: 1 | V242: 4.5 | W242: 1.5 | X242: 4341.723721 | Y242: 0.02170861861 | Z242: 181.7499303 | AA242: 8902.553278 | AB242: 0.04451276639
N243: 6.49 | O243: 150 | P243: 4000000 | Q243: 110 | R243: 85 | S243: 0.35 | T243: 3.2 | U243: 1 | V243: 4.5 | W243: 1.5 | X243: 4382.624163 | Y243: 0.02191312082 | Z243: 181.7499303 | AA243: 8986.418211 | AB243: 0.04493209105
N244: 6.5 | O244: 150 | P244: 4000000 | Q244: 110 | R244: 85 | S244: 0.35 | T244: 3.2 | U244: 1 | V244: 4.5 | W244: 1.5 | X244: 4423.859198 | Y244: 0.02211929599 | Z244: 181.7499303 | AA244: 9070.969213 | AB244: 0.04535484607
N245: 6.51 | O245: 150 | P245: 4000000 | Q245: 110 | R245: 85 | S245: 0.35 | T245: 3.2 | U245: 1 | V245: 4.5 | W245: 1.5 | X245: 4465.431139 | Y245: 0.02232715569 | Z245: 181.7499303 | AA245: 9156.211029 | AB245: 0.04578105515
N246: 6.52 | O246: 150 | P246: 4000000 | Q246: 110 | R246: 85 | S246: 0.35 | T246: 3.2 | U246: 1 | V246: 4.5 | W246: 1.5 | X246: 4507.34231 | Y246: 0.02253671155 | Z246: 181.7499303 | AA246: 9242.148427 | AB246: 0.04621074213
N247: 6.53 | O247: 150 | P247: 4000000 | Q247: 110 | R247: 85 | S247: 0.35 | T247: 3.2 | U247: 1 | V247: 4.5 | W247: 1.5 | X247: 4549.595052 | Y247: 0.02274797526 | Z247: 181.7499303 | AA247: 9328.786201 | AB247: 0.04664393101
N248: 6.54 | O248: 150 | P248: 4000000 | Q248: 110 | R248: 85 | S248: 0.35 | T248: 3.2 | U248: 1 | V248: 4.5 | W248: 1.5 | X248: 4592.191715 | Y248: 0.02296095858 | Z248: 181.7499303 | AA248: 9416.129177 | AB248: 0.04708064588
N249: 6.55 | O249: 150 | P249: 4000000 | Q249: 110 | R249: 85 | S249: 0.35 | T249: 3.2 | U249: 1 | V249: 4.5 | W249: 1.5 | X249: 4635.134666 | Y249: 0.02317567333 | Z249: 181.7499303 | AA249: 9504.182202 | AB249: 0.04752091101
N250: 6.56 | O250: 150 | P250: 4000000 | Q250: 110 | R250: 85 | S250: 0.35 | T250: 3.2 | U250: 1 | V250: 4.5 | W250: 1.5 | X250: 4678.426282 | Y250: 0.02339213141 | Z250: 181.7499303 | AA250: 9592.950153 | AB250: 0.04796475077
N251: 6.57 | O251: 150 | P251: 4000000 | Q251: 110 | R251: 85 | S251: 0.35 | T251: 3.2 | U251: 1 | V251: 4.5 | W251: 1.5 | X251: 4722.068956 | Y251: 0.02361034478 | Z251: 181.7499303 | AA251: 9682.437936 | AB251: 0.04841218968
N252: 6.58 | O252: 150 | P252: 4000000 | Q252: 110 | R252: 85 | S252: 0.35 | T252: 3.2 | U252: 1 | V252: 4.5 | W252: 1.5 | X252: 4766.065092 | Y252: 0.02383032546 | Z252: 181.7499303 | AA252: 9772.650481 | AB252: 0.04886325241
N253: 6.59 | O253: 150 | P253: 4000000 | Q253: 110 | R253: 85 | S253: 0.35 | T253: 3.2 | U253: 1 | V253: 4.5 | W253: 1.5 | X253: 4810.41711 | Y253: 0.02405208555 | Z253: 181.7499303 | AA253: 9863.592748 | AB253: 0.04931796374
N254: 6.6 | O254: 150 | P254: 4000000 | Q254: 110 | R254: 85 | S254: 0.35 | T254: 3.2 | U254: 1 | V254: 4.5 | W254: 1.5 | X254: 4855.12744 | Y254: 0.0242756372 | Z254: 181.7499303 | AA254: 9955.269723 | AB254: 0.04977634862
N255: 6.61 | O255: 150 | P255: 4000000 | Q255: 110 | R255: 85 | S255: 0.35 | T255: 3.2 | U255: 1 | V255: 4.5 | W255: 1.5 | X255: 4900.198529 | Y255: 0.02450099264 | Z255: 181.7499303 | AA255: 10047.68642 | AB255: 0.05023843211
N256: 6.62 | O256: 150 | P256: 4000000 | Q256: 110 | R256: 85 | S256: 0.35 | T256: 3.2 | U256: 1 | V256: 4.5 | W256: 1.5 | X256: 4945.632836 | Y256: 0.02472816418 | Z256: 181.7499303 | AA256: 10140.84788 | AB256: 0.05070423942
N257: 6.63 | O257: 150 | P257: 4000000 | Q257: 110 | R257: 85 | S257: 0.35 | T257: 3.2 | U257: 1 | V257: 4.5 | W257: 1.5 | X257: 4991.432832 | Y257: 0.02495716416 | Z257: 181.7499303 | AA257: 10234.75918 | AB257: 0.05117379592
N258: 6.64 | O258: 150 | P258: 4000000 | Q258: 110 | R258: 85 | S258: 0.35 | T258: 3.2 | U258: 1 | V258: 4.5 | W258: 1.5 | X258: 5037.601006 | Y258: 0.02518800503 | Z258: 181.7499303 | AA258: 10329.42542 | AB258: 0.05164712708
N259: 6.65 | O259: 150 | P259: 4000000 | Q259: 110 | R259: 85 | S259: 0.35 | T259: 3.2 | U259: 1 | V259: 4.5 | W259: 1.5 | X259: 5084.139857 | Y259: 0.02542069929 | Z259: 181.7499303 | AA259: 10424.85171 | AB259: 0.05212425855
N260: 6.66 | O260: 150 | P260: 4000000 | Q260: 110 | R260: 85 | S260: 0.35 | T260: 3.2 | U260: 1 | V260: 4.5 | W260: 1.5 | X260: 5131.0519 | Y260: 0.0256552595 | Z260: 181.7499303 | AA260: 10521.04322 | AB260: 0.05260521609
N261: 6.67 | O261: 150 | P261: 4000000 | Q261: 110 | R261: 85 | S261: 0.35 | T261: 3.2 | U261: 1 | V261: 4.5 | W261: 1.5 | X261: 5178.339661 | Y261: 0.02589169831 | Z261: 181.7499303 | AA261: 10618.00513 | AB261: 0.05309002563
N262: 6.68 | O262: 150 | P262: 4000000 | Q262: 110 | R262: 85 | S262: 0.35 | T262: 3.2 | U262: 1 | V262: 4.5 | W262: 1.5 | X262: 5226.005684 | Y262: 0.02613002842 | Z262: 181.7499303 | AA262: 10715.74265 | AB262: 0.05357871323
N263: 6.69 | O263: 150 | P263: 4000000 | Q263: 110 | R263: 85 | S263: 0.35 | T263: 3.2 | U263: 1 | V263: 4.5 | W263: 1.5 | X263: 5274.052524 | Y263: 0.02637026262 | Z263: 181.7499303 | AA263: 10814.26102 | AB263: 0.05407130509
N264: 6.7 | O264: 150 | P264: 4000000 | Q264: 110 | R264: 85 | S264: 0.35 | T264: 3.2 | U264: 1 | V264: 4.5 | W264: 1.5 | X264: 5322.482751 | Y264: 0.02661241375 | Z264: 181.7499303 | AA264: 10913.56551 | AB264: 0.05456782755
N265: 6.71 | O265: 150 | P265: 4000000 | Q265: 110 | R265: 85 | S265: 0.35 | T265: 3.2 | U265: 1 | V265: 4.5 | W265: 1.5 | X265: 5371.298949 | Y265: 0.02685649474 | Z265: 181.7499303 | AA265: 11013.66142 | AB265: 0.05506830712
N266: 6.72 | O266: 150 | P266: 4000000 | Q266: 110 | R266: 85 | S266: 0.35 | T266: 3.2 | U266: 1 | V266: 4.5 | W266: 1.5 | X266: 5420.503716 | Y266: 0.02710251858 | Z266: 181.7499303 | AA266: 11114.55409 | AB266: 0.05557277043
N267: 6.73 | O267: 150 | P267: 4000000 | Q267: 110 | R267: 85 | S267: 0.35 | T267: 3.2 | U267: 1 | V267: 4.5 | W267: 1.5 | X267: 5470.099666 | Y267: 0.02735049833 | Z267: 181.7499303 | AA267: 11216.24885 | AB267: 0.05608124427
N268: 6.74 | O268: 150 | P268: 4000000 | Q268: 110 | R268: 85 | S268: 0.35 | T268: 3.2 | U268: 1 | V268: 4.5 | W268: 1.5 | X268: 5520.089424 | Y268: 0.02760044712 | Z268: 181.7499303 | AA268: 11318.75111 | AB268: 0.05659375556
N269: 6.75 | O269: 150 | P269: 4000000 | Q269: 110 | R269: 85 | S269: 0.35 | T269: 3.2 | U269: 1 | V269: 4.5 | W269: 1.5 | X269: 5570.475633 | Y269: 0.02785237816 | Z269: 181.7499303 | AA269: 11422.06628 | AB269: 0.05711033139
N270: 6.76 | O270: 150 | P270: 4000000 | Q270: 110 | R270: 85 | S270: 0.35 | T270: 3.2 | U270: 1 | V270: 4.5 | W270: 1.5 | X270: 5621.260947 | Y270: 0.02810630473 | Z270: 181.7499303 | AA270: 11526.1998 | AB270: 0.05763099898
N271: 6.77 | O271: 150 | P271: 4000000 | Q271: 110 | R271: 85 | S271: 0.35 | T271: 3.2 | U271: 1 | V271: 4.5 | W271: 1.5 | X271: 5672.448037 | Y271: 0.02836224018 | Z271: 181.7499303 | AA271: 11631.15714 | AB271: 0.05815578571
... 923 more rows

Sheet Lanzado y Prefabricado
A2: Dosificación de Fibra en Concreto Lanzado según Documento Técnico ACI 506.1-08 (Unidades SI)
A33: Descripción del Proyecto
A34: Tipo de Malla Electrosoldada | C34: DIACO XX-221
A38: Diámetro de barra, f | D38: =VLOOKUP(C34,OFFSET(Mallas_U_SI,,,,5),5,0) -> 6.5 | E38: mm | G38: Medida de ancho unitario , b | K38: 1000 | L38: mm
A39: Espaciamento entre barras, s | D39: =VLOOKUP(C34,OFFSET(Mallas_U_SI,,,,2),2,0) -> 150 | E39: mm | G39: Area de acero suministrado, As | K39: =PI()*(D38^2/4)/D39*K38 -> 221.2204827 | L39: mm2/m
A40: Espesor de liner en concreto lanzado, t | D40: 100 | E40: mm | G40: Cuantía de Acero, r | K40: =IF(D40<>"",K39/D40/K38*100,"") -> 0.2212204827 | L40: %
A41: Resistencia a compresión concreto, f'c | D41: 21 | E41: MPa
A42: Resistencia típica del acero, fy | D42: 400 | E42: MPa
A46: Capacidad a Momento Flector | D46: =IF(AND(D40<>"",D41<>"",D42<>""),0.9*K39*D42*(D40/2-(K39*D42/(0.85*D41*K38))),"") -> 3587170.689 | E46: N.mm
A47: Capacidad a Momento Flector | D47: =D46/1000000 -> 3.587170689 | E47: kN.m
A49: f600 Resistencia residual requerida | D49: =IF(D46<>"",6*D46/(K38*D40^2),"") -> 2.152302414 | E49: MPa | I49: ** - Conversión de dosificación de fibra a partir del desempeño requerido según ensayo ASTM C1609.
A51: Volumen requerido de FIBRAPLAS CONCRETE: | F51: 12.53463661 | G51: kg/m3 | H51: **
N57: Referencia | O57: Separación (mm) | P57: Area Long (mm2) | Q57: Area Transv. (mm2) | R57: Diametro Long (mm) | S57: Diametro Transv. (mm)
N58: 50x50 MW25.8/25.8 (2x2 W4.0/4.0) | O58: 50 | P58: 25.8 | Q58: 25.8 | R58: =SQRT(4*P58/PI()) -> 5.731455335 | S58: =SQRT(4*Q58/PI()) -> 5.731455335
N59: 50x50 MW18.7/18.7 (2x2 W2.9/2.9) | O59: 50 | P59: 18.7 | Q59: 18.7 | R59: 4.87950607 | S59: 4.87950607
N60: 50x50 MW13.3/13.3 (2x2 W2.1/2.1) | O60: 50 | P60: 13.3 | Q60: 13.3 | R60: 4.115104609 | S60: 4.115104609
N61: 50x50 MW9.1/9.1 (2x2 W1.4/1.4) | O61: 50 | P61: 9.1 | Q61: 9.1 | R61: 3.403891869 | S61: 3.403891869
N62: 50x50 MW5.6/5.6 (2x2 W0.9/0.9) | O62: 50 | P62: 5.6 | Q62: 5.6 | R62: 2.670232471 | S62: 2.670232471
N63: 50x50 MW3.2/3.2 (2x2 W0.5/0.5) | O63: 50 | P63: 3.2 | Q63: 3.2 | R63: 2.018506018 | S63: 2.018506018
N64: 50x50 MW2.0/2.0 (2x2 W0.3/0.3) | O64: 50 | P64: 2 | Q64: 2 | R64: 1.595769122 | S64: 1.595769122
N65: 76x76 MW13.3/13.3 (3x3 W2.1/2.1) | O65: 76 | P65: 13.3 | Q65: 13.3 | R65: 4.115104609 | S65: 4.115104609
N66: 76x76 MW9.1/9.1 (3x3 W1.4/1.4) | O66: 76 | P66: 9.1 | Q66: 9.1 | R66: 3.403891869 | S66: 3.403891869
N67: 76x76 MW5.6/5.6 (3x3 W0.9/0.9) | O67: 76 | P67: 5.6 | Q67: 5.6 | R67: 2.670232471 | S67: 2.670232471
N68: 76x76 MW3.2/3.2 (3x3 W0.5/0.5) | O68: 76 | P68: 3.2 | Q68: 3.2 | R68: 2.018506018 | S68: 2.018506018
N69: 102x102 MW25.8/25.8 (4x4 W4.0/4.0) | O69: 102 | P69: 25.8 | Q69: 25.8 | R69: 5.731455335 | S69: 5.731455335
N70: 102x102 MW18.7/18.7 (4x4 W2.9/2.9) | O70: 102 | P70: 18.7 | Q70: 18.7 | R70: 4.87950607 | S70: 4.87950607
N71: 102x102 MW13.3/13.3 (4x4 W2.1/2.1) | O71: 102 | P71: 13.3 | Q71: 13.3 | R71: 4.115104609 | S71: 4.115104609
N72: 102x102 MW11.1/11.1 (4x4 W1.7/1.7) | O72: 102 | P72: 11.1 | Q72: 11.1 | R72: 3.759382788 | S72: 3.759382788
N73: 102x102 MW9.1/9.1 (4x4 W1.4/1.4) | O73: 102 | P73: 9.1 | Q73: 9.1 | R73: 3.403891869 | S73: 3.403891869
N74: 102x102 MW5.6/5.6 (4x4 W0.9/0.9) | O74: 102 | P74: 5.6 | Q74: 5.6 | R74: 2.670232471 | S74: 2.670232471
N75: 102x102 MW4.2/4.2 (4x4 W0.7/0.7) | O75: 102 | P75: 4.2 | Q75: 4.2 | R75: 2.312489154 | S75: 2.312489154
N76: 102x102 MW3.2/3.2 (4x4 W0.5/0.5) | O76: 102 | P76: 3.2 | Q76: 3.2 | R76: 2.018506018 | S76: 2.018506018
N77: 152x152 MW47.6/47.6 (6x6 W7.4/7.4) | O77: 152 | P77: 47.6 | Q77: 47.6 | R77: 7.784998544 | S77: 7.784998544
N78: 152x152 MW40.6/40.6 (6x6 W6.3/6.3) | O78: 152 | P78: 40.6 | Q78: 40.6 | R78: 7.189820966 | S78: 7.189820966
N79: 152x152 MW34.9/34.9 (6x6 W5.4/5.4) | O79: 152 | P79: 34.9 | Q79: 34.9 | R79: 6.666037812 | S79: 6.666037812
N80: 152x152 MW30.1/30.1 (6x6 W4.7/4.7) | O80: 152 | P80: 30.1 | Q80: 30.1 | R80: 6.190679308 | S80: 6.190679308
N81: 152x152 MW25.8/25.8 (6x6 W4.0/4.0) | O81: 152 | P81: 25.8 | Q81: 25.8 | R81: 5.731455335 | S81: 5.731455335
N82: 152x152 MW25.8/18.7 (6x6 W4.0/2.9) | O82: 152 | P82: 25.8 | Q82: 18.7 | R82: 5.731455335 | S82: 4.87950607
N83: 152x152 MW21.7/21.7 (6x6 W3.4/3.4) | O83: 152 | P83: 21.7 | Q83: 21.7 | R83: 5.256357876 | S83: 5.256357876
N84: 152x152 MW18.7/18.7 (6x6 W2.9/2.9) | O84: 152 | P84: 18.7 | Q84: 18.7 | R84: 4.87950607 | S84: 4.87950607
N85: 152x152 MW15.9/15.9 (6x6 W2.5/2.5) | O85: 152 | P85: 15.9 | Q85: 15.9 | R85: 4.499389821 | S85: 4.499389821
N86: 152x152 MW13.3/13.3 (6x6 W2.1/2.1) | O86: 152 | P86: 13.3 | Q86: 13.3 | R86: 4.115104609 | S86: 4.115104609
N87: 152x152 MW11.1/11.1 (6x6 W1.7/1.7) | O87: 152 | P87: 11.1 | Q87: 11.1 | R87: 3.759382788 | S87: 3.759382788
N88: 152x152 MW9.1/9.1 (6x6 W1.4/1.4) | O88: 152 | P88: 9.1 | Q88: 9.1 | R88: 3.403891869 | S88: 3.403891869
N89: 305x305 MW34.9/34.9 (12x12 W5.4/5.4) | O89: 305 | P89: 34.9 | Q89: 34.9 | R89: 6.666037812 | S89: 6.666037812
N90: DIACO XY-084 | O90: 150 | P90: =PI()*R90^2/4 -> 12.56637061 | Q90: =PI()*S90^2/4 -> 12.56637061 | R90: 4 | S90: 4
N91: DIACO XY-106 | O91: 150 | P91: 15.90431281 | Q91: 12.56637061 | R91: 4.5 | S91: 4
N92: DIACO XY-131 | O92: 150 | P92: 19.63495408 | Q92: 12.56637061 | R92: 5 | S92: 4
N93: DIACO XY-158 | O93: 150 | P93: 23.75829444 | Q93: 12.56637061 | R93: 5.5 | S93: 4
N94: DIACO XY-221 | O94: 150 | P94: 33.1830724 | Q94: 12.56637061 | R94: 6.5 | S94: 4
N95: DIACO XY-257 | O95: 150 | P95: 38.48451001 | Q95: 19.63495408 | R95: 7 | S95: 5
N96: DIACO XY-335 | O96: 150 | P96: 50.26548246 | Q96: 19.63495408 | R96: 8 | S96: 5
N97: DIACO XY-378 | O97: 150 | P97: 56.74501731 | Q97: 19.63495408 | R97: 8.5 | S97: 5
N98: DIACO XX-050 | O98: 250 | P98: 12.56637061 | Q98: 12.56637061 | R98: 4 | S98: 4
N99: DIACO XX-063 | O99: 200 | P99: 12.56637061 | Q99: 12.56637061 | R99: 4 | S99: 4
N100: DIACO XX-084 | O100: 150 | P100: 12.56637061 | Q100: 12.56637061 | R100: 4 | S100: 4
N101: DIACO XX-106 | O101: 150 | P101: 15.90431281 | Q101: 15.90431281 | R101: 4.5 | S101: 4.5
N102: DIACO XX-131 | O102: 150 | P102: 19.63495408 | Q102: 19.63495408 | R102: 5 | S102: 5
N103: DIACO XX-158 | O103: 150 | P103: 23.75829444 | Q103: 23.75829444 | R103: 5.5 | S103: 5.5
N104: DIACO XX-188 | O104: 150 | P104: 28.27433388 | Q104: 28.27433388 | R104: 6 | S104: 6
N105: DIACO XX-221 | O105: 150 | P105: 33.1830724 | Q105: 33.1830724 | R105: 6.5 | S105: 6.5
N106: DIACO XX-257 | O106: 150 | P106: 38.48451001 | Q106: 38.48451001 | R106: 7 | S106: 7
N107: DIACO XX-295 | O107: 150 | P107: 44.17864669 | Q107: 44.17864669 | R107: 7.5 | S107: 7.5
N108: DIACO XX-335 | O108: 150 | P108: 50.26548246 | Q108: 50.26548246 | R108: 8 | S108: 8
N109: DIACO XX-378 | O109: 150 | P109: 56.74501731 | Q109: 56.74501731 | R109: 8.5 | S109: 8.5

Sheet Conversión dosificación
A2: Conversión Dosificación Fibra Metálica a Dosificación Fibraplas Concrete
A16: Resistencia a compresión del concreto | C16: 28 | D16: MPa | F16: Relación de aspecto de la fibra metálica | L16: 65
A20: Dosificación fibra metálica | C20: 20 | D20: kg/m3
A25: Capacidad a Momento Flector | D25: =IF(AND(#REF!<>"",#REF!<>"",#REF!<>""),0.9*#REF!*#REF!*(#REF!/2-(#REF!*#REF!/(0.85*#REF!*#REF!))),"") ->  | E25: N.mm
A27: Dosificación equivalente de FIBRAPLAS CONCRETE: | F27: 6.16088593 | H27: kg/m3
N36: Re_3_fm | O36: 0.2691630216

Sheet INICIO
C1: PROGRAMAS PARA EL DISEÑO DE ELEMENTOS DE CONCRETO REFORZADOS CON FIBRA SINTÉTICA FIBRAPLAS CONCRETE®
A9: Con este programa usted puede :
A12: Determinar el espesor de un piso industrial bajo diversos tipos de carga usando una dosificación establecida de FIBRAPLAS CONCRETE®
A14: Determinar el volumen requerido de FIBRAPLAS CONCRETE® que reemplace un proyecto ya especificado con malla electrosoldada
A30: PISOS INDUSTRIALES
A35: Calcular el espesor de pavimentos rígidos bajo las especificaciones PCA y AASHTO, usando FIBRAPLAS CONCRETE®
A47: PAVIMENTOS RIGIDOS
A50: Podrá diseñar además:
A64: SISTEMAS PREFABRICADOS | G64: ESTRUCTURAS EN CONCRETO LANZADO
A77: ENTREPISOS EN STEEL DECK
A80: VERSIÓN 1.9
A85: ESTE PROGRAMA ASI COMO LA MARCA FIBRAPLAS CONCRETE® SON DE USO EXCLUSIVO DE LA EMPRESA COLOMBIANA DEL PLASTICO S.A.S.

Sheet T & C
C1: HERRAMIENTAS PARA EL DISEÑO DE ELEMENTOS DE CONCRETO REFORZADOS CON FIBRA SINTÉTICA FIBRAPLAS CONCRETE®
A10: TERMINOS Y CONDICIONES
A11: Algunas de las hojas de cálculo contenidas en este archivo contienen Macros. Por lo tanto, es necesario activar el uso de macros en su versión de Microsoft Excel. Esta herramienta fue desarrollada para trabajar bajo sistema operativo WINDOWS y fue desarrollada exclusivamente para la EMPRESA COLOMBIANA DEL PLÁSTICO S.A.S. Esta es una licencia individual y no puede ser distribuida sin previa autorización de EMPRESA COLOMBIANA DEL PLÁSTICO S.A.S. En ningún evento EMPRESA COLOMBIANA DEL PLÁSTICO S.A.S. se hace responsable por daños especiales, incidentales o derivados del uso de estas hojas de cálculo. EMPRESA COLOMBIANA DEL PLÁSTICO S.A.S. no toma ninguna responsabilidad por el uso de estas hojas de cálculo y no garantiza que estén libres de errores. No se permite la decompilación, el uso de ingeniería inversa, o el desbloqueo de estas hojas de cálculo. Al usar estas herramientas usted comprende y acepta los términos y condiciones. También reconoce que no es el propietario de estas hojas de cálculo.
A42: ESTE PROGRAMA ASI COMO LA MARCA FIBRAPLAS CONCRETE® SON DE USO EXCLUSIVO DE LA EMPRESA COLOMBIANA DEL PLASTICO S.A.S.

Sheet T & C (2)
C1: PROGRAMAS PARA EL DISEÑO DE ELEMENTOS DE CONCRETO REFORZADOS CON FIBRA SINTÉTICA FIBRAPLAS CONCRETE®
A10: TERMINOS Y CONDICIONES
A11: Algunas de las hojas de cálculo contenidas en este archivo contienen Macros. Por lo tanto, es necesario activar el uso de macros en su versión de Microsoft Excel. Esta herramienta fue desarrollada para trabajar bajo sistema operativo WINDOWS y fue desarrollada exclusivamente para la EMPRESA COLOMBIANA DEL PLASTICO S.A.S. Esta es una licencia individual y no puede ser distribuida sin previa autorización de EMPRESA COLOMBIANA DEL PLASTICO S.A.S. En ningún evento EMPRESA COLOMBIANA DEL PLASTICO S.A.S se hace responsable por daños especiales, incidentales o derivados del uso de estas hojas de cálculo. EMPRESA COLOMBIANA DEL PLASTICO S.A.S no toma ninguna responsabilidad por el uso de estas hojas de cálculo y no garantiza que estén libres de errores. No se permite la decompilación, el uso de ingeniería inversa, o el desbloqueo de estas hojas de cálculo. Al usar estas herramientas usted comprende y acepta los términos y condiciones. También reconoce que no es el propietario de estas hojas de cálculo.
A42: ESTE PROGRAMA ASI COMO LA MARCA FIBRAPLAS CONCRETE® SON DE USO EXCLUSIVO DE LA EMPRESA COLOMBIANA DEL PLASTICO S.A.S.
